Workbook

Sheet Notes
A1: VossPredictor.xlsm; Traders Tip spreadsheet created for the August 2019 Issue
A2: Coded beginning 2019-June-17 by Ronald McAllister (rpmac_xltt@sprynet.com)
A4: This Workbook demonstrates an EXCEL version of the ideas presented
A5: by John Ehlers in an article titled "Peaks And Valleys A Peek Into The Future"
A6: which originally appeared in the August 2019 issue of
A7: "Technical Analysis of Stocks and Commodities" magazine.
A9: Bug Fix 6/14/2019
A10: On or about Saturday, June 08, 2019, Yahoo Finance introduced web page changes that
A11: removed the "crumbstore" from the surface of all pages retrieved when using a
A12: Windows Internet Explorer 11 "User-Agent" string.
A14: By trial and error, today I determined that requests using a Windows Chrome "User-Agent' string will retrieve pages
A15: containing the expected crumb store and, oh by the way, one additional crumb store with a different crumb value.
A17: Using a Windows Chrome user agent string can get my recent spread sheets back on the air, at least temporarily.
A19: I say temporarily as I believe that the folks at Yahoo Finance will be propogating similar changes
A20: to all of the supported browser types over time.
A22: The following bug fix instructions are applicable to spreadsheets as old as "WeeklyDailyStochastics.xlsm",
A23: the September of 2018 traders tip, where I first introduced the “DataViaWinHTTP” module.
A25: For spreadsheets older than September of 2018 replacing the User-Agent string "may" turn out to be helpful.
A26: I have tried this successfully with a few of the earlier 2018 spreadsheets. But I make no guarantees as to earlier spreadsheets.
A27: You will most likely only find one instance of the User-Agent" spec, in a different module, instead of the 4 instances described below.
A29: How to apply this bug fix to your copy of these older spreadsheets.
A31: You will need to get into the VBA editor (ALT-F11) and then open a FIND (Ctrl-F) dialog box.
A33: Make sure the "Current Project" radio button is selected in the Search box.
A35: What you want to find: .SetRequestHeader statements with the "User-Agent", specification.
A37: There should be 4 occurrences, all in module “DataViaWinHTTP”.
A39: Replace each of these user-agent statements with the one provided below
A41: .SetRequestHeader _
A42: "User-Agent", _
A43: "Mozilla/5.0 (Windows NT 10.0; Win64; x64) " & _
A44: "AppleWebKit/537.36 (KHTML, like Gecko) Chrome/60.0.3112.90 Safari/537.36"
A46: General Construction Notes
A48: One can replicate the chart in Figure 1 of the article by retrieving data for symbol SPY.
A49: Next, on the CalculationsAndCharts tab, set cell B26 to 01/03/2018 and cell B27 to 03/08/2019.
A50: Then Click on the "I would like to chart these dates" button.
A53: Development Notes:
C54: This workbook contains and uses VBA macros and may use VBA Class structures.
C55: Input Data
C56: The data in this workbook is sorted date descending (most recent date at the top). All formulas and
C57: VBA routines are built accordingly.
A59: 2019-06-04 Set price chart vertical axis to show tick marks and labels at each 1/10th of the vertical price spread
A61: 2019-04-04 Finally came up with a mechanism to align the left location and overall length of the cursor scroll bar so that the left most and right most
A62: scroll bar thumb positions visually align reasonably well with the left and right ends of the price chart horizontal axis.
A63: Makes it a little easier to visually align the Thumb and thus the cursor with points of interest on the charts.
A65: Older:
B66: My sincere apologies to our Macintosh based readers: Neither MSXML nor WinHttpRequest are supported in your environment. So as it stands this version of the spreadsheet will not work for you.
B67: See "Why this approach does not work for Macintosh" below.
B68: I am investigating cURL as a non-Querytable based approach for the Macintosh environment.
A70: The new Yahoo Finance history download interface has changed rather radically. The biggest hurdle being a pseudo-security requirement of adding a
B71: crumb character string to any URL requesting any type of history download. That crumb must match up (by way of some sort of hash algorithm) with
B72: the Yahoo Finance cookie that must also be sent with any request to the new Yahoo History down load interface.
B74: A crumb value is returned, buried in the HTML for any of what I call the "entry level" Yahoo Finance web pages (no crumb security requirement for entry level pages).
B75: A crumb may come with other Yahoo Finance pages. A crumb may even accompany some of the secured pages as well. I have not checked.
B77: Entry level pages are the top level pages of the various Yahoo Finance dialogs and include: Quote Lookup, Stock Summary Quote, and any of the pages
B78: with links in the horizontal row with the "Summary" link on the quote summary page such as Options, Historical Data, and the rest.
B80: To date I have found no way to get at this crumb value using any native EXCEL capabilities.
B82: So this crumb requirement effectively shuts out any solution that attempts to exclusively use built-in facilities of EXCEL, which is to say a purely Querytables solution.
B84: The approach built for this Traders Tip spreadsheet uses a combination of MSXML and EXCEL Querytable calls to Load the InputPriceData worksheet.
B86: First I call MSXML to get the HTML text for the Yahoo Summary Quote page using the requested symbol. From this HTML text I extract the full company name,
B87: the market it trades, the market status and time stamp, and finally the associated crumb string. There is a bunch of other useful bits buried in this HTML
B88: text that do not necessarily appear on the web page your browser presents. Perhaps some day I will go after and build a worksheet with these other bits.
B90: Next I add the freshly extracted crumb string to the URLs I use in three separate Querytable calls to retrieve Price history, Split history, and Dividend history respectively.
B92: From there VBA code proceeds as in the past to fill in the cell formulas and formatting that make the "prettied up" InputPriceData sheet.
A94: Why this approach works for Windows:
B95: First, MSXML shares the permanent Internet Explorer web cache where cookies are maintained. Both IE and MSXML automatically
B96: update this cache when a "set cookie" header accompanies a web response. And they both automatically search this shared cache for
B97: cookies and add any "appropriate" cookies to the headers of any web requests they send out.
B98: This cookie handling automation means that even if the response to our MSXML call for the Summary web page includes a new version of
B99: the Yahoo Finance cookie, the imbedded Crumb value will always match the cookie newly installed in the cache!
B101: Second, in the Windows environment the EXCEL Querytable mechanism leans heavily on bits from Internet Explorer. This means that cookie
B102: handling is also automated from the shared cache for Querytable calls. We can count on any appropriate cookies being added to any Querytable call.
B103: We only need to do our part by adding the corresponding Crumb value to complete the security for the Querytable to access Yahoo History downloads.
A105: Why this approach does not work for Macintosh:
B106: For what it is worth, the Macintosh version of the MS Office suite of products do in fact maintain a special, shared amongst themselves only, cookie cache.
B107: They automate cookie handling into and from this cache JUST for the Office products and any Querytable activity they might originate.
B109: This cache is not tied to, nor shared with, any browser that might be installed on the MAC. And I have not found anything with HTTP capabilities similar to
B110: MSXML that can work with that Office product cookie cache.
B112: When working in the MAC EXCEL environment, without that MSXML like capability against the office shared cache, l have no mechanism
B113: to obtain a crumb value that would be a valid match to the Yahoo Finance cookie that will be automatically attached to a Querytable call.
B114: This missing facility pretty much eliminates the use of Mac environment Querytables to access the new Yahoo Finance history download interface.
A116: One very low probability potential "Gottcha" for any Querytables approach.
B117: Yahoo Finance cookies typically have an assigned expiration that is a year out (to the second) from the time they are issued.
B118: Further, these cookies are unique. Yours will not match mine.
B120: If for testing purposes, instead of MSXML, you use a fresh instance of Winhttp (Fresh instance = empty cache = no cookie to automatically send)
B121: every time you call an entry level page, the Yahoo server says "What? Entry level page? With no inbound cookie? Get them a cookie!!"
B122: and will send you a new, unique cookie and will imbed the matching crumb value in the response HTML text for each of these "no cookie attached" calls.
B124: The Gottcha: Lets say that the Yahoo Finance cookie presently in the IE cache has an expiration date and time that just happens
B125: to fall between our MSXML call to the summary page to fetch our crumb and our first (or second, or third) Querytable call.
B126: The Querytable call after the cookie expiration may fail with a cookie and crumb validation error.
B128: Querytable error reporting is atrocious. So we will not get any sort of helpful message here. Just a very generalized message like "failed to connect".
B130: The workaround is to simply go to the InputPriceData tab and click the download button.
B131: This second time through the retrieval process should not fail on a mismatch.
B132: After all, you now have a year before the new cookie that just got put into the cache expires!
A134: Calculation and Chart Worksheet Usage Comments:
C135: In General, Items in Bolded BLUE are items you may freely change to play what-if games.
C136: Be sure to have a backup copy of the spreadsheet before you alter anything else.
A138: Features carried forward from the June 2016 version of my T-Tips Template
A139: Added a pair of buttons near cell F12 that will allow the user to step the charting window forward or backward one bar for each click.
A140: I find this to be a good way to test my understanding of the author's ideas as I step through the evolution of the price behavior and the indicators.
B142: First: In the "Help! I would like to plot data" area.
B143: Added button to resolve #NA problems by locating the bar in the input data with a slightly more recent date than what the user actually requested.
B144: I find this particularly useful when I have a general idea of where I want to be date wise. Now I can pick a set of dates "out of the air".
B145: If either (or both) of my date specifications fall between dates that are available in the price history,
B146: this button will resolve them to the dates of the nearest, slightly more recent input bars.
B147: I can then refine my data interval search as necessary from there.
B148: Really great when working with Weekly or Monthly studies!
C149: 2016Jun11 - added logic to the "I would like to chart.." button to detect #N/A values and terminate
C150: gracefully with a message instead of blowing up in the charting logic.
B152: Second: In the "Price Chart Windowing Controls" area. (A11 and A12)
B153: When retrieving data for a new symbol or when changing from daily to weekly or monthly data, there was the possibility that the
B154: residual settings in A11 and A12 would fall outside of the number bars available on the input data tab after the new data retrieval.
B155: In certain combinations, this could create a serious error in the chart sizing logic and crash the spreadsheet.
B156: I have taken this opportunity to update the validity checking logic used in the chart sizing macros
B157: to adjust these values as necessary so that they fall within the boundaries of the newly retrieved input data.
A158: Features carried forward from the October 2015 Traders Tips Template
B159: Improved automation: changes to any of the following will automatically initiate calculations appropriate to reflect a change.
C160: Changing either of cells A11 (pan) or A12 (zoom) will automatically initiate the same chart sizing macros that the manual
C161: "Set Chart" button uses.

Sheet InputPriceData
A1: SPDR S&P 500 ETF (SPY) -NYSEArca (Daily)
IJ2: 241.79
A3: Request Online Yahoo History for: | F3: Market State == > | G3: At close: | H3: 16:00:00 | I3: EDT
A4: Symbol | B4: SPY | D4: Valid | I4: =OFFSET(I4,-2,0,1,1) -> 0
A5: From | B5: 1950-01-01 | D5: Data | AF5: Trailing 12 Div return (Cur Close)
A6: To | B6: =NOW() -> 2019-06-18T09:34:26.380 | D6: Types | E6: =VLOOKUP(B7,D7:E10,2,FALSE) -> d
A7: Data Type | B7: Daily | D7: Daily | E7: d
A8: Crumb | B8: V0WkRW65eQf | D8: Weekly | E8: w
A9: Available Data | D9: Monthly | E9: m
A10: Bar Count: | B10: 6643 | AF10: =OFFSET(AC15,1,0,1,1)/OFFSET(N15,1,0,1,1) -> 0.0180979369
A11: From: | B11: =IF(B10<=0,"",OFFSET(B15,B10,IF(HistReqDataType="v",1,0),1,1)) -> 1993-01-29 | W11: Trailing 12 Month Dividend Returns
A12: To: | B12: =IF(B10<=0,"",IF(HistReqDataType="v",OFFSET(B15,2,1,1,1),OFFSET(B15,1,0,1,1))) -> 2019-06-17 | W12: Raw Close price on Dividend date | X12: Div Year and Month | Y12: Looking for year ago Div Year and Month | Z12: Year ago Div Date we found | AA12: row offset to year ago div Date | AB12: Same month flag | AC12: Trailing 12 Div Total | AD12: Trailing 12 Div return
Q13: Split History | S13: 0 | T13: Running | U13: Dividend History
B14: Raw Data Values | H14: Adjusted | I14: Price Adjust | J14: Vol Adjust | K14: Adjusted Values | P14: Last | Q14: Effective | R14: Shares | T14: Vol Adjust | V14: 109
A15: RelRow | B15: Date | C15: Open | D15: High | E15: Low | F15: Close | G15: Volume | H15: Close | I15: Factor | J15: Factor | K15: Open | L15: High | M15: Low | N15: Close | O15: Volume | P15: Trade | Q15: 43635 | R15: New | S15: Old | T15: 1 | U15: Date | V15: $ / Share
A16: 1 | B16: 2019-06-17 | C16: 289.519989 | D16: 290.220001 | E16: 289.179993 | F16: 289.369995 | G16: 39059600 | H16: 289.369995 | I16: =IF(F16=0,1,H16/F16) -> 1 | J16: =INDEX(OFFSET($T$15,0,0,$S$13+1,1),MATCH(B16,OFFSET($Q$15,0,0,$S$13+1,1),-1)) -> 1 | K16: =ROUND($I16*C16,2) -> 289.52 | L16: =ROUND($I16*D16,2) -> 290.22 | M16: 289.18 | N16: 289.37 | O16: =G16*J16 -> 39059600 | U16: 2019-03-15 | V16: 1.233 | W16: =(INDEX(OFFSET($F$15,1,0,$B$10,1),MATCH(U16,OFFSET($B$15,1,0,$B$10,1),-1))) -> 281.309998 | X16: =YEAR(U16)&RIGHT("0"&MONTH(U16),2) -> 201903 | Y16: =YEAR(U16)-1&RIGHT("0"&MONTH(U16),2) -> 201803 | Z16: =OFFSET(U15,AA16,0,1,1) -> 2018-03-16 | AA16: =MATCH(Y16,OFFSET($X$15,A16,0,$V$14+1-A16,1),-1) -> 5 | AB16: =IF(OR(AND(YEAR(U16)=YEAR(Z16),MONTH(U16)=MONTH(Z16)),MONTH(U16)=MONTH(Z16)),1,0) -> 1 | AC16: =(V16+IF(AA16-AB16=0,0,IFERROR(SUM(OFFSET(V16,1,0,AA16-AB16-1,1)),0))) -> 5.237 | AD16: =AC16/(INDEX(OFFSET($F$15,1,0,$B$10,1),MATCH(U16,OFFSET($B$15,1,0,$B$10,1),-1))) -> 0.01861647306
A17: 2 | B17: 2019-06-14 | C17: 289.26001 | D17: 289.929993 | E17: 288.410004 | F17: 289.26001 | G17: 52324700 | H17: 289.26001 | I17: =IF(F17=0,1,H17/F17) -> 1 | J17: =INDEX(OFFSET($T$15,0,0,$S$13+1,1),MATCH(B17,OFFSET($Q$15,0,0,$S$13+1,1),-1)) -> 1 | K17: =ROUND($I17*C17,2) -> 289.26 | L17: =ROUND($I17*D17,2) -> 289.93 | M17: =ROUND($I17*E17,2) -> 288.41 | N17: =ROUND($I17*F17,2) -> 289.26 | O17: =G17*J17 -> 52324700 | U17: 2018-12-21 | V17: 1.435 | W17: =(INDEX(OFFSET($F$15,1,0,$B$10,1),MATCH(U17,OFFSET($B$15,1,0,$B$10,1),-1))) -> 240.699997 | X17: =YEAR(U17)&RIGHT("0"&MONTH(U17),2) -> 201812 | Y17: =YEAR(U17)-1&RIGHT("0"&MONTH(U17),2) -> 201712 | Z17: =OFFSET(U16,AA17,0,1,1) -> 2017-12-15 | AA17: =MATCH(Y17,OFFSET($X$15,A17,0,$V$14+1-A17,1),-1) -> 5 | AB17: =IF(OR(AND(YEAR(U17)=YEAR(Z17),MONTH(U17)=MONTH(Z17)),MONTH(U17)=MONTH(Z17)),1,0) -> 1 | AC17: =(V17+IF(AA17-AB17=0,0,IFERROR(SUM(OFFSET(V17,1,0,AA17-AB17-1,1)),0))) -> 5.101 | AD17: =AC17/(INDEX(OFFSET($F$15,1,0,$B$10,1),MATCH(U17,OFFSET($B$15,1,0,$B$10,1),-1))) -> 0.02119235589
A18: 3 | B18: 2019-06-13 | C18: 289.399994 | D18: 289.980011 | E18: 288.619995 | F18: 289.579987 | G18: 48945200 | H18: 289.579987 | I18: 1 | J18: 1 | K18: 289.4 | L18: 289.98 | M18: 288.62 | N18: 289.58 | O18: 48945200 | U18: 2018-09-21 | V18: 1.323 | W18: 291.98999 | X18: 201809 | Y18: 201709 | Z18: 2017-09-15 | AA18: 5 | AB18: 1 | AC18: 5.017 | AD18: 0.01718209587
A19: 4 | B19: 2019-06-12 | C19: 288.640015 | D19: 289.26001 | E19: 287.820007 | F19: 288.390015 | G19: 47096300 | H19: 288.390015 | I19: 1 | J19: 1 | K19: 288.64 | L19: 289.26 | M19: 287.82 | N19: 288.39 | O19: 47096300 | U19: 2018-06-15 | V19: 1.246 | W19: 277.130005 | X19: 201806 | Y19: 201706 | Z19: 2017-06-16 | AA19: 5 | AB19: 1 | AC19: 4.929 | AD19: 0.01778587634
A20: 5 | B20: 2019-06-11 | C20: 290.98999 | D20: 291.399994 | E20: 288.179993 | F20: 288.899994 | G20: 58641300 | H20: 288.899994 | I20: 1 | J20: 1 | K20: 290.99 | L20: 291.4 | M20: 288.18 | N20: 288.9 | O20: 58641300 | U20: 2018-03-16 | V20: 1.097 | W20: 274.200012 | X20: 201803 | Y20: 201703 | Z20: 2017-03-17 | AA20: 5 | AB20: 1 | AC20: 4.866 | AD20: 0.0177461699
A21: 6 | B21: 2019-06-10 | C21: 289.369995 | D21: 290.820007 | E21: 288.869995 | F21: 288.970001 | G21: 60799100 | H21: 288.970001 | I21: 1 | J21: 1 | K21: 289.37 | L21: 290.82 | M21: 288.87 | N21: 288.97 | O21: 60799100 | U21: 2017-12-15 | V21: 1.351 | W21: 266.51001 | X21: 201712 | Y21: 201612 | Z21: 2016-12-16 | AA21: 5 | AB21: 1 | AC21: 4.802 | AD21: 0.01801808495
A22: 7 | B22: 2019-06-07 | C22: 285.929993 | D22: 288.850006 | E22: 285.73999 | F22: 287.649994 | G22: 74272200 | H22: 287.649994 | I22: 1 | J22: 1 | K22: 285.93 | L22: 288.85 | M22: 285.74 | N22: 287.65 | O22: 74272200 | U22: 2017-09-15 | V22: 1.235 | W22: 249.190002 | X22: 201709 | Y22: 201609 | Z22: 2016-09-16 | AA22: 5 | AB22: 1 | AC22: 4.77993 | AD22: 0.0191818691
A23: 8 | B23: 2019-06-06 | C23: 283.290009 | D23: 285.549988 | E23: 282.570007 | F23: 284.799988 | G23: 69430400 | H23: 284.799988 | I23: 1 | J23: 1 | K23: 283.29 | L23: 285.55 | M23: 282.57 | N23: 284.8 | O23: 69430400 | U23: 2017-06-16 | V23: 1.183 | W23: 242.639999 | X23: 201706 | Y23: 201606 | Z23: 2016-06-17 | AA23: 5 | AB23: 1 | AC23: 4.627 | AD23: 0.01906940331
A24: 9 | B24: 2019-06-05 | C24: 282.329987 | D24: 282.98999 | E24: 280.320007 | F24: 282.959991 | G24: 71169700 | H24: 282.959991 | I24: 1 | J24: 1 | K24: 282.33 | L24: 282.99 | M24: 280.32 | N24: 282.96 | O24: 71169700 | U24: 2017-03-17 | V24: 1.033 | W24: 237.029999 | X24: 201703 | Y24: 201603 | Z24: 2016-03-18 | AA24: 5 | AB24: 1 | AC24: 4.52244 | AD24: 0.01907961026
A25: 10 | B25: 2019-06-04 | C25: 277.119995 | D25: 280.679993 | E25: 276.619995 | F25: 280.529999 | G25: 77231900 | H25: 280.529999 | I25: 1 | J25: 1 | K25: 277.12 | L25: 280.68 | M25: 276.62 | N25: 280.53 | O25: 77231900 | U25: 2016-12-16 | V25: 1.32893 | W25: 225.039993 | X25: 201612 | Y25: 201512 | Z25: 2015-12-18 | AA25: 5 | AB25: 1 | AC25: 4.53904 | AD25: 0.02016992597
A26: 11 | B26: 2019-06-03 | C26: 275.309998 | D26: 276.549988 | E26: 273.089996 | F26: 274.570007 | G26: 96428000 | H26: 274.570007 | I26: 1 | J26: 1 | K26: 275.31 | L26: 276.55 | M26: 273.09 | N26: 274.57 | O26: 96428000 | U26: 2016-09-16 | V26: 1.08207 | W26: 213.369995 | X26: 201609 | Y26: 201509 | Z26: 2015-09-18 | AA26: 5 | AB26: 1 | AC26: 4.42166 | AD26: 0.02072296998
A27: 12 | B27: 2019-05-31 | C27: 276.200012 | D27: 277.119995 | E27: 275.23999 | F27: 275.269989 | G27: 86862800 | H27: 275.269989 | I27: 1 | J27: 1 | K27: 276.2 | L27: 277.12 | M27: 275.24 | N27: 275.27 | O27: 86862800 | U27: 2016-06-17 | V27: 1.07844 | W27: 206.520004 | X27: 201606 | Y27: 201506 | Z27: 2015-06-19 | AA27: 5 | AB27: 1 | AC27: 4.37302 | AD27: 0.02117480106
A28: 13 | B28: 2019-05-30 | C28: 279.109985 | D28: 280.040009 | E28: 277.809998 | F28: 279.029999 | G28: 62523800 | H28: 279.029999 | I28: 1 | J28: 1 | K28: 279.11 | L28: 280.04 | M28: 277.81 | N28: 279.03 | O28: 62523800 | U28: 2016-03-18 | V28: 1.0496 | W28: 204.380005 | X28: 201603 | Y28: 201503 | Z28: 2015-03-20 | AA28: 5 | AB28: 1 | AC28: 4.32465 | AD28: 0.02115984878
A29: 14 | B29: 2019-05-29 | C29: 278.910004 | D29: 279.359985 | E29: 276.709991 | F29: 278.269989 | G29: 104972900 | H29: 278.269989 | I29: 1 | J29: 1 | K29: 278.91 | L29: 279.36 | M29: 276.71 | N29: 278.27 | O29: 104972900 | U29: 2015-12-18 | V29: 1.21155 | W29: 200.020004 | X29: 201512 | Y29: 201412 | Z29: 2014-12-19 | AA29: 5 | AB29: 1 | AC29: 4.20586 | AD29: 0.02102719686
A30: 15 | B30: 2019-05-28 | C30: 283.089996 | D30: 284.149994 | E30: 280.130005 | F30: 280.149994 | G30: 70029400 | H30: 280.149994 | I30: 1 | J30: 1 | K30: 283.09 | L30: 284.15 | M30: 280.13 | N30: 280.15 | O30: 70029400 | U30: 2015-09-18 | V30: 1.03343 | W30: 195.360001 | X30: 201509 | Y30: 201409 | Z30: 2014-09-19 | AA30: 5 | AB30: 1 | AC30: 4.12923 | AD30: 0.02113651709
A31: 16 | B31: 2019-05-24 | C31: 283.73999 | D31: 284.200012 | E31: 282.089996 | F31: 282.779999 | G31: 55268100 | H31: 282.779999 | I31: 1 | J31: 1 | K31: 283.74 | L31: 284.2 | M31: 282.09 | N31: 282.78 | O31: 55268100 | U31: 2015-06-19 | V31: 1.03007 | W31: 210.809998 | X31: 201506 | Y31: 201406 | Z31: 2014-06-20 | AA31: 5 | AB31: 1 | AC31: 4.03499 | AD31: 0.01914041098
A32: 17 | B32: 2019-05-23 | C32: 283.160004 | D32: 283.209991 | E32: 280.570007 | F32: 282.140015 | G32: 98733800 | H32: 282.140015 | I32: 1 | J32: 1 | K32: 283.16 | L32: 283.21 | M32: 280.57 | N32: 282.14 | O32: 98733800 | U32: 2015-03-20 | V32: 0.93081 | W32: 210.410004 | X32: 201503 | Y32: 201403 | Z32: 2014-03-21 | AA32: 5 | AB32: 1 | AC32: 3.94161 | AD32: 0.01873299712
A33: 18 | B33: 2019-05-22 | C33: 285.450012 | D33: 286.690002 | E33: 285.100006 | F33: 285.630005 | G33: 49482500 | H33: 285.630005 | I33: 1 | J33: 1 | K33: 285.45 | L33: 286.69 | M33: 285.1 | N33: 285.63 | O33: 49482500 | U33: 2014-12-19 | V33: 1.13492 | W33: 206.520004 | X33: 201412 | Y33: 201312 | Z33: 2013-12-20 | AA33: 5 | AB33: 1 | AC33: 3.83541 | AD33: 0.01857161498
A34: 19 | B34: 2019-05-21 | C34: 285.829987 | D34: 286.929993 | E34: 285.549988 | F34: 286.51001 | G34: 46847100 | H34: 286.51001 | I34: 1 | J34: 1 | K34: 285.83 | L34: 286.93 | M34: 285.55 | N34: 286.51 | O34: 46847100 | U34: 2014-09-19 | V34: 0.93919 | W34: 200.699997 | X34: 201409 | Y34: 201309 | Z34: 2013-09-20 | AA34: 5 | AB34: 1 | AC34: 3.68074 | AD34: 0.01833951198
A35: 20 | B35: 2019-05-20 | C35: 284.059998 | D35: 285.959991 | E35: 283.119995 | F35: 283.950012 | G35: 62877600 | H35: 283.950012 | I35: 1 | J35: 1 | K35: 284.06 | L35: 285.96 | M35: 283.12 | N35: 283.95 | O35: 62877600 | U35: 2014-06-20 | V35: 0.93669 | W35: 195.940002 | X35: 201406 | Y35: 201306 | Z35: 2013-06-21 | AA35: 5 | AB35: 1 | AC35: 3.5795 | AD35: 0.01826834727
A36: 21 | B36: 2019-05-17 | C36: 285.140015 | D36: 288.600006 | E36: 285.119995 | F36: 285.839996 | G36: 100353000 | H36: 285.839996 | I36: 1 | J36: 1 | K36: 285.14 | L36: 288.6 | M36: 285.12 | N36: 285.84 | O36: 100353000 | U36: 2014-03-21 | V36: 0.82461 | W36: 186.199997 | X36: 201403 | Y36: 201303 | Z36: 2013-03-15 | AA36: 5 | AB36: 1 | AC36: 3.48181 | AD36: 0.01869930213
A37: 22 | B37: 2019-05-16 | C37: 285.839996 | D37: 289.209991 | E37: 285.76001 | F37: 287.700012 | G37: 76749600 | H37: 287.700012 | I37: 1 | J37: 1 | K37: 285.84 | L37: 289.21 | M37: 285.76 | N37: 287.7 | O37: 76749600 | U37: 2013-12-20 | V37: 0.98025 | W37: 181.559998 | X37: 201312 | Y37: 201212 | Z37: 2012-12-21 | AA37: 5 | AB37: 1 | AC37: 3.3512 | AD37: 0.01845781029
A38: 23 | B38: 2019-05-15 | C38: 281.589996 | D38: 285.769989 | E38: 281.359985 | F38: 285.059998 | G38: 73956400 | H38: 285.059998 | I38: 1 | J38: 1 | K38: 281.59 | L38: 285.77 | M38: 281.36 | N38: 285.06 | O38: 73956400 | U38: 2013-09-20 | V38: 0.83795 | W38: 170.720001 | X38: 201309 | Y38: 201209 | Z38: 2012-09-21 | AA38: 5 | AB38: 1 | AC38: 3.39295 | AD38: 0.01987435555
A39: 24 | B39: 2019-05-14 | C39: 281.98999 | D39: 285.100006 | E39: 281.850006 | F39: 283.399994 | G39: 77003200 | H39: 283.399994 | I39: 1 | J39: 1 | K39: 281.99 | L39: 285.1 | M39: 281.85 | N39: 283.4 | O39: 77003200 | U39: 2013-06-21 | V39: 0.839 | W39: 159.070007 | X39: 201306 | Y39: 201206 | Z39: 2012-06-15 | AA39: 5 | AB39: 1 | AC39: 3.334 | AD39: 0.02095932516
A40: 25 | B40: 2019-05-13 | C40: 282.420013 | D40: 283.48999 | E40: 279.929993 | F40: 280.859985 | G40: 127290500 | H40: 280.859985 | I40: 1 | J40: 1 | K40: 282.42 | L40: 283.49 | M40: 279.93 | N40: 280.86 | O40: 127290500 | U40: 2013-03-15 | V40: 0.694 | W40: 155.830002 | X40: 201303 | Y40: 201203 | Z40: 2012-03-16 | AA40: 5 | AB40: 1 | AC40: 3.183 | AD40: 0.02042610511
A41: 26 | B41: 2019-05-10 | C41: 285.619995 | D41: 288.940002 | E41: 282.299988 | F41: 288.100006 | G41: 112429300 | H41: 288.100006 | I41: 1 | J41: 1 | K41: 285.62 | L41: 288.94 | M41: 282.3 | N41: 288.1 | O41: 112429300 | U41: 2012-12-21 | V41: 1.022 | W41: 142.789993 | X41: 201212 | Y41: 201112 | Z41: 2011-12-16 | AA41: 5 | AB41: 1 | AC41: 3.103 | AD41: 0.02173121474
A42: 27 | B42: 2019-05-09 | C42: 285.230011 | D42: 287.329987 | E42: 283.299988 | F42: 286.660004 | G42: 103471100 | H42: 286.660004 | I42: 1 | J42: 1 | K42: 285.23 | L42: 287.33 | M42: 283.3 | N42: 286.66 | O42: 103471100 | U42: 2012-09-21 | V42: 0.779 | W42: 145.869995 | X42: 201209 | Y42: 201109 | Z42: 2011-09-16 | AA42: 5 | AB42: 1 | AC42: 2.851 | AD42: 0.01954480083
A43: 28 | B43: 2019-05-08 | C43: 287.529999 | D43: 289.429993 | E43: 286.869995 | F43: 287.529999 | G43: 91568300 | H43: 287.529999 | I43: 1 | J43: 1 | K43: 287.53 | L43: 289.43 | M43: 286.87 | N43: 287.53 | O43: 91568300 | U43: 2012-06-15 | V43: 0.688 | W43: 134.139999 | X43: 201206 | Y43: 201106 | Z43: 2011-06-17 | AA43: 5 | AB43: 1 | AC43: 2.697 | AD43: 0.0201058597
A44: 29 | B44: 2019-05-07 | C44: 290.149994 | D44: 290.809998 | E44: 285.809998 | F44: 287.929993 | G44: 144729900 | H44: 287.929993 | I44: 1 | J44: 1 | K44: 290.15 | L44: 290.81 | M44: 285.81 | N44: 287.93 | O44: 144729900 | U44: 2012-03-16 | V44: 0.614 | W44: 140.300003 | X44: 201203 | Y44: 201103 | Z44: 2011-03-18 | AA44: 5 | AB44: 1 | AC44: 2.637 | AD44: 0.01879543794
A45: 30 | B45: 2019-05-06 | C45: 289.25 | D45: 293.309998 | E45: 288.899994 | F45: 292.820007 | G45: 107198100 | H45: 292.820007 | I45: 1 | J45: 1 | K45: 289.25 | L45: 293.31 | M45: 288.9 | N45: 292.82 | O45: 107198100 | U45: 2011-12-16 | V45: 0.77 | W45: 121.589996 | X45: 201112 | Y45: 201012 | Z45: 2010-12-17 | AA45: 5 | AB45: 1 | AC45: 2.576 | AD45: 0.02118595349
A46: 31 | B46: 2019-05-03 | C46: 292.820007 | D46: 294.339996 | E46: 291.299988 | F46: 294.029999 | G46: 56543700 | H46: 294.029999 | I46: 1 | J46: 1 | K46: 292.82 | L46: 294.34 | M46: 291.3 | N46: 294.03 | O46: 56543700 | U46: 2011-09-16 | V46: 0.625 | W46: 121.519997 | X46: 201109 | Y46: 201009 | Z46: 2010-09-17 | AA46: 5 | AB46: 1 | AC46: 2.459 | AD46: 0.0202353527
A47: 32 | B47: 2019-05-02 | C47: 291.679993 | D47: 292.700012 | E47: 289.519989 | F47: 291.179993 | G47: 65030200 | H47: 291.179993 | I47: 1 | J47: 1 | K47: 291.68 | L47: 292.7 | M47: 289.52 | N47: 291.18 | O47: 65030200 | U47: 2011-06-17 | V47: 0.628 | W47: 127.050003 | X47: 201106 | Y47: 201006 | Z47: 2010-06-18 | AA47: 5 | AB47: 1 | AC47: 2.436 | AD47: 0.01917355327
A48: 33 | B48: 2019-05-01 | C48: 294.720001 | D48: 294.950012 | E48: 291.799988 | F48: 291.809998 | G48: 71671900 | H48: 291.809998 | I48: 1 | J48: 1 | K48: 294.72 | L48: 294.95 | M48: 291.8 | N48: 291.81 | O48: 71671900 | U48: 2011-03-18 | V48: 0.553 | W48: 127.760002 | X48: 201103 | Y48: 201003 | Z48: 2010-03-19 | AA48: 5 | AB48: 1 | AC48: 2.339 | AD48: 0.01830776427
A49: 34 | B49: 2019-04-30 | C49: 293.48999 | D49: 294.339996 | E49: 291.920013 | F49: 294.019989 | G49: 81111700 | H49: 294.019989 | I49: 1 | J49: 1 | K49: 293.49 | L49: 294.34 | M49: 291.92 | N49: 294.02 | O49: 81111700 | U49: 2010-12-17 | V49: 0.653 | W49: 124.300003 | X49: 201012 | Y49: 200912 | Z49: 2009-12-18 | AA49: 5 | AB49: 1 | AC49: 2.266 | AD49: 0.01823008806
A50: 35 | B50: 2019-04-29 | C50: 293.51001 | D50: 294.450012 | E50: 293.410004 | F50: 293.869995 | G50: 57197700 | H50: 293.869995 | I50: 1 | J50: 1 | K50: 293.51 | L50: 294.45 | M50: 293.41 | N50: 293.87 | O50: 57197700 | U50: 2010-09-17 | V50: 0.602 | W50: 112.489998 | X50: 201009 | Y50: 200909 | Z50: 2009-09-18 | AA50: 5 | AB50: 1 | AC50: 2.203 | AD50: 0.01958396337
A51: 36 | B51: 2019-04-26 | C51: 292.100006 | D51: 293.48999 | E51: 291.23999 | F51: 293.410004 | G51: 50916400 | H51: 293.410004 | I51: 1 | J51: 1 | K51: 292.1 | L51: 293.49 | M51: 291.24 | N51: 293.41 | O51: 50916400 | U51: 2010-06-18 | V51: 0.531 | W51: 111.730003 | X51: 201006 | Y51: 200906 | Z51: 2009-06-19 | AA51: 5 | AB51: 1 | AC51: 2.109 | AD51: 0.01887586094
A52: 37 | B52: 2019-04-25 | C52: 292.119995 | D52: 292.779999 | E52: 290.730011 | F52: 292.049988 | G52: 57770900 | H52: 292.049988 | I52: 1 | J52: 1 | K52: 292.12 | L52: 292.78 | M52: 290.73 | N52: 292.05 | O52: 57770900 | U52: 2010-03-19 | V52: 0.48 | W52: 115.970001 | X52: 201003 | Y52: 200903 | Z52: 2009-03-20 | AA52: 5 | AB52: 1 | AC52: 2.096 | AD52: 0.01807363958
A53: 38 | B53: 2019-04-24 | C53: 292.790009 | D53: 293.160004 | E53: 292.070007 | F53: 292.230011 | G53: 50392900 | H53: 292.230011 | I53: 1 | J53: 1 | K53: 292.79 | L53: 293.16 | M53: 292.07 | N53: 292.23 | O53: 50392900 | U53: 2009-12-18 | V53: 0.59 | W53: 110.209999 | X53: 200912 | Y53: 200812 | Z53: 2008-12-19 | AA53: 5 | AB53: 1 | AC53: 2.177 | AD53: 0.01975319862
A54: 39 | B54: 2019-04-23 | C54: 290.679993 | D54: 293.140015 | E54: 290.420013 | F54: 292.880005 | G54: 52246600 | H54: 292.880005 | I54: 1 | J54: 1 | K54: 290.68 | L54: 293.14 | M54: 290.42 | N54: 292.88 | O54: 52246600 | U54: 2009-09-18 | V54: 0.508 | W54: 106.720001 | X54: 200909 | Y54: 200809 | Z54: 2008-09-19 | AA54: 5 | AB54: 1 | AC54: 2.306 | AD54: 0.02160794582
A55: 40 | B55: 2019-04-22 | C55: 289.170013 | D55: 290.440002 | E55: 289.070007 | F55: 290.269989 | G55: 40160100 | H55: 290.269989 | I55: 1 | J55: 1 | K55: 289.17 | L55: 290.44 | M55: 289.07 | N55: 290.27 | O55: 40160100 | U55: 2009-06-19 | V55: 0.518 | W55: 92.040001 | X55: 200906 | Y55: 200806 | Z55: 2008-06-20 | AA55: 5 | AB55: 1 | AC55: 2.489 | AD55: 0.02704258988
A56: 41 | B56: 2019-04-18 | C56: 290.100006 | D56: 290.320007 | E56: 288.660004 | F56: 290.019989 | G56: 68708500 | H56: 290.019989 | I56: 1 | J56: 1 | K56: 290.1 | L56: 290.32 | M56: 288.66 | N56: 290.02 | O56: 68708500 | U56: 2009-03-20 | V56: 0.561 | W56: 76.709999 | X56: 200903 | Y56: 200803 | Z56: 2008-03-20 | AA56: 5 | AB56: 1 | AC56: 2.64 | AD56: 0.03441533091
A57: 42 | B57: 2019-04-17 | C57: 291.399994 | D57: 291.429993 | E57: 288.98999 | F57: 289.450012 | G57: 58268300 | H57: 289.450012 | I57: 1 | J57: 1 | K57: 291.4 | L57: 291.43 | M57: 288.99 | N57: 289.45 | O57: 58268300 | U57: 2008-12-19 | V57: 0.719 | W57: 88.190002 | X57: 200812 | Y57: 200712 | Z57: 2007-12-21 | AA57: 5 | AB57: 1 | AC57: 2.721 | AD57: 0.0308538376
A58: 43 | B58: 2019-04-16 | C58: 290.950012 | D58: 291.01001 | E58: 289.5 | F58: 290.160004 | G58: 52153200 | H58: 290.160004 | I58: 1 | J58: 1 | K58: 290.95 | L58: 291.01 | M58: 289.5 | N58: 290.16 | O58: 52153200 | U58: 2008-09-19 | V58: 0.691 | W58: 124.120003 | X58: 200809 | Y58: 200709 | Z58: 2007-09-21 | AA58: 5 | AB58: 1 | AC58: 2.777 | AD58: 0.02237350897
A59: 44 | B59: 2019-04-15 | C59: 290.23999 | D59: 290.350006 | E59: 289.079987 | F59: 289.970001 | G59: 49596700 | H59: 289.970001 | I59: 1 | J59: 1 | K59: 290.24 | L59: 290.35 | M59: 289.08 | N59: 289.97 | O59: 49596700 | U59: 2008-06-20 | V59: 0.669 | W59: 131.580002 | X59: 200806 | Y59: 200706 | Z59: 2007-06-15 | AA59: 5 | AB59: 1 | AC59: 2.805 | AD59: 0.02131782913
A60: 45 | B60: 2019-04-12 | C60: 290 | D60: 290.470001 | E60: 288.26001 | F60: 290.160004 | G60: 69727800 | H60: 290.160004 | I60: 1 | J60: 1 | K60: 290 | L60: 290.47 | M60: 288.26 | N60: 290.16 | O60: 69727800 | U60: 2008-03-20 | V60: 0.642 | W60: 132.080002 | X60: 200803 | Y60: 200703 | Z60: 2007-03-16 | AA60: 5 | AB60: 1 | AC60: 2.792 | AD60: 0.0211387035
A61: 46 | B61: 2019-04-11 | C61: 288.829987 | D61: 288.839996 | E61: 287.579987 | F61: 288.209991 | G61: 55093100 | H61: 288.209991 | I61: 1 | J61: 1 | K61: 288.83 | L61: 288.84 | M61: 287.58 | N61: 288.21 | O61: 55093100 | U61: 2007-12-21 | V61: 0.775 | W61: 148.130005 | X61: 200712 | Y61: 200612 | Z61: 2006-12-15 | AA61: 5 | AB61: 1 | AC61: 2.701 | AD61: 0.01823398305
A62: 47 | B62: 2019-04-10 | C62: 287.769989 | D62: 288.390015 | E62: 287.309998 | F62: 288.290009 | G62: 52601500 | H62: 288.290009 | I62: 1 | J62: 1 | K62: 287.77 | L62: 288.39 | M62: 287.31 | N62: 288.29 | O62: 52601500 | U62: 2007-09-21 | V62: 0.719 | W62: 151.970001 | X62: 200709 | Y62: 200609 | Z62: 2006-09-15 | AA62: 5 | AB62: 1 | AC62: 2.719 | AD62: 0.01789168903
A63: 48 | B63: 2019-04-09 | C63: 287.720001 | D63: 288.079987 | E63: 286.700012 | F63: 287.309998 | G63: 66142300 | H63: 287.309998 | I63: 1 | J63: 1 | K63: 287.72 | L63: 288.08 | M63: 286.7 | N63: 287.31 | O63: 66142300 | U63: 2007-06-15 | V63: 0.656 | W63: 153.070007 | X63: 200706 | Y63: 200606 | Z63: 2006-06-16 | AA63: 5 | AB63: 1 | AC63: 2.579 | AD63: 0.01684849992
A64: 49 | B64: 2019-04-08 | C64: 288.100006 | D64: 288.910004 | E64: 287.369995 | F64: 288.790009 | G64: 53566300 | H64: 288.790009 | I64: 1 | J64: 1 | K64: 288.1 | L64: 288.91 | M64: 287.37 | N64: 288.79 | O64: 53566300 | U64: 2007-03-16 | V64: 0.551 | W64: 138.529999 | X64: 200703 | Y64: 200603 | Z64: 2006-03-17 | AA64: 5 | AB64: 1 | AC64: 2.478 | AD64: 0.01788782226
A65: 50 | B65: 2019-04-05 | C65: 287.920013 | D65: 288.630005 | E65: 287.600006 | F65: 288.570007 | G65: 58621700 | H65: 288.570007 | I65: 1 | J65: 1 | K65: 287.92 | L65: 288.63 | M65: 287.6 | N65: 288.57 | O65: 58621700 | U65: 2006-12-15 | V65: 0.793 | W65: 142.339996 | X65: 200612 | Y65: 200512 | Z65: 2005-12-16 | AA65: 5 | AB65: 1 | AC65: 2.446 | AD65: 0.01718420731
A66: 51 | B66: 2019-04-04 | C66: 286.779999 | D66: 287.459991 | E66: 286.01001 | F66: 287.179993 | G66: 48997500 | H66: 287.179993 | I66: 1 | J66: 1 | K66: 286.78 | L66: 287.46 | M66: 286.01 | N66: 287.18 | O66: 48997500 | U66: 2006-09-15 | V66: 0.579 | W66: 131.960007 | X66: 200609 | Y66: 200509 | Z66: 2005-09-16 | AA66: 5 | AB66: 1 | AC66: 2.325 | AD66: 0.01761897451
A67: 52 | B67: 2019-04-03 | C67: 287.320007 | D67: 287.76001 | E67: 285.75 | F67: 286.420013 | G67: 68243200 | H67: 286.420013 | I67: 1 | J67: 1 | K67: 287.32 | L67: 287.76 | M67: 285.75 | N67: 286.42 | O67: 68243200 | U67: 2006-06-16 | V67: 0.555 | W67: 124.650002 | X67: 200606 | Y67: 200506 | Z67: 2005-06-17 | AA67: 5 | AB67: 1 | AC67: 2.268 | AD67: 0.01819494556
A68: 53 | B68: 2019-04-02 | C68: 286.040009 | D68: 286.230011 | E68: 285.089996 | F68: 285.970001 | G68: 40070400 | H68: 285.970001 | I68: 1 | J68: 1 | K68: 286.04 | L68: 286.23 | M68: 285.09 | N68: 285.97 | O68: 40070400 | U68: 2006-03-17 | V68: 0.519 | W68: 130.619995 | X68: 200603 | Y68: 200503 | Z68: 2005-03-18 | AA68: 5 | AB68: 1 | AC68: 2.201 | AD68: 0.0168504064
A69: 54 | B69: 2019-04-01 | C69: 284.700012 | D69: 286.160004 | E69: 284.399994 | F69: 285.829987 | G69: 77617900 | H69: 285.829987 | I69: 1 | J69: 1 | K69: 284.7 | L69: 286.16 | M69: 284.4 | N69: 285.83 | O69: 77617900 | U69: 2005-12-16 | V69: 0.672 | W69: 126.360001 | X69: 200512 | Y69: 200412 | Z69: 2004-12-17 | AA69: 5 | AB69: 1 | AC69: 2.149 | AD69: 0.01700696409
A70: 55 | B70: 2019-03-29 | C70: 282.390015 | D70: 282.839996 | E70: 281.140015 | F70: 282.480011 | G70: 82186800 | H70: 282.480011 | I70: 1 | J70: 1 | K70: 282.39 | L70: 282.84 | M70: 281.14 | N70: 282.48 | O70: 82186800 | U70: 2005-09-16 | V70: 0.522 | W70: 123.5 | X70: 200509 | Y70: 200409 | Z70: 2004-09-17 | AA70: 6 | AB70: 1 | AC70: 2.396 | AD70: 0.01940080972
A71: 56 | B71: 2019-03-28 | C71: 280.350006 | D71: 281.209991 | E71: 279.070007 | F71: 280.709991 | G71: 56238500 | H71: 280.709991 | I71: 1 | J71: 1 | K71: 280.35 | L71: 281.21 | M71: 279.07 | N71: 280.71 | O71: 56238500 | U71: 2005-06-17 | V71: 0.488 | W71: 121.360001 | X71: 200506 | Y71: 200406 | Z71: 2004-06-18 | AA71: 6 | AB71: 1 | AC71: 2.343 | AD71: 0.01930619628
A72: 57 | B72: 2019-03-27 | C72: 281.109985 | D72: 281.76001 | E72: 277.929993 | F72: 279.649994 | G72: 72224700 | H72: 279.649994 | I72: 1 | J72: 1 | K72: 281.11 | L72: 281.76 | M72: 277.93 | N72: 279.65 | O72: 72224700 | U72: 2005-03-18 | V72: 0.467 | W72: 118.540001 | X72: 200503 | Y72: 200403 | Z72: 2004-03-19 | AA72: 6 | AB72: 1 | AC72: 2.269 | AD72: 0.01914121799
A73: 58 | B73: 2019-03-26 | C73: 280.98999 | D73: 282.179993 | E73: 279.559998 | F73: 281.119995 | G73: 68125900 | H73: 281.119995 | I73: 1 | J73: 1 | K73: 280.99 | L73: 282.18 | M73: 279.56 | N73: 281.12 | O73: 68125900 | U73: 2004-12-17 | V73: 0.568 | W73: 119.440002 | X73: 200412 | Y73: 200312 | Z73: 2003-12-19 | AA73: 6 | AB73: 1 | AC73: 2.197 | AD73: 0.0183941725
A74: 59 | B74: 2019-03-25 | C74: 278.869995 | D74: 280.190002 | E74: 277.640015 | F74: 279.040009 | G74: 85575200 | H74: 279.040009 | I74: 1 | J74: 1 | K74: 278.87 | L74: 280.19 | M74: 277.64 | N74: 279.04 | O74: 85575200 | U74: 2004-11-15 | V74: 0.351 | W74: 118.730003 | X74: 200411 | Y74: 200311 | Z74: 2003-12-19 | AA74: 5 | AB74: 0 | AC74: 2.145 | AD74: 0.01806620017
A75: 60 | B75: 2019-03-22 | C75: 283.220001 | D75: 283.799988 | E75: 279.179993 | F75: 279.25 | G75: 122659300 | H75: 279.25 | I75: 1 | J75: 1 | K75: 283.22 | L75: 283.8 | M75: 279.18 | N75: 279.25 | O75: 122659300 | U75: 2004-09-17 | V75: 0.469 | W75: 113.150002 | X75: 200409 | Y75: 200309 | Z75: 2003-09-19 | AA75: 5 | AB75: 1 | AC75: 1.794 | AD75: 0.01585505938
A76: 61 | B76: 2019-03-21 | C76: 280.640015 | D76: 285.179993 | E76: 280.589996 | F76: 284.730011 | G76: 79550400 | H76: 284.730011 | I76: 1 | J76: 1 | K76: 280.64 | L76: 285.18 | M76: 280.59 | N76: 284.73 | O76: 79550400 | U76: 2004-06-18 | V76: 0.414 | W76: 113.629997 | X76: 200406 | Y76: 200306 | Z76: 2003-06-20 | AA76: 5 | AB76: 1 | AC76: 1.725 | AD76: 0.01518085053
A77: 62 | B77: 2019-03-20 | C77: 282.160004 | D77: 283.5 | E77: 280.320007 | F77: 281.549988 | G77: 84609200 | H77: 281.549988 | I77: 1 | J77: 1 | K77: 282.16 | L77: 283.5 | M77: 280.32 | N77: 281.55 | O77: 84609200 | U77: 2004-03-19 | V77: 0.395 | W77: 111.059998 | X77: 200403 | Y77: 200303 | Z77: 2003-03-21 | AA77: 5 | AB77: 1 | AC77: 1.671 | AD77: 0.01504592139
A78: 63 | B78: 2019-03-19 | C78: 283.51001 | D78: 284.359985 | E78: 281.410004 | F78: 282.399994 | G78: 90268100 | H78: 282.399994 | I78: 1 | J78: 1 | K78: 283.51 | L78: 284.36 | M78: 281.41 | N78: 282.4 | O78: 90268100 | U78: 2003-12-19 | V78: 0.516 | W78: 108.900002 | X78: 200312 | Y78: 200212 | Z78: 2002-12-20 | AA78: 5 | AB78: 1 | AC78: 1.63 | AD78: 0.01496786015
A79: 64 | B79: 2019-03-18 | C79: 281.549988 | D79: 282.660004 | E79: 281.299988 | F79: 282.329987 | G79: 62199800 | H79: 282.329987 | I79: 1 | J79: 1 | K79: 281.55 | L79: 282.66 | M79: 281.3 | N79: 282.33 | O79: 62199800 | U79: 2003-09-19 | V79: 0.4 | W79: 103.669998 | X79: 200309 | Y79: 200209 | Z79: 2002-09-20 | AA79: 5 | AB79: 1 | AC79: 1.55 | AD79: 0.01495128803
A80: 65 | B80: 2019-03-15 | C80: 280.540009 | D80: 282.209991 | E80: 280.329987 | F80: 281.309998 | G80: 81309000 | H80: 281.309998 | I80: 1 | J80: 1 | K80: 280.54 | L80: 282.21 | M80: 280.33 | N80: 281.31 | O80: 81309000 | U80: 2003-06-20 | V80: 0.36 | W80: 99.440002 | X80: 200306 | Y80: 200206 | Z80: 2002-06-21 | AA80: 5 | AB80: 1 | AC80: 1.528 | AD80: 0.01536604957
A81: 66 | B81: 2019-03-14 | C81: 281.369995 | D81: 281.839996 | E81: 280.670013 | F81: 281.160004 | G81: 67518400 | H81: 279.927002 | I81: =IF(F81=0,1,H81/F81) -> 0.9956145896 | J81: =INDEX(OFFSET($T$15,0,0,$S$13+1,1),MATCH(B81,OFFSET($Q$15,0,0,$S$13+1,1),-1)) -> 1 | K81: =ROUND($I81*C81,2) -> 280.14 | L81: =ROUND($I81*D81,2) -> 280.6 | M81: =ROUND($I81*E81,2) -> 279.44 | N81: =ROUND($I81*F81,2) -> 279.93 | O81: =G81*J81 -> 67518400 | U81: 2003-03-21 | V81: 0.354 | W81: =(INDEX(OFFSET($F$15,1,0,$B$10,1),MATCH(U81,OFFSET($B$15,1,0,$B$10,1),-1))) -> 89.669998 | X81: =YEAR(U81)&RIGHT("0"&MONTH(U81),2) -> 200303 | Y81: =YEAR(U81)-1&RIGHT("0"&MONTH(U81),2) -> 200203 | Z81: =OFFSET(U80,AA81,0,1,1) -> 2002-03-15 | AA81: =MATCH(Y81,OFFSET($X$15,A81,0,$V$14+1-A81,1),-1) -> 5 | AB81: =IF(OR(AND(YEAR(U81)=YEAR(Z81),MONTH(U81)=MONTH(Z81)),MONTH(U81)=MONTH(Z81)),1,0) -> 1 | AC81: =(V81+IF(AA81-AB81=0,0,IFERROR(SUM(OFFSET(V81,1,0,AA81-AB81-1,1)),0))) -> 1.521 | AD81: =AC81/(INDEX(OFFSET($F$15,1,0,$B$10,1),MATCH(U81,OFFSET($B$15,1,0,$B$10,1),-1))) -> 0.01696219509
A82: 67 | B82: 2019-03-13 | C82: 280.480011 | D82: 282.380005 | E82: 280.299988 | F82: 281.339996 | G82: 80639200 | H82: 280.106201 | I82: 0.9956145766 | J82: 1 | K82: 279.25 | L82: 281.14 | M82: 279.07 | N82: 280.11 | O82: 80639200 | U82: 2002-12-20 | V82: 0.436 | W82: 89.989998 | X82: 200212 | Y82: 200112 | Z82: 2001-12-21 | AA82: 5 | AB82: 1 | AC82: 1.498 | AD82: 0.0166462944
A83: 68 | B83: 2019-03-12 | C83: 279.059998 | D83: 280.070007 | E83: 278.850006 | F83: 279.48999 | G83: 79667500 | H83: 278.264313 | I83: 0.9956145943 | J83: 1 | K83: 277.84 | L83: 278.84 | M83: 277.63 | N83: 278.26 | O83: 79667500 | U83: 2002-09-20 | V83: 0.378 | W83: 84.349998 | X83: 200209 | Y83: 200109 | Z83: 2001-09-21 | AA83: 5 | AB83: 1 | AC83: 1.455 | AD83: 0.01724955583
A84: 69 | B84: 2019-03-11 | C84: 275.26001 | D84: 278.619995 | E84: 275.230011 | F84: 278.440002 | G84: 65098900 | H84: 277.218933 | I84: 0.9956146064 | J84: 1 | K84: 274.05 | L84: 277.4 | M84: 274.02 | N84: 277.22 | O84: 65098900 | U84: 2002-06-21 | V84: 0.353 | W84: 99.279999 | X84: 200206 | Y84: 200106 | Z84: 2001-06-15 | AA84: 5 | AB84: 1 | AC84: 1.446 | AD84: 0.01456486719
A85: 70 | B85: 2019-03-08 | C85: 272.940002 | D85: 274.649994 | E85: 272.420013 | F85: 274.459991 | G85: 85795800 | H85: 273.256378 | I85: 0.995614614 | J85: 1 | K85: 271.74 | L85: 273.45 | M85: 271.23 | N85: 273.26 | O85: 85795800 | U85: 2002-03-15 | V85: 0.331 | W85: 116.650002 | X85: 200203 | Y85: 200103 | Z85: 2001-03-16 | AA85: 5 | AB85: 1 | AC85: 1.439 | AD85: 0.0123360478
A86: 71 | B86: 2019-03-07 | C86: 276.829987 | D86: 276.98999 | E86: 274.070007 | F86: 275.01001 | G86: 94710600 | H86: 273.803986 | I86: 0.9956146178 | J86: 1 | K86: 275.62 | L86: 275.78 | M86: 272.87 | N86: 273.8 | O86: 94710600 | U86: 2001-12-21 | V86: 0.393 | W86: 114.949997 | X86: 200112 | Y86: 200012 | Z86: 2000-12-27 | AA86: 5 | AB86: 1 | AC86: 1.424 | AD86: 0.0123879951
A87: 72 | B87: 2019-03-06 | C87: 279.149994 | D87: 279.160004 | E87: 276.970001 | F87: 277.329987 | G87: 75039800 | H87: 276.11377 | I87: 0.9956145492 | J87: 1 | K87: 277.93 | L87: 277.94 | M87: 275.76 | N87: 276.11 | O87: 75039800 | U87: 2001-09-21 | V87: 0.369 | W87: 97.279999 | X87: 200109 | Y87: 200009 | Z87: 2000-09-15 | AA87: 6 | AB87: 1 | AC87: 1.442 | AD87: 0.01482319094
A88: 73 | B88: 2019-03-05 | C88: 279.540009 | D88: 279.76001 | E88: 278.410004 | F88: 279.019989 | G88: 59114600 | H88: 277.796387 | I88: 0.9956146439 | J88: 1 | K88: 278.31 | L88: 278.53 | M88: 277.19 | N88: 277.8 | O88: 59114600 | U88: 2001-06-15 | V88: 0.346 | W88: 121.849998 | X88: 200106 | Y88: 200006 | Z88: 2000-06-16 | AA88: 7 | AB88: 1 | AC88: 1.448 | AD88: 0.01188346347
A89: 74 | B89: 2019-03-04 | C89: 281.600006 | D89: 281.869995 | E89: 276.839996 | F89: 279.399994 | G89: 106494600 | H89: 278.174713 | I89: 0.995614599 | J89: 1 | K89: 280.37 | L89: 280.63 | M89: 275.63 | N89: 278.17 | O89: 106494600 | U89: 2001-03-16 | V89: 0.316 | W89: 115.010002 | X89: 200103 | Y89: 200003 | Z89: 2000-03-17 | AA89: 7 | AB89: 1 | AC89: 1.45 | AD89: 0.01260759912
A90: 75 | B90: 2019-03-01 | C90: 280.440002 | D90: 280.880005 | E90: 278.820007 | F90: 280.420013 | G90: 78880500 | H90: 279.190247 | I90: 0.9956145569 | J90: 1 | K90: 279.21 | L90: 279.65 | M90: 277.6 | N90: 279.19 | O90: 78880500 | U90: 2000-12-27 | V90: 0 | W90: 133.3125 | X90: 200012 | Y90: 199912 | Z90: 1999-12-17 | AA90: 7 | AB90: 1 | AC90: 1.505 | AD90: 0.01128926395
A91: 76 | B91: 2019-02-28 | C91: 278.959991 | D91: 279.450012 | E91: 278.320007 | F91: 278.679993 | G91: 69268300 | H91: 277.457855 | I91: 0.995614547 | J91: 1 | K91: 277.74 | L91: 278.22 | M91: 277.1 | N91: 277.46 | O91: 69268300 | U91: 2000-12-15 | V91: 0.411 | W91: 130.968704 | X91: 200012 | Y91: 199912 | Z91: 1999-12-17 | AA91: 6 | AB91: 1 | AC91: 1.505 | AD91: 0.0114912949
A92: 77 | B92: 2019-02-27 | C92: 278.519989 | D92: 279.589996 | E92: 277.480011 | F92: 279.200012 | G92: 56921600 | H92: 277.975616 | I92: 0.9956146277 | J92: 1 | K92: 277.3 | L92: 278.36 | M92: 276.26 | N92: 277.98 | O92: 56921600 | U92: 2000-09-15 | V92: 0.375 | W92: 146 | X92: 200009 | Y92: 199909 | Z92: 1999-09-17 | AA92: 6 | AB92: 1 | AC92: 1.442 | AD92: 0.009876712329
A93: 78 | B93: 2019-02-26 | C93: 279.130005 | D93: 280.299988 | E93: 278.899994 | F93: 279.320007 | G93: 56844100 | H93: 278.095062 | I93: 0.9956145462 | J93: 1 | K93: 277.91 | L93: 279.07 | M93: 277.68 | N93: 278.1 | O93: 56844100 | U93: 2000-09-14 | V93: 0 | W93: 149.640594 | X93: 200009 | Y93: 199909 | Z93: 1999-09-17 | AA93: 5 | AB93: 1 | AC93: 1.067 | AD93: 0.0071304181
A94: 79 | B94: 2019-02-25 | C94: 280.730011 | D94: 281.309998 | E94: 279.429993 | F94: 279.519989 | G94: 69030700 | H94: 278.294189 | I94: 0.9956146249 | J94: 1 | K94: 279.5 | L94: 280.08 | M94: 278.2 | N94: 278.29 | O94: 69030700 | U94: 2000-06-16 | V94: 0.348 | W94: 146.593704 | X94: 200006 | Y94: 199906 | Z94: 1999-06-18 | AA94: 5 | AB94: 1 | AC94: 1.439 | AD94: 0.009816246952
A95: 80 | B95: 2019-02-22 | C95: 278.109985 | D95: 279.359985 | E95: 277.399994 | F95: 279.140015 | G95: 78114600 | H95: 277.915863 | I95: 0.9956145592 | J95: 1 | K95: 276.89 | L95: 278.13 | M95: 276.18 | N95: 277.92 | O95: 78114600 | U95: 2000-03-17 | V95: 0.371 | W95: 146.9375 | X95: 200003 | Y95: 199903 | Z95: 1999-03-19 | AA95: 5 | AB95: 1 | AC95: 1.496 | AD95: 0.01018119949
A96: 81 | B96: 2019-02-21 | C96: 277.700012 | D96: 278.100006 | E96: 276.350006 | F96: 277.420013 | G96: 64214700 | H96: 276.2034 | I96: 0.9956145449 | J96: 1 | K96: 276.48 | L96: 276.88 | M96: 275.14 | N96: 276.2 | O96: 64214700 | U96: 1999-12-17 | V96: 0.348 | W96: 142.6875 | X96: 199912 | Y96: 199812 | Z96: 1998-12-18 | AA96: 5 | AB96: 1 | AC96: 1.445 | AD96: 0.01012702584
A97: 82 | B97: 2019-02-20 | C97: 277.809998 | D97: 278.920013 | E97: 277.25 | F97: 278.410004 | G97: 76610800 | H97: 277.189056 | I97: 0.9956145685 | J97: 1 | K97: 276.59 | L97: 277.7 | M97: 276.03 | N97: 277.19 | O97: 76610800 | U97: 1999-09-17 | V97: 0.372 | W97: 133.75 | X97: 199909 | Y97: 199809 | Z97: 1998-09-18 | AA97: 5 | AB97: 1 | AC97: 1.489 | AD97: 0.01113271028
A98: 83 | B98: 2019-02-19 | C98: 276.480011 | D98: 278.579987 | E98: 276.470001 | F98: 277.850006 | G98: 59120800 | H98: 276.631531 | I98: 0.9956146303 | J98: 1 | K98: 275.27 | L98: 277.36 | M98: 275.26 | N98: 276.63 | O98: 59120800 | U98: 1999-06-18 | V98: 0.405 | W98: 134.3125 | X98: 199906 | Y98: 199806 | Z98: 1998-06-19 | AA98: 5 | AB98: 1 | AC98: 1.476 | AD98: 0.01098929735
A99: 84 | B99: 2019-02-15 | C99: 276.359985 | D99: 277.410004 | E99: 276.130005 | F99: 277.369995 | G99: 97088700 | H99: 276.153625 | I99: 0.9956146302 | J99: 1 | K99: 275.15 | L99: 276.19 | M99: 274.92 | N99: 276.15 | O99: 97088700 | U99: 1999-03-19 | V99: 0.32 | W99: 129.6875 | X99: 199903 | Y99: 199803 | Z99: 1998-03-20 | AA99: 5 | AB99: 1 | AC99: 1.423 | AD99: 0.01097253012
A100: 85 | B100: 2019-02-14 | C100: 273.779999 | D100: 275.640015 | E100: 272.869995 | F100: 274.380005 | G100: 83234400 | H100: 273.176727 | I100: 0.9956145565 | J100: 1 | K100: 272.58 | L100: 274.43 | M100: 271.67 | N100: 273.18 | O100: 83234400 | U100: 1998-12-18 | V100: 0.392 | W100: 118.5 | X100: 199812 | Y100: 199712 | Z100: 1997-12-19 | AA100: 5 | AB100: 1 | AC100: 1.416 | AD100: 0.01194936709
A101: 86 | B101: 2019-02-13 | C101: 275.029999 | D101: 275.929993 | E101: 274.559998 | F101: 274.98999 | G101: 65277200 | H101: 273.784058 | I101: 0.9956146331 | J101: 1 | K101: 273.82 | L101: 274.72 | M101: 273.36 | N101: 273.78 | O101: 65277200 | U101: 1998-09-18 | V101: 0.359 | W101: 102.093697 | X101: 199809 | Y101: 199709 | Z101: 1997-09-19 | AA101: 5 | AB101: 1 | AC101: 1.404 | AD101: 0.01375207325
A102: 87 | B102: 2019-02-12 | C102: 272.420013 | D102: 274.519989 | E102: 272.339996 | F102: 274.100006 | G102: 72270200 | H102: 272.89798 | I102: 0.9956146444 | J102: 1 | K102: 271.23 | L102: 273.32 | M102: 271.15 | N102: 272.9 | O102: 72270200 | U102: 1998-06-19 | V102: 0.352 | W102: 110.0625 | X102: 199806 | Y102: 199706 | Z102: 1997-06-20 | AA102: 5 | AB102: 1 | AC102: 1.393 | AD102: 0.0126564452
A103: 88 | B103: 2019-02-11 | C103: 271.200012 | D103: 271.48999 | E103: 270.029999 | F103: 270.619995 | G103: 68021400 | H103: 269.433228 | I103: 0.9956146367 | J103: 1 | K103: 270.01 | L103: 270.3 | M103: 268.85 | N103: 269.43 | O103: 68021400 | U103: 1998-03-20 | V103: 0.313 | W103: 109.875 | X103: 199803 | Y103: 199703 | Z103: 1997-03-21 | AA103: 5 | AB103: 1 | AC103: 1.391 | AD103: 0.01265984073
A104: 89 | B104: 2019-02-08 | C104: 268.75 | D104: 270.579987 | E104: 267.829987 | F104: 270.470001 | G104: 75788900 | H104: 269.283875 | I104: 0.9956145746 | J104: 1 | K104: 267.57 | L104: 269.39 | M104: 266.66 | N104: 269.28 | O104: 75788900 | U104: 1997-12-19 | V104: 0.38 | W104: 94.781197 | X104: 199712 | Y104: 199612 | Z104: 1996-12-20 | AA104: 5 | AB104: 1 | AC104: 1.377 | AD104: 0.01452819803
A105: 90 | B105: 2019-02-07 | C105: 270.940002 | D105: 271.549988 | E105: 268.290009 | F105: 270.140015 | G105: 95482000 | H105: 268.955353 | I105: 0.9956146371 | J105: 1 | K105: 269.75 | L105: 270.36 | M105: 267.11 | N105: 268.96 | O105: 95482000 | U105: 1997-09-19 | V105: 0.348 | W105: 95.031197 | X105: 199709 | Y105: 199609 | Z105: 1996-09-20 | AA105: 5 | AB105: 1 | AC105: 1.364 | AD105: 0.0143531813
A106: 91 | B106: 2019-02-06 | C106: 272.790009 | D106: 273.339996 | E106: 271.920013 | F106: 272.73999 | G106: 58347800 | H106: 271.543915 | I106: 0.9956145962 | J106: 1 | K106: 271.59 | L106: 272.14 | M106: 270.73 | N106: 271.54 | O106: 58347800 | U106: 1997-06-20 | V106: 0.35 | W106: 89.578102 | X106: 199706 | Y106: 199606 | Z106: 1996-06-21 | AA106: 5 | AB106: 1 | AC106: 1.368 | AD106: 0.01527158948
A107: 92 | B107: 2019-02-05 | C107: 272.440002 | D107: 273.440002 | E107: 271.880005 | F107: 273.100006 | G107: 79552800 | H107: 271.902344 | I107: 0.9956145662 | J107: 1 | K107: 271.25 | L107: 272.24 | M107: 270.69 | N107: 271.9 | O107: 79552800 | U107: 1997-03-21 | V107: 0.299 | W107: 78.4375 | X107: 199703 | Y107: 199603 | Z107: 1996-03-15 | AA107: 5 | AB107: 1 | AC107: 1.369 | AD107: 0.01745338645
A108: 93 | B108: 2019-02-04 | C108: 270.109985 | D108: 272.029999 | E108: 269.359985 | F108: 271.959991 | G108: 60744800 | H108: 270.767334 | I108: 0.9956145866 | J108: 1 | K108: 268.93 | L108: 270.84 | M108: 268.18 | N108: 270.77 | O108: 60744800 | U108: 1996-12-20 | V108: 0.367 | W108: 74.843697 | X108: 199612 | Y108: 199512 | Z108: 1995-12-15 | AA108: 5 | AB108: 1 | AC108: 1.355 | AD108: 0.01810439695
A109: 94 | B109: 2019-02-01 | C109: 270.149994 | D109: 271.200012 | E109: 269.179993 | F109: 270.059998 | G109: 85782500 | H109: 268.875671 | I109: 0.9956145782 | J109: 1 | K109: 268.97 | L109: 270.01 | M109: 268 | N109: 268.88 | O109: 85782500 | U109: 1996-09-20 | V109: 0.352 | W109: 68.640602 | X109: 199609 | Y109: 199509 | Z109: 1995-09-15 | AA109: 5 | AB109: 1 | AC109: 1.37 | AD109: 0.01995903241
A110: 95 | B110: 2019-01-31 | C110: 267.51001 | D110: 270.470001 | E110: 267.269989 | F110: 269.929993 | G110: 104012100 | H110: 268.746246 | I110: 0.9956146148 | J110: 1 | K110: 266.34 | L110: 269.28 | M110: 266.1 | N110: 268.75 | O110: 104012100 | U110: 1996-06-21 | V110: 0.351 | W110: 66.8125 | X110: 199606 | Y110: 199506 | Z110: 1995-06-16 | AA110: 5 | AB110: 1 | AC110: 1.33 | AD110: 0.01990645463
A111: 96 | B111: 2019-01-30 | C111: 265.100006 | D111: 268.519989 | E111: 264.25 | F111: 267.579987 | G111: 92473700 | H111: 266.406525 | I111: 0.9956145375 | J111: 1 | K111: 263.94 | L111: 267.34 | M111: 263.09 | N111: 266.41 | O111: 92473700 | U111: 1996-03-15 | V111: 0.285 | W111: 64.125 | X111: 199603 | Y111: 199503 | Z111: 1995-03-17 | AA111: 5 | AB111: 1 | AC111: 1.295 | AD111: 0.02019493177
A112: 97 | B112: 2019-01-29 | C112: 263.920013 | D112: 264.549988 | E112: 262.480011 | F112: 263.410004 | G112: 66136300 | H112: 262.254852 | I112: 0.9956146237 | J112: 1 | K112: 262.76 | L112: 263.39 | M112: 261.33 | N112: 262.25 | O112: 66136300 | U112: 1995-12-15 | V112: 0.382 | W112: 61.8125 | X112: 199512 | Y112: 199412 | Z112: 1994-12-16 | AA112: 5 | AB112: 1 | AC112: 1.278 | AD112: 0.02067542973
A113: 98 | B113: 2019-01-28 | C113: 263.390015 | D113: 263.829987 | E113: 261.790009 | F113: 263.76001 | G113: 85613700 | H113: 262.603302 | I113: 0.9956145437 | J113: 1 | K113: 262.23 | L113: 262.67 | M113: 260.64 | N113: 262.6 | O113: 85613700 | U113: 1995-09-15 | V113: 0.312 | W113: 58.4375 | X113: 199509 | Y113: 199409 | Z113: 1994-09-19 | AA113: 5 | AB113: 1 | AC113: 1.259 | AD113: 0.02154438503
A114: 99 | B114: 2019-01-25 | C114: 265.609985 | D114: 266.700012 | E114: 263.660004 | F114: 265.779999 | G114: 96883400 | H114: 264.614441 | I114: 0.9956145759 | J114: 1 | K114: 264.45 | L114: 265.53 | M114: 262.5 | N114: 264.61 | O114: 96883400 | U114: 1995-06-16 | V114: 0.316 | W114: 53.9687 | X114: 199506 | Y114: 199406 | Z114: 1994-06-17 | AA114: 6 | AB114: 1 | AC114: 1.235 | AD114: 0.0228836344
A115: 100 | B115: 2019-01-24 | C115: 263.209991 | D115: 264.200012 | E115: 262.079987 | F115: 263.549988 | G115: 59204100 | H115: 262.394226 | I115: 0.9956146384 | J115: 1 | K115: 262.06 | L115: 263.04 | M115: 260.93 | N115: 262.39 | O115: 59204100 | U115: 1995-03-17 | V115: 0.268 | W115: 49.5625 | X115: 199503 | Y115: 199403 | Z115: 1994-03-18 | AA115: 6 | AB115: 1 | AC115: 1.224 | AD115: 0.02469609079
A116: 101 | B116: 2019-01-23 | C116: 264.01001 | D116: 264.790009 | E116: 260.660004 | F116: 263.410004 | G116: 86030300 | H116: 262.254852 | I116: 0.9956146237 | J116: 1 | K116: 262.85 | L116: 263.63 | M116: 259.52 | N116: 262.25 | O116: 86030300 | U116: 1994-12-16 | V116: 0.363 | W116: 45.75 | X116: 199412 | Y116: 199312 | Z116: 1993-12-17 | AA116: 6 | AB116: 1 | AC116: 1.227 | AD116: 0.02681967213
A117: 102 | B117: 2019-01-22 | C117: 264.820007 | D117: 265.059998 | E117: 261.059998 | F117: 262.859985 | G117: 115531200 | H117: 261.707245 | I117: 0.9956146235 | J117: 1 | K117: 263.66 | L117: 263.9 | M117: 259.92 | N117: 261.71 | O117: 115531200 | U117: 1994-09-19 | V117: 0 | W117: 47.0625 | X117: 199409 | Y117: 199309 | Z117: 1993-09-17 | AA117: 6 | AB117: 1 | AC117: 1.181 | AD117: 0.02509428951
A118: 103 | B118: 2019-01-18 | C118: 264.980011 | D118: 266.980011 | E118: 263 | F118: 266.459991 | G118: 127900300 | H118: 265.291443 | I118: 0.9956145461 | J118: 1 | K118: 263.82 | L118: 265.81 | M118: 261.85 | N118: 265.29 | O118: 127900300 | U118: 1994-09-16 | V118: 0.288 | W118: 47.015598 | X118: 199409 | Y118: 199309 | Z118: 1993-09-17 | AA118: 5 | AB118: 1 | AC118: 1.181 | AD118: 0.02511932317
A119: 104 | B119: 2019-01-17 | C119: 260.01001 | D119: 263.920013 | E119: 259.959991 | F119: 262.959991 | G119: 96118400 | H119: 261.806793 | I119: 0.9956145496 | J119: 1 | K119: 258.87 | L119: 262.76 | M119: 258.82 | N119: 261.81 | O119: 96118400 | U119: 1994-06-17 | V119: 0.305 | W119: 45.875 | X119: 199406 | Y119: 199306 | Z119: 1993-06-18 | AA119: 5 | AB119: 1 | AC119: 1.179 | AD119: 0.02570027248
A120: 105 | B120: 2019-01-16 | C120: 260.829987 | D120: 261.970001 | E120: 260.600006 | F120: 260.980011 | G120: 77636700 | H120: 259.83551 | I120: 0.9956146028 | J120: 1 | K120: 259.69 | L120: 260.82 | M120: 259.46 | N120: 259.84 | O120: 77636700 | U120: 1994-03-18 | V120: 0.271 | W120: 46.9687 | X120: 199403 | Y120: 199303 | Z120: 1993-03-19 | AA120: 5 | AB120: 1 | AC120: 1.192 | AD120: 0.0253786032
A121: 106 | B121: 2019-01-15 | C121: 257.820007 | D121: 260.700012 | E121: 257.809998 | F121: 260.350006 | G121: 85208300 | H121: 259.208252 | I121: 0.9956145421 | J121: 1 | K121: 256.69 | L121: 259.56 | M121: 256.68 | N121: 259.21 | O121: 85208300 | U121: 1993-12-17 | V121: 0.317 | W121: 46.5625 | X121: 199312 | Y121: 199212 | Z121: 1993-03-19 | AA121: 4 | AB121: 0 | AC121: 1.134 | AD121: 0.02435436242
A122: 107 | B122: 2019-01-14 | C122: 256.859985 | D122: 258.299988 | E122: 256.410004 | F122: 257.399994 | G122: 70908200 | H122: 256.271179 | I122: 0.9956145492 | J122: 1 | K122: 255.73 | L122: 257.17 | M122: 255.29 | N122: 256.27 | O122: 70908200 | U122: 1993-09-17 | V122: 0.286 | W122: 45.8125 | X122: 199309 | Y122: 199209 | Z122: 1993-03-19 | AA122: 3 | AB122: 0 | AC122: 0.817 | AD122: 0.01783356071
A123: 108 | B123: 2019-01-11 | C123: 257.679993 | D123: 259.01001 | E123: 257.029999 | F123: 258.980011 | G123: 73858100 | H123: 257.844269 | I123: 0.9956145573 | J123: 1 | K123: 256.55 | L123: 257.87 | M123: 255.9 | N123: 257.84 | O123: 73858100 | U123: 1993-06-18 | V123: 0.318 | W123: 44.5 | X123: 199306 | Y123: 199206 | Z123: 1993-03-19 | AA123: 2 | AB123: 0 | AC123: 0.531 | AD123: 0.01193258427
A124: 109 | B124: 2019-01-10 | C124: 256.26001 | D124: 259.160004 | E124: 255.5 | F124: 258.880005 | G124: 96823900 | H124: 257.74472 | I124: 0.9956146285 | J124: 1 | K124: 255.14 | L124: 258.02 | M124: 254.38 | N124: 257.74 | O124: 96823900 | U124: 1993-03-19 | V124: 0.213 | W124: 45.0312 | X124: 199303 | Y124: 199203 | Z124: 1993-03-19 | AA124: 1 | AB124: 1 | AC124: 0.213 | AD124: 0.004730053829
A125: 110 | B125: 2019-01-09 | C125: 257.559998 | D125: 258.910004 | E125: 256.190002 | F125: 257.970001 | G125: 95006600 | H125: 256.838684 | I125: 0.9956145405 | J125: 1 | K125: 256.43 | L125: 257.77 | M125: 255.07 | N125: 256.84 | O125: 95006600
A126: 111 | B126: 2019-01-08 | C126: 256.820007 | D126: 257.309998 | E126: 254 | F126: 256.769989 | G126: 102512600 | H126: 255.643951 | I126: 0.9956146043 | J126: 1 | K126: 255.69 | L126: 256.18 | M126: 252.89 | N126: 255.64 | O126: 102512600
A127: 112 | B127: 2019-01-07 | C127: 252.690002 | D127: 255.949997 | E127: 251.690002 | F127: 254.380005 | G127: 103139100 | H127: 253.26445 | I127: 0.9956146121 | J127: 1 | K127: 251.58 | L127: 254.83 | M127: 250.59 | N127: 253.26 | O127: 103139100
A128: 113 | B128: 2019-01-04 | C128: 247.589996 | D128: 253.110001 | E128: 247.169998 | F128: 252.389999 | G128: 142628800 | H128: 251.283173 | I128: 0.9956146202 | J128: 1 | K128: 246.5 | L128: 252 | M128: 246.09 | N128: 251.28 | O128: 142628800
A129: 114 | B129: 2019-01-03 | C129: 248.229996 | D129: 248.570007 | E129: 243.669998 | F129: 244.210007 | G129: 143813100 | H129: 243.139038 | I129: 0.9956145573 | J129: 1 | K129: 247.14 | L129: 247.48 | M129: 242.6 | N129: 243.14 | O129: 143813100
A130: 115 | B130: 2019-01-02 | C130: 245.979996 | D130: 251.210007 | E130: 245.949997 | F130: 250.179993 | G130: 126925200 | H130: 249.082855 | I130: 0.9956146054 | J130: 1 | K130: 244.9 | L130: 250.11 | M130: 244.87 | N130: 249.08 | O130: 126925200
A131: 116 | B131: 2018-12-31 | C131: 249.559998 | D131: 250.190002 | E131: 247.470001 | F131: 249.919998 | G131: 144299400 | H131: 248.82399 | I131: 0.9956145646 | J131: 1 | K131: 248.47 | L131: 249.09 | M131: 246.38 | N131: 248.82 | O131: 144299400
A132: 117 | B132: 2018-12-28 | C132: 249.580002 | D132: 251.399994 | E132: 246.449997 | F132: 247.75 | G132: 153100200 | H132: 246.663513 | I132: 0.9956145832 | J132: 1 | K132: 248.49 | L132: 250.3 | M132: 245.37 | N132: 246.66 | O132: 153100200
A133: 118 | B133: 2018-12-27 | C133: 242.570007 | D133: 248.289993 | E133: 238.960007 | F133: 248.070007 | G133: 186267300 | H133: 246.982117 | I133: 0.9956145847 | J133: 1 | K133: 241.51 | L133: 247.2 | M133: 237.91 | N133: 246.98 | O133: 186267300
A134: 119 | B134: 2018-12-26 | C134: 235.970001 | D134: 246.179993 | E134: 233.759995 | F134: 246.179993 | G134: 218485400 | H134: 245.100388 | I134: 0.9956145705 | J134: 1 | K134: 234.94 | L134: 245.1 | M134: 232.73 | N134: 245.1 | O134: 218485400
A135: 120 | B135: 2018-12-24 | C135: 239.039993 | D135: 240.839996 | E135: 234.270004 | F135: 234.339996 | G135: 147311600 | H135: 233.312317 | I135: 0.9956145813 | J135: 1 | K135: 237.99 | L135: 239.78 | M135: 233.24 | N135: 233.31 | O135: 147311600
A136: 121 | B136: 2018-12-21 | C136: 246.740005 | D136: 249.710007 | E136: 239.979996 | F136: 240.699997 | G136: 255345600 | H136: 239.644424 | I136: 0.9956145699 | J136: 1 | K136: 245.66 | L136: 248.61 | M136: 238.93 | N136: 239.64 | O136: 255345600
A137: 122 | B137: 2018-12-20 | C137: 249.860001 | D137: 251.619995 | E137: 244.649994 | F137: 247.169998 | G137: 252053400 | H137: 244.657349 | I137: 0.9898343285 | J137: 1 | K137: 247.32 | L137: 249.06 | M137: 242.16 | N137: 244.66 | O137: 252053400
A138: 123 | B138: 2018-12-19 | C138: 255.169998 | D138: 259.399994 | E138: 249.350006 | F138: 251.259995 | G138: 214992800 | H138: 248.705765 | I138: 0.9898343148 | J138: 1 | K138: 252.58 | L138: 256.76 | M138: 246.82 | N138: 248.71 | O138: 214992800
A139: 124 | B139: 2018-12-18 | C139: 257.200012 | D139: 257.950012 | E139: 253.279999 | F139: 255.080002 | G139: 134515100 | H139: 252.486938 | I139: 0.9898343109 | J139: 1 | K139: 254.59 | L139: 255.33 | M139: 250.71 | N139: 252.49 | O139: 134515100
A140: 125 | B140: 2018-12-17 | C140: 259.399994 | D140: 260.649994 | E140: 253.529999 | F140: 255.360001 | G140: 165492300 | H140: 252.764099 | I140: 0.9898343437 | J140: 1 | K140: 256.76 | L140: 258 | M140: 250.95 | N140: 252.76 | O140: 165492300
A141: 126 | B141: 2018-12-14 | C141: 262.959991 | D141: 264.029999 | E141: 259.850006 | F141: 260.470001 | G141: 116961100 | H141: 257.822144 | I141: 0.9898343111 | J141: 1 | K141: 260.29 | L141: 261.35 | M141: 257.21 | N141: 257.82 | O141: 116961100
A142: 127 | B142: 2018-12-13 | C142: 266.519989 | D142: 267.48999 | E142: 264.119995 | F142: 265.369995 | G142: 96662700 | H142: 262.672302 | I142: 0.98983422 | J142: 1 | K142: 263.81 | L142: 264.77 | M142: 261.44 | N142: 262.67 | O142: 96662700
A143: 128 | B143: 2018-12-12 | C143: 267.470001 | D143: 269 | E143: 265.369995 | F143: 265.459991 | G143: 97976700 | H143: 262.761414 | I143: 0.9898343363 | J143: 1 | K143: 264.75 | L143: 266.27 | M143: 262.67 | N143: 262.76 | O143: 97976700
A144: 129 | B144: 2018-12-11 | C144: 267.660004 | D144: 267.869995 | E144: 262.480011 | F144: 264.130005 | G144: 121504400 | H144: 261.444946 | I144: 0.989834328 | J144: 1 | K144: 264.94 | L144: 265.15 | M144: 259.81 | N144: 261.44 | O144: 121504400
A145: 130 | B145: 2018-12-10 | C145: 263.369995 | D145: 265.160004 | E145: 258.619995 | F145: 264.070007 | G145: 151445900 | H145: 261.385559 | I145: =IF(F145=0,1,H145/F145) -> 0.9898343321 | J145: =INDEX(OFFSET($T$15,0,0,$S$13+1,1),MATCH(B145,OFFSET($Q$15,0,0,$S$13+1,1),-1)) -> 1 | K145: =ROUND($I145*C145,2) -> 260.69 | L145: =ROUND($I145*D145,2) -> 262.46 | M145: =ROUND($I145*E145,2) -> 255.99 | N145: =ROUND($I145*F145,2) -> 261.39 | O145: =G145*J145 -> 151445900
A146: 131 | B146: 2018-12-07 | C146: 269.459991 | D146: 271.220001 | E146: 262.630005 | F146: 263.570007 | G146: 161018900 | H146: 260.890656 | I146: 0.9898343858 | J146: 1 | K146: 266.72 | L146: 268.46 | M146: 259.96 | N146: 260.89 | O146: 161018900
A147: 132 | B147: 2018-12-06 | C147: 265.920013 | D147: 269.970001 | E147: 262.440002 | F147: 269.839996 | G147: 204185400 | H147: 267.096893 | I147: 0.989834335 | J147: 1 | K147: 263.22 | L147: 267.23 | M147: 259.77 | N147: 267.1 | O147: 204185400
A148: 133 | B148: 2018-12-04 | C148: 278.369995 | D148: 278.850006 | E148: 269.899994 | F148: 270.25 | G148: 177986000 | H148: 267.502716 | I148: 0.9898342868 | J148: 1 | K148: 275.54 | L148: 276.02 | M148: 267.16 | N148: 267.5 | O148: 177986000
A149: 134 | B149: 2018-12-03 | C149: 280.279999 | D149: 280.399994 | E149: 277.51001 | F149: 279.299988 | G149: 103176300 | H149: 276.460693 | I149: 0.9898342459 | J149: 1 | K149: 277.43 | L149: 277.55 | M149: 274.69 | N149: 276.46 | O149: 103176300
A150: 135 | B150: 2018-11-30 | C150: 273.809998 | D150: 276.279999 | E150: 273.450012 | F150: 275.649994 | G150: 98204200 | H150: 272.847839 | I150: 0.9898343731 | J150: 1 | K150: 271.03 | L150: 273.47 | M150: 270.67 | N150: 272.85 | O150: 98204200
A151: 136 | B151: 2018-11-29 | C151: 273.709991 | D151: 275.549988 | E151: 272.429993 | F151: 273.980011 | G151: 82346400 | H151: 271.194794 | I151: 0.9898342328 | J151: 1 | K151: 270.93 | L151: 272.75 | M151: 269.66 | N151: 271.19 | O151: 82346400
A152: 137 | B152: 2018-11-28 | C152: 269.600006 | D152: 274.579987 | E152: 268.329987 | F152: 274.579987 | G152: 127629600 | H152: 271.788696 | I152: 0.9898343247 | J152: 1 | K152: 266.86 | L152: 271.79 | M152: 265.6 | N152: 271.79 | O152: 127629600
A153: 138 | B153: 2018-11-27 | C153: 266.339996 | D153: 268.399994 | E153: 265.660004 | F153: 268.399994 | G153: 75502400 | H153: 265.671539 | I153: 0.9898343701 | J153: 1 | K153: 263.63 | L153: 265.67 | M153: 262.96 | N153: 265.67 | O153: 75502400
A154: 139 | B154: 2018-11-26 | C154: 265.779999 | D154: 267.75 | E154: 265.339996 | F154: 267.5 | G154: 79981400 | H154: 264.78067 | I154: 0.9898342804 | J154: 1 | K154: 263.08 | L154: 265.03 | M154: 262.64 | N154: 264.78 | O154: 79981400
A155: 140 | B155: 2018-11-23 | C155: 263.179993 | D155: 264.820007 | E155: 263.070007 | F155: 263.25 | G155: 42807900 | H155: 260.573883 | I155: 0.9898343134 | J155: 1 | K155: 260.5 | L155: 262.13 | M155: 260.4 | N155: 260.57 | O155: 42807900
A156: 141 | B156: 2018-11-21 | C156: 265.859985 | D156: 267.149994 | E156: 265.01001 | F156: 265.019989 | G156: 75563700 | H156: 262.325867 | I156: 0.9898342687 | J156: 1 | K156: 263.16 | L156: 264.43 | M156: 262.32 | N156: 262.33 | O156: 75563700
A157: 142 | B157: 2018-11-20 | C157: 265.359985 | D157: 267 | E157: 263.149994 | F157: 264.119995 | G157: 136021300 | H157: 261.435028 | I157: 0.989834291 | J157: 1 | K157: 262.66 | L157: 264.29 | M157: 260.47 | N157: 261.44 | O157: 136021300
A158: 143 | B158: 2018-11-19 | C158: 273.049988 | D158: 273.380005 | E158: 268.070007 | F158: 269.100006 | G158: 103061700 | H158: 266.364441 | I158: 0.9898343926 | J158: 1 | K158: 270.27 | L158: 270.6 | M158: 265.34 | N158: 266.36 | O158: 103061700
A159: 144 | B159: 2018-11-16 | C159: 271.790009 | D159: 274.75 | E159: 271.209991 | F159: 273.730011 | G159: 126668000 | H159: 270.947357 | I159: 0.9898343116 | J159: 1 | K159: 269.03 | L159: 271.96 | M159: 268.45 | N159: 270.95 | O159: 126668000
A160: 145 | B160: 2018-11-15 | C160: 268.779999 | D160: 273.540009 | E160: 267.01001 | F160: 273.019989 | G160: 135101400 | H160: 270.244537 | I160: 0.9898342535 | J160: 1 | K160: 266.05 | L160: 270.76 | M160: 264.3 | N160: 270.24 | O160: 135101400
A161: 146 | B161: 2018-11-14 | C161: 274.160004 | D161: 274.609985 | E161: 268.450012 | F161: 270.200012 | G161: 125335900 | H161: 267.453247 | I161: 0.9898343269 | J161: 1 | K161: 271.37 | L161: 271.82 | M161: 265.72 | N161: 267.45 | O161: 125335900
A162: 147 | B162: 2018-11-13 | C162: 273.089996 | D162: 275.329987 | E162: 271.25 | F162: 272.059998 | G162: 98176600 | H162: 269.294342 | I162: 0.9898343894 | J162: 1 | K162: 270.31 | L162: 272.53 | M162: 268.49 | N162: 269.29 | O162: 98176600
A163: 148 | B163: 2018-11-12 | C163: 277.190002 | D163: 277.459991 | E163: 271.98999 | F163: 272.570007 | G163: 99673600 | H163: 269.799164 | I163: 0.9898343804 | J163: 1 | K163: 274.37 | L163: 274.64 | M163: 269.23 | N163: 269.8 | O163: 99673600
A164: 149 | B164: 2018-11-09 | C164: 279.029999 | D164: 279.23999 | E164: 276.179993 | F164: 277.76001 | G164: 98812600 | H164: 274.936371 | I164: 0.9898342494 | J164: 1 | K164: 276.19 | L164: 276.4 | M164: 273.37 | N164: 274.94 | O164: 98812600
A165: 150 | B165: 2018-11-08 | C165: 280.109985 | D165: 281.220001 | E165: 279.220001 | F165: 280.5 | G165: 65584900 | H165: 277.648529 | I165: 0.989834328 | J165: 1 | K165: 277.26 | L165: 278.36 | M165: 276.38 | N165: 277.65 | O165: 65584900
A166: 151 | B166: 2018-11-07 | C166: 277.559998 | D166: 281.100006 | E166: 277.079987 | F166: 281.01001 | G166: 102752100 | H166: 278.153351 | I166: 0.9898343159 | J166: 1 | K166: 274.74 | L166: 278.24 | M166: 274.26 | N166: 278.15 | O166: 102752100
A167: 152 | B167: 2018-11-06 | C167: 273.320007 | D167: 275.299988 | E167: 273.25 | F167: 275.119995 | G167: 60085900 | H167: 272.323212 | I167: 0.9898343158 | J167: 1 | K167: 270.54 | L167: 272.5 | M167: 270.47 | N167: 272.32 | O167: 60085900
A168: 153 | B168: 2018-11-05 | C168: 272.440002 | D168: 274.01001 | E168: 271.350006 | F168: 273.390015 | G168: 65622500 | H168: 270.61084 | I168: 0.9898343946 | J168: 1 | K168: 269.67 | L168: 271.22 | M168: 268.59 | N168: 270.61 | O168: 65622500
A169: 154 | B169: 2018-11-02 | C169: 274.75 | D169: 275.230011 | E169: 269.589996 | F169: 271.890015 | G169: 122634100 | H169: 269.126068 | I169: 0.9898343196 | J169: 1 | K169: 271.96 | L169: 272.43 | M169: 266.85 | N169: 269.13 | O169: 122634100
A170: 155 | B170: 2018-11-01 | C170: 271.600006 | D170: 273.730011 | E170: 270.380005 | F170: 273.51001 | G170: 99495000 | H170: 270.729584 | I170: 0.9898342807 | J170: 1 | K170: 268.84 | L170: 270.95 | M170: 267.63 | N170: 270.73 | O170: 99495000
A171: 156 | B171: 2018-10-31 | C171: 270.649994 | D171: 273.230011 | E171: 270.119995 | F171: 270.630005 | G171: 128296300 | H171: 267.878876 | I171: 0.9898343534 | J171: 1 | K171: 267.9 | L171: 270.45 | M171: 267.37 | N171: 267.88 | O171: 128296300
A172: 157 | B172: 2018-10-30 | C172: 263.670013 | D172: 268.119995 | E172: 263.119995 | F172: 267.769989 | G172: 157116000 | H172: 265.047943 | I172: 0.9898343873 | J172: 1 | K172: 260.99 | L172: 265.39 | M172: 260.45 | N172: 265.05 | O172: 157116000
A173: 158 | B173: 2018-10-29 | C173: 268.799988 | D173: 270.25 | E173: 259.850006 | F173: 263.859985 | G173: 160749100 | H173: 261.177673 | I173: 0.9898343358 | J173: 1 | K173: 266.07 | L173: 267.5 | M173: 257.21 | N173: 261.18 | O173: 160749100
A174: 159 | B174: 2018-10-26 | C174: 265.920013 | D174: 271 | E174: 262.290009 | F174: 265.329987 | G174: 201574600 | H174: 262.632721 | I174: 0.9898342964 | J174: 1 | K174: 263.22 | L174: 268.25 | M174: 259.62 | N174: 262.63 | O174: 201574600
A175: 160 | B175: 2018-10-25 | C175: 267.380005 | D175: 271.809998 | E175: 266.230011 | F175: 270.079987 | G175: 138061500 | H175: 267.334442 | I175: 0.9898343264 | J175: 1 | K175: 264.66 | L175: 269.05 | M175: 263.52 | N175: 267.33 | O175: 138061500
A176: 161 | B176: 2018-10-24 | C176: 273.329987 | D176: 273.76001 | E176: 264.700012 | F176: 265.320007 | G176: 177806700 | H176: 262.622864 | I176: 0.9898343776 | J176: 1 | K176: 270.55 | L176: 270.98 | M176: 262.01 | N176: 262.62 | O176: 177806700
A177: 162 | B177: 2018-10-23 | C177: 270.950012 | D177: 274.869995 | E177: 268.609985 | F177: 273.609985 | G177: 146352700 | H177: 270.828552 | I177: 0.9898343147 | J177: 1 | K177: 268.2 | L177: 272.08 | M177: 265.88 | N177: 270.83 | O177: 146352700
A178: 163 | B178: 2018-10-22 | C178: 277 | D178: 277.359985 | E178: 274.410004 | F178: 275.01001 | G178: 82415800 | H178: 272.214325 | I178: 0.9898342428 | J178: 1 | K178: 274.18 | L178: 274.54 | M178: 271.62 | N178: 272.21 | O178: 82415800
A179: 164 | B179: 2018-10-19 | C179: 277.130005 | D179: 279.299988 | E179: 275.470001 | F179: 276.25 | G179: 139901600 | H179: 273.441742 | I179: 0.9898343602 | J179: 1 | K179: 274.31 | L179: 276.46 | M179: 272.67 | N179: 273.44 | O179: 139901600
A180: 165 | B180: 2018-10-18 | C180: 279.399994 | D180: 280.070007 | E180: 274.970001 | F180: 276.399994 | G180: 134557500 | H180: 273.59021 | I180: 0.9898343558 | J180: 1 | K180: 276.56 | L180: 277.22 | M180: 272.17 | N180: 273.59 | O180: 134557500
A181: 166 | B181: 2018-10-17 | C181: 280.440002 | D181: 281.149994 | E181: 277.559998 | F181: 280.450012 | G181: 110626000 | H181: 277.59906 | I181: 0.9898343666 | J181: 1 | K181: 277.59 | L181: 278.29 | M181: 274.74 | N181: 277.6 | O181: 110626000
A182: 167 | B182: 2018-10-16 | C182: 276.600006 | D182: 280.820007 | E182: 276.070007 | F182: 280.399994 | G182: 118255800 | H182: 277.54953 | I182: 0.9898342936 | J182: 1 | K182: 273.79 | L182: 277.97 | M182: 273.26 | N182: 277.55 | O182: 118255800
A183: 168 | B183: 2018-10-15 | C183: 275.549988 | D183: 277.040009 | E183: 274.299988 | F183: 274.399994 | G183: 102263700 | H183: 271.610535 | I183: 0.9898343329 | J183: 1 | K183: 272.75 | L183: 274.22 | M183: 271.51 | N183: 271.61 | O183: 102263700
A184: 169 | B184: 2018-10-12 | C184: 276.769989 | D184: 277.089996 | E184: 272.369995 | F184: 275.950012 | G184: 183186500 | H184: 273.144806 | I184: 0.989834369 | J184: 1 | K184: 273.96 | L184: 274.27 | M184: 269.6 | N184: 273.14 | O184: 183186500
A185: 170 | B185: 2018-10-11 | C185: 277.079987 | D185: 278.899994 | E185: 270.359985 | F185: 272.170013 | G185: 274840500 | H185: 269.403229 | I185: 0.989834354 | J185: 1 | K185: 274.26 | L185: 276.06 | M185: 267.61 | N185: 269.4 | O185: 274840500
A186: 171 | B186: 2018-10-10 | C186: 286.829987 | D186: 286.910004 | E186: 277.880005 | F186: 278.299988 | G186: 214731000 | H186: 275.470886 | I186: 0.9898343438 | J186: 1 | K186: 283.91 | L186: 283.99 | M186: 275.06 | N186: 275.47 | O186: 214731000
A187: 172 | B187: 2018-10-09 | C187: 287.390015 | D187: 288.859985 | E187: 286.769989 | F187: 287.399994 | G187: 74339000 | H187: 284.478363 | I187: 0.9898342691 | J187: 1 | K187: 284.47 | L187: 285.92 | M187: 283.85 | N187: 284.48 | O187: 74339000
A188: 173 | B188: 2018-10-08 | C188: 287.049988 | D188: 288.220001 | E188: 285.5 | F188: 287.820007 | G188: 87742200 | H188: 284.894104 | I188: 0.9898342612 | J188: 1 | K188: 284.13 | L188: 285.29 | M188: 282.6 | N188: 284.89 | O188: 87742200
A189: 174 | B189: 2018-10-05 | C189: 289.690002 | D189: 290.269989 | E189: 286.220001 | F189: 287.820007 | G189: 105951700 | H189: 284.894104 | I189: 0.9898342612 | J189: 1 | K189: 286.75 | L189: 287.32 | M189: 283.31 | N189: 284.89 | O189: 105951700
A190: 175 | B190: 2018-10-04 | C190: 291.179993 | D190: 291.23999 | E190: 287.660004 | F190: 289.440002 | G190: 111545900 | H190: 286.49765 | I190: 0.9898343284 | J190: 1 | K190: 288.22 | L190: 288.28 | M190: 284.74 | N190: 286.5 | O190: 111545900
A191: 176 | B191: 2018-10-03 | C191: 292.73999 | D191: 293.209991 | E191: 291.320007 | F191: 291.720001 | G191: 64694600 | H191: 288.754486 | I191: 0.9898343789 | J191: 1 | K191: 289.76 | L191: 290.23 | M191: 288.36 | N191: 288.75 | O191: 64694600
A192: 177 | B192: 2018-10-02 | C192: 291.559998 | D192: 292.359985 | E192: 291.140015 | F192: 291.559998 | G192: 47258200 | H192: 288.5961 | I192: 0.9898343462 | J192: 1 | K192: 288.6 | L192: 289.39 | M192: 288.18 | N192: 288.6 | O192: 47258200
A193: 178 | B193: 2018-10-01 | C193: 292.109985 | D193: 292.929993 | E193: 290.980011 | F193: 291.730011 | G193: 62078900 | H193: 288.764374 | I193: 0.9898343095 | J193: 1 | K193: 289.14 | L193: 289.95 | M193: 288.02 | N193: 288.76 | O193: 62078900
A194: 179 | B194: 2018-09-28 | C194: 289.98999 | D194: 291.279999 | E194: 289.950012 | F194: 290.720001 | G194: 70091400 | H194: 287.764648 | I194: 0.9898343664 | J194: 1 | K194: 287.04 | L194: 288.32 | M194: 287 | N194: 287.76 | O194: 70091400
A195: 180 | B195: 2018-09-27 | C195: 290.410004 | D195: 291.910004 | E195: 290.100006 | F195: 290.690002 | G195: 59249500 | H195: 287.734924 | I195: 0.9898342634 | J195: 1 | K195: 287.46 | L195: 288.94 | M195: 287.15 | N195: 287.73 | O195: 59249500
A196: 181 | B196: 2018-09-26 | C196: 290.910004 | D196: 292.23999 | E196: 289.410004 | F196: 289.880005 | G196: 79739700 | H196: 286.933197 | I196: 0.9898343868 | J196: 1 | K196: 287.95 | L196: 289.27 | M196: 286.47 | N196: 286.93 | O196: 79739700
A197: 182 | B197: 2018-09-25 | C197: 291.529999 | D197: 291.649994 | E197: 290.480011 | F197: 290.75 | G197: 44370000 | H197: 287.794312 | I197: 0.9898342631 | J197: 1 | K197: 288.57 | L197: 288.69 | M197: 287.53 | N197: 287.79 | O197: 44370000
A198: 183 | B198: 2018-09-24 | C198: 291.339996 | D198: 291.5 | E198: 290.369995 | F198: 291.019989 | G198: 53409600 | H198: 288.061584 | I198: 0.9898343581 | J198: 1 | K198: 288.38 | L198: 288.54 | M198: 287.42 | N198: 288.06 | O198: 53409600
A199: 184 | B199: 2018-09-21 | C199: 293.089996 | D199: 293.220001 | E199: 291.809998 | F199: 291.98999 | G199: 105479700 | H199: 289.021698 | I199: 0.9898342679 | J199: 1 | K199: 290.11 | L199: 290.24 | M199: 288.84 | N199: 289.02 | O199: 105479700
A200: 185 | B200: 2018-09-20 | C200: 292.640015 | D200: 293.940002 | E200: 291.23999 | F200: 293.579987 | G200: 100360600 | H200: 289.286011 | I200: 0.9853737442 | J200: 1 | K200: 288.36 | L200: 289.64 | M200: 286.98 | N200: 289.29 | O200: 100360600
... 4300 more rows

Sheet CalculationsAndCharts
A1: VossPredictor.xlsm
A2: =InputPriceData!A1 -> SPDR S&P 500 ETF (SPY) -NYSEArca (Daily)
A4: User Charting Controls | E4: Click to Shift Chart One Bar:
A5: Data Control
A6: =InputPriceData!$B$10 -> 6643 | B6: Available Input Data Rows | E6: Earliest: | F6: =OFFSET(InputPriceData!B15,CalculationsAndCharts!A6,0,1,1) -> 1993-01-29
C7: FALSE | E7: Latest: | F7: =OFFSET(InputPriceData!B15,1,0,1,1) -> 2019-06-17
A8: =MIN(A6-A11,LOOKUP(2,1/(B:B<>0),ROW(A:A))-32) -> 1000 | B8: Logically Available for Calc / Plot | E8: $ Change: | F8: =G33-G34 -> -0.550019
A11: 69 | B11: Input Data Offset (Pan)
A12: 296 | B12: Data Points to Plot (Zoom)
B13: First: | C13: =OFFSET(B32,A12,0,1,1) -> 2018-01-03
B14: ="Last: " & IF(OFFSET(InputPriceData!P15,1+A11,0,1,1)="","",TEXT(OFFSET(InputPriceData!P15,1+A11,0,1,1),"H:MM AM/PM")) -> Last: | C14: =B33 -> 2019-03-08
A15: User Controls | C15: Invariant Terms Calculated From User Controls
A16: 20 | B16: Period | C16: Order | D16: =3*A17 -> 9
A17: 3 | B17: Predict | C17: (3 + Order)/2 | D17: =(3+D16)/2 -> 6 | R17: 3
A18: 0.25 | B18: Bandwidth | C18: F1 | D18: =COS(RADIANS(360/A16)) -> 0.9510565163
C19: G1 | D19: =COS(RADIANS(A18*360/A16)) -> 0.9969173337
C20: S1 | D20: =1/D19-SQRT(1/(D19^2)-1) -> 0.9243904917
C21: 1 + S1 | D21: =1+D20 -> 1.924390492
C22: 1 - S1 | D22: =1-D20 -> 0.07560950834
A25: Help! I would like to plot data
A26: From | B26: 2018-01-03 | C26: =OFFSET(InputPriceData!$A$15,MATCH(B26,OFFSET(InputPriceData!B15,1,0,InputPriceData!$B$10,1),0),0,1,1)-C27 -> 296 | E26: 32
A27: To | B27: 2019-03-08 | C27: =OFFSET(InputPriceData!$A$15,MATCH(B27,OFFSET(InputPriceData!$B$15,1,0,InputPriceData!$B$10,1),0),0,1,1)-1 -> 69 | E27: =$A$12-$E$26+1 -> 265
H28: @ Cursor => | I28: =OFFSET(A32,$E$27,0,1,1)&"(RR)" -> 265(RR) | J28: =OFFSET($B$32,E27,0,1,1) -> 2018-02-16 | K28: =TEXT(OFFSET(D32,$E$27,0,1,1),"#,##0.00")&"(o)" -> 272.32(o) | L28: =TEXT(OFFSET(E32,$E$27,0,1,1),"#,##0.00")&"(h)" -> 275.32(h) | M28: =TEXT(OFFSET(F32,$E$27,0,1,1),"#,##0.00")&"(l)" -> 272.27(l) | N28: =TEXT(OFFSET(G32,$E$27,0,1,1),"#,##0.00")&"(c)" -> 273.11(c)
E29: Cursor ==> | T29: Chart Clutter Work Area | AU29: Chart Cursor work area
A31: Rel Row | J31: Voss Predictor Calcs | L31: Inverse Weights | T31: ="Filter(" & A16 & ", " & A18 & ")" -> Filter(20, 0.25) | U31: ="Voss(" & A16 & ", " & A17 & ")" -> Voss(20, 3) | AP31: Used To Color Vol Bars
B32: Date | C32: Volume | D32: Open | E32: High | F32: Low | G32: Close | H32: Filt | J32: Voss | K32: SumC | AP32: Up Vol | AQ32: Dn Vol | AU32: Volume Cursor | AV32: =MAX(OFFSET(C33,0,0,A12,1)) -> 355026800 | AW32: Z Cursor | AY32: Price Chart Cursor
A33: 1 | B33: =OFFSET(InputPriceData!B$15,CalculationsAndCharts!$A33+$A$11,0,1,1) -> 2019-03-08 | C33: =OFFSET(InputPriceData!G$15,CalculationsAndCharts!$A33+$A$11,IF($C$7,8,0),1,1) -> 85795800 | D33: =OFFSET(InputPriceData!C$15,CalculationsAndCharts!$A33+$A$11,IF($C$7,8,0),1,1) -> 272.940002 | E33: =OFFSET(InputPriceData!D$15,CalculationsAndCharts!$A33+$A$11,IF($C$7,8,0),1,1) -> 274.649994 | F33: =OFFSET(InputPriceData!E$15,CalculationsAndCharts!$A33+$A$11,IF($C$7,8,0),1,1) -> 272.420013 | G33: =OFFSET(InputPriceData!F$15,CalculationsAndCharts!$A33+$A$11,IF($C$7,8,0),1,1) -> 274.459991 | H33: =0.5*$D$22*(G33-G35)+$D$18*$D$21*H34-$D$20*H35 -> 0.03486879399 | J33: =$D$17*H33-K33 -> -1.42807272 | K33: =SUMPRODUCT(OFFSET($L$32,1,0,$D$16,1),OFFSET(J33,1,0,$D$16,1)) -> 1.637285484 | L33: =IF(A33>$D$16,"",($D$16-A33+1)/$D$16) -> 1 | T33: =IF(OR($R$17=1,$R$17=3),H33,NA()) -> 0.03486879399 | U33: =IF(OR($R$17=2,$R$17=3),J33,NA()) -> -1.42807272 | AP33: =IF(G33>=D33,C33,NA()) -> 85795800 | AQ33: =IF(G33<D33,C33,NA()) ->  | AU33: =$E$27 -> 265 | AV33: 0 | AW33: =$E$27 -> 265 | AX33: -8 | AY33: =E27 -> 265 | AZ33: 227.9159951
A34: 2 | B34: =OFFSET(InputPriceData!B$15,CalculationsAndCharts!$A34+$A$11,0,1,1) -> 2019-03-07 | C34: =OFFSET(InputPriceData!G$15,CalculationsAndCharts!$A34+$A$11,IF($C$7,8,0),1,1) -> 94710600 | D34: =OFFSET(InputPriceData!C$15,CalculationsAndCharts!$A34+$A$11,IF($C$7,8,0),1,1) -> 276.829987 | E34: =OFFSET(InputPriceData!D$15,CalculationsAndCharts!$A34+$A$11,IF($C$7,8,0),1,1) -> 276.98999 | F34: =OFFSET(InputPriceData!E$15,CalculationsAndCharts!$A34+$A$11,IF($C$7,8,0),1,1) -> 274.070007 | G34: =OFFSET(InputPriceData!F$15,CalculationsAndCharts!$A34+$A$11,IF($C$7,8,0),1,1) -> 275.01001 | H34: =0.5*$D$22*(G34-G36)+$D$18*$D$21*H35-$D$20*H36 -> 0.3282116081 | J34: =$D$17*H34-K34 -> -0.8126523964 | K34: =SUMPRODUCT(OFFSET($L$32,1,0,$D$16,1),OFFSET(J34,1,0,$D$16,1)) -> 2.781922045 | L34: =IF(A34>$D$16,"",($D$16-A34+1)/$D$16) -> 0.8888888889 | T34: =IF(OR($R$17=1,$R$17=3),H34,NA()) -> 0.3282116081 | U34: =IF(OR($R$17=2,$R$17=3),J34,NA()) -> -0.8126523964 | AP34: =IF(G34>=D34,C34,NA()) ->  | AQ34: =IF(G34<D34,C34,NA()) -> 94710600 | AU34: =$E$27 -> 265 | AV34: =CEILING(AV32,10^INT(LOG10(AV32))) -> 400000000 | AW34: =$E$27 -> 265 | AX34: 8 | AY34: =E27 -> 265 | AZ34: 301.288502
A35: 3 | B35: =OFFSET(InputPriceData!B$15,CalculationsAndCharts!$A35+$A$11,0,1,1) -> 2019-03-06 | C35: =OFFSET(InputPriceData!G$15,CalculationsAndCharts!$A35+$A$11,IF($C$7,8,0),1,1) -> 75039800 | D35: =OFFSET(InputPriceData!C$15,CalculationsAndCharts!$A35+$A$11,IF($C$7,8,0),1,1) -> 279.149994 | E35: =OFFSET(InputPriceData!D$15,CalculationsAndCharts!$A35+$A$11,IF($C$7,8,0),1,1) -> 279.160004 | F35: =OFFSET(InputPriceData!E$15,CalculationsAndCharts!$A35+$A$11,IF($C$7,8,0),1,1) -> 276.970001 | G35: =OFFSET(InputPriceData!F$15,CalculationsAndCharts!$A35+$A$11,IF($C$7,8,0),1,1) -> 277.329987 | H35: 0.4947324246 | J35: 0.20752596 | K35: 2.760868588 | L35: 0.7777777778 | T35: 0.4947324246 | U35: 0.20752596 | AP35: =IF(G35>=D35,C35,NA()) ->  | AQ35: =IF(G35<D35,C35,NA()) -> 75039800
A36: 4 | B36: =OFFSET(InputPriceData!B$15,CalculationsAndCharts!$A36+$A$11,0,1,1) -> 2019-03-05 | C36: =OFFSET(InputPriceData!G$15,CalculationsAndCharts!$A36+$A$11,IF($C$7,8,0),1,1) -> 59114600 | D36: =OFFSET(InputPriceData!C$15,CalculationsAndCharts!$A36+$A$11,IF($C$7,8,0),1,1) -> 279.540009 | E36: =OFFSET(InputPriceData!D$15,CalculationsAndCharts!$A36+$A$11,IF($C$7,8,0),1,1) -> 279.76001 | F36: =OFFSET(InputPriceData!E$15,CalculationsAndCharts!$A36+$A$11,IF($C$7,8,0),1,1) -> 278.410004 | G36: =OFFSET(InputPriceData!F$15,CalculationsAndCharts!$A36+$A$11,IF($C$7,8,0),1,1) -> 279.019989 | H36: 0.4604692992 | J36: 0.7942882449 | K36: 1.96852755 | L36: 0.6666666667 | T36: 0.4604692992 | U36: 0.7942882449 | AP36: =IF(G36>=D36,C36,NA()) ->  | AQ36: =IF(G36<D36,C36,NA()) -> 59114600
A37: 5 | B37: =OFFSET(InputPriceData!B$15,CalculationsAndCharts!$A37+$A$11,0,1,1) -> 2019-03-04 | C37: =OFFSET(InputPriceData!G$15,CalculationsAndCharts!$A37+$A$11,IF($C$7,8,0),1,1) -> 106494600 | D37: =OFFSET(InputPriceData!C$15,CalculationsAndCharts!$A37+$A$11,IF($C$7,8,0),1,1) -> 281.600006 | E37: =OFFSET(InputPriceData!D$15,CalculationsAndCharts!$A37+$A$11,IF($C$7,8,0),1,1) -> 281.869995 | F37: =OFFSET(InputPriceData!E$15,CalculationsAndCharts!$A37+$A$11,IF($C$7,8,0),1,1) -> 276.839996 | G37: =OFFSET(InputPriceData!F$15,CalculationsAndCharts!$A37+$A$11,IF($C$7,8,0),1,1) -> 279.399994 | H37: 0.2918293504 | J37: 1.160397517 | K37: 0.590578586 | L37: 0.5555555556 | T37: 0.2918293504 | U37: 1.160397517 | AQ37: 106494600
A38: 6 | B38: =OFFSET(InputPriceData!B$15,CalculationsAndCharts!$A38+$A$11,0,1,1) -> 2019-03-01 | C38: =OFFSET(InputPriceData!G$15,CalculationsAndCharts!$A38+$A$11,IF($C$7,8,0),1,1) -> 78880500 | D38: =OFFSET(InputPriceData!C$15,CalculationsAndCharts!$A38+$A$11,IF($C$7,8,0),1,1) -> 280.440002 | E38: =OFFSET(InputPriceData!D$15,CalculationsAndCharts!$A38+$A$11,IF($C$7,8,0),1,1) -> 280.880005 | F38: =OFFSET(InputPriceData!E$15,CalculationsAndCharts!$A38+$A$11,IF($C$7,8,0),1,1) -> 278.820007 | G38: =OFFSET(InputPriceData!F$15,CalculationsAndCharts!$A38+$A$11,IF($C$7,8,0),1,1) -> 280.420013 | H38: 0.02240440212 | J38: 0.9354185203 | K38: -0.8009921076 | L38: 0.4444444444 | T38: 0.02240440212 | U38: 0.9354185203 | AQ38: 78880500
A39: 7 | B39: =OFFSET(InputPriceData!B$15,CalculationsAndCharts!$A39+$A$11,0,1,1) -> 2019-02-28 | C39: =OFFSET(InputPriceData!G$15,CalculationsAndCharts!$A39+$A$11,IF($C$7,8,0),1,1) -> 69268300 | D39: =OFFSET(InputPriceData!C$15,CalculationsAndCharts!$A39+$A$11,IF($C$7,8,0),1,1) -> 278.959991 | E39: =OFFSET(InputPriceData!D$15,CalculationsAndCharts!$A39+$A$11,IF($C$7,8,0),1,1) -> 279.450012 | F39: =OFFSET(InputPriceData!E$15,CalculationsAndCharts!$A39+$A$11,IF($C$7,8,0),1,1) -> 278.320007 | G39: =OFFSET(InputPriceData!F$15,CalculationsAndCharts!$A39+$A$11,IF($C$7,8,0),1,1) -> 278.679993 | H39: -0.2418948082 | J39: 0.5065219605 | K39: -1.957890809 | L39: 0.3333333333 | T39: -0.2418948082 | U39: 0.5065219605 | AQ39: 69268300
A40: 8 | B40: =OFFSET(InputPriceData!B$15,CalculationsAndCharts!$A40+$A$11,0,1,1) -> 2019-02-27 | C40: =OFFSET(InputPriceData!G$15,CalculationsAndCharts!$A40+$A$11,IF($C$7,8,0),1,1) -> 56921600 | D40: =OFFSET(InputPriceData!C$15,CalculationsAndCharts!$A40+$A$11,IF($C$7,8,0),1,1) -> 278.519989 | E40: =OFFSET(InputPriceData!D$15,CalculationsAndCharts!$A40+$A$11,IF($C$7,8,0),1,1) -> 279.589996 | F40: =OFFSET(InputPriceData!E$15,CalculationsAndCharts!$A40+$A$11,IF($C$7,8,0),1,1) -> 277.480011 | G40: =OFFSET(InputPriceData!F$15,CalculationsAndCharts!$A40+$A$11,IF($C$7,8,0),1,1) -> 279.200012 | H40: -0.4532710383 | J40: 0.3850693998 | K40: -3.10469563 | L40: 0.2222222222 | T40: -0.4532710383 | U40: 0.3850693998 | AP40: 56921600
A41: 9 | B41: =OFFSET(InputPriceData!B$15,CalculationsAndCharts!$A41+$A$11,0,1,1) -> 2019-02-26 | C41: =OFFSET(InputPriceData!G$15,CalculationsAndCharts!$A41+$A$11,IF($C$7,8,0),1,1) -> 56844100 | D41: =OFFSET(InputPriceData!C$15,CalculationsAndCharts!$A41+$A$11,IF($C$7,8,0),1,1) -> 279.130005 | E41: =OFFSET(InputPriceData!D$15,CalculationsAndCharts!$A41+$A$11,IF($C$7,8,0),1,1) -> 280.299988 | F41: =OFFSET(InputPriceData!E$15,CalculationsAndCharts!$A41+$A$11,IF($C$7,8,0),1,1) -> 278.899994 | G41: =OFFSET(InputPriceData!F$15,CalculationsAndCharts!$A41+$A$11,IF($C$7,8,0),1,1) -> 279.320007 | H41: -0.6619272805 | J41: 0.1118957902 | K41: -4.083459473 | L41: 0.1111111111 | T41: -0.6619272805 | U41: 0.1118957902 | AP41: 56844100
A42: 10 | B42: =OFFSET(InputPriceData!B$15,CalculationsAndCharts!$A42+$A$11,0,1,1) -> 2019-02-25 | C42: =OFFSET(InputPriceData!G$15,CalculationsAndCharts!$A42+$A$11,IF($C$7,8,0),1,1) -> 69030700 | D42: =OFFSET(InputPriceData!C$15,CalculationsAndCharts!$A42+$A$11,IF($C$7,8,0),1,1) -> 280.730011 | E42: =OFFSET(InputPriceData!D$15,CalculationsAndCharts!$A42+$A$11,IF($C$7,8,0),1,1) -> 281.309998 | F42: =OFFSET(InputPriceData!E$15,CalculationsAndCharts!$A42+$A$11,IF($C$7,8,0),1,1) -> 279.429993 | G42: =OFFSET(InputPriceData!F$15,CalculationsAndCharts!$A42+$A$11,IF($C$7,8,0),1,1) -> 279.519989 | H42: -0.8332924823 | J42: -0.2153497966 | K42: -4.784405097 | T42: -0.8332924823 | U42: -0.2153497966 | AQ42: 69030700
A43: 11 | B43: =OFFSET(InputPriceData!B$15,CalculationsAndCharts!$A43+$A$11,0,1,1) -> 2019-02-22 | C43: =OFFSET(InputPriceData!G$15,CalculationsAndCharts!$A43+$A$11,IF($C$7,8,0),1,1) -> 78114600 | D43: =OFFSET(InputPriceData!C$15,CalculationsAndCharts!$A43+$A$11,IF($C$7,8,0),1,1) -> 278.109985 | E43: =OFFSET(InputPriceData!D$15,CalculationsAndCharts!$A43+$A$11,IF($C$7,8,0),1,1) -> 279.359985 | F43: =OFFSET(InputPriceData!E$15,CalculationsAndCharts!$A43+$A$11,IF($C$7,8,0),1,1) -> 277.399994 | G43: =OFFSET(InputPriceData!F$15,CalculationsAndCharts!$A43+$A$11,IF($C$7,8,0),1,1) -> 279.140015 | H43: -0.9264088128 | J43: -0.8979101084 | K43: -4.660542768 | T43: -0.9264088128 | U43: -0.8979101084 | AP43: 78114600
A44: 12 | B44: =OFFSET(InputPriceData!B$15,CalculationsAndCharts!$A44+$A$11,0,1,1) -> 2019-02-21 | C44: =OFFSET(InputPriceData!G$15,CalculationsAndCharts!$A44+$A$11,IF($C$7,8,0),1,1) -> 64214700 | D44: =OFFSET(InputPriceData!C$15,CalculationsAndCharts!$A44+$A$11,IF($C$7,8,0),1,1) -> 277.700012 | E44: =OFFSET(InputPriceData!D$15,CalculationsAndCharts!$A44+$A$11,IF($C$7,8,0),1,1) -> 278.100006 | F44: =OFFSET(InputPriceData!E$15,CalculationsAndCharts!$A44+$A$11,IF($C$7,8,0),1,1) -> 276.350006 | G44: =OFFSET(InputPriceData!F$15,CalculationsAndCharts!$A44+$A$11,IF($C$7,8,0),1,1) -> 277.420013 | H44: -0.8468668506 | J44: -1.102079006 | K44: -3.979122098 | T44: -0.8468668506 | U44: -1.102079006 | AQ44: 64214700
A45: 13 | B45: =OFFSET(InputPriceData!B$15,CalculationsAndCharts!$A45+$A$11,0,1,1) -> 2019-02-20 | C45: =OFFSET(InputPriceData!G$15,CalculationsAndCharts!$A45+$A$11,IF($C$7,8,0),1,1) -> 76610800 | D45: =OFFSET(InputPriceData!C$15,CalculationsAndCharts!$A45+$A$11,IF($C$7,8,0),1,1) -> 277.809998 | E45: =OFFSET(InputPriceData!D$15,CalculationsAndCharts!$A45+$A$11,IF($C$7,8,0),1,1) -> 278.920013 | F45: =OFFSET(InputPriceData!E$15,CalculationsAndCharts!$A45+$A$11,IF($C$7,8,0),1,1) -> 277.25 | G45: =OFFSET(InputPriceData!F$15,CalculationsAndCharts!$A45+$A$11,IF($C$7,8,0),1,1) -> 278.410004 | H45: -0.6446761437 | J45: -0.86643941 | K45: -3.001617452 | T45: -0.6446761437 | U45: -0.86643941 | AP45: 76610800
A46: 14 | B46: =OFFSET(InputPriceData!B$15,CalculationsAndCharts!$A46+$A$11,0,1,1) -> 2019-02-19 | C46: =OFFSET(InputPriceData!G$15,CalculationsAndCharts!$A46+$A$11,IF($C$7,8,0),1,1) -> 59120800 | D46: =OFFSET(InputPriceData!C$15,CalculationsAndCharts!$A46+$A$11,IF($C$7,8,0),1,1) -> 276.480011 | E46: =OFFSET(InputPriceData!D$15,CalculationsAndCharts!$A46+$A$11,IF($C$7,8,0),1,1) -> 278.579987 | F46: =OFFSET(InputPriceData!E$15,CalculationsAndCharts!$A46+$A$11,IF($C$7,8,0),1,1) -> 276.470001 | G46: =OFFSET(InputPriceData!F$15,CalculationsAndCharts!$A46+$A$11,IF($C$7,8,0),1,1) -> 277.850006 | H46: -0.3778466616 | J46: -0.8150903778 | K46: -1.451989592 | T46: -0.3778466616 | U46: -0.8150903778 | AP46: 59120800
A47: 15 | B47: =OFFSET(InputPriceData!B$15,CalculationsAndCharts!$A47+$A$11,0,1,1) -> 2019-02-15 | C47: =OFFSET(InputPriceData!G$15,CalculationsAndCharts!$A47+$A$11,IF($C$7,8,0),1,1) -> 97088700 | D47: =OFFSET(InputPriceData!C$15,CalculationsAndCharts!$A47+$A$11,IF($C$7,8,0),1,1) -> 276.359985 | E47: =OFFSET(InputPriceData!D$15,CalculationsAndCharts!$A47+$A$11,IF($C$7,8,0),1,1) -> 277.410004 | F47: =OFFSET(InputPriceData!E$15,CalculationsAndCharts!$A47+$A$11,IF($C$7,8,0),1,1) -> 276.130005 | G47: =OFFSET(InputPriceData!F$15,CalculationsAndCharts!$A47+$A$11,IF($C$7,8,0),1,1) -> 277.369995 | H47: -0.008160065996 | J47: -1.211988011 | K47: 1.163027615 | T47: -0.008160065996 | U47: -1.211988011 | AP47: 97088700
A48: 16 | B48: =OFFSET(InputPriceData!B$15,CalculationsAndCharts!$A48+$A$11,0,1,1) -> 2019-02-14 | C48: =OFFSET(InputPriceData!G$15,CalculationsAndCharts!$A48+$A$11,IF($C$7,8,0),1,1) -> 83234400 | D48: =OFFSET(InputPriceData!C$15,CalculationsAndCharts!$A48+$A$11,IF($C$7,8,0),1,1) -> 273.779999 | E48: =OFFSET(InputPriceData!D$15,CalculationsAndCharts!$A48+$A$11,IF($C$7,8,0),1,1) -> 275.640015 | F48: =OFFSET(InputPriceData!E$15,CalculationsAndCharts!$A48+$A$11,IF($C$7,8,0),1,1) -> 272.869995 | G48: =OFFSET(InputPriceData!F$15,CalculationsAndCharts!$A48+$A$11,IF($C$7,8,0),1,1) -> 274.380005 | H48: 0.5345085378 | J48: -1.241499152 | K48: 4.448550379 | T48: 0.5345085378 | U48: -1.241499152 | AP48: 83234400
A49: 17 | B49: =OFFSET(InputPriceData!B$15,CalculationsAndCharts!$A49+$A$11,0,1,1) -> 2019-02-13 | C49: =OFFSET(InputPriceData!G$15,CalculationsAndCharts!$A49+$A$11,IF($C$7,8,0),1,1) -> 65277200 | D49: =OFFSET(InputPriceData!C$15,CalculationsAndCharts!$A49+$A$11,IF($C$7,8,0),1,1) -> 275.029999 | E49: =OFFSET(InputPriceData!D$15,CalculationsAndCharts!$A49+$A$11,IF($C$7,8,0),1,1) -> 275.929993 | F49: =OFFSET(InputPriceData!E$15,CalculationsAndCharts!$A49+$A$11,IF($C$7,8,0),1,1) -> 274.559998 | G49: =OFFSET(InputPriceData!F$15,CalculationsAndCharts!$A49+$A$11,IF($C$7,8,0),1,1) -> 274.98999 | H49: 1.164437871 | J49: -0.6171587139 | K49: 7.603785941 | T49: 1.164437871 | U49: -0.6171587139 | AQ49: 65277200
A50: 18 | B50: =OFFSET(InputPriceData!B$15,CalculationsAndCharts!$A50+$A$11,0,1,1) -> 2019-02-12 | C50: =OFFSET(InputPriceData!G$15,CalculationsAndCharts!$A50+$A$11,IF($C$7,8,0),1,1) -> 72270200 | D50: =OFFSET(InputPriceData!C$15,CalculationsAndCharts!$A50+$A$11,IF($C$7,8,0),1,1) -> 272.420013 | E50: =OFFSET(InputPriceData!D$15,CalculationsAndCharts!$A50+$A$11,IF($C$7,8,0),1,1) -> 274.519989 | F50: =OFFSET(InputPriceData!E$15,CalculationsAndCharts!$A50+$A$11,IF($C$7,8,0),1,1) -> 272.339996 | G50: =OFFSET(InputPriceData!F$15,CalculationsAndCharts!$A50+$A$11,IF($C$7,8,0),1,1) -> 274.100006 | H50: 1.73869783 | J50: -0.8342979023 | K50: 11.26648488 | T50: 1.73869783 | U50: -0.8342979023 | AP50: 72270200
A51: 19 | B51: =OFFSET(InputPriceData!B$15,CalculationsAndCharts!$A51+$A$11,0,1,1) -> 2019-02-11 | C51: =OFFSET(InputPriceData!G$15,CalculationsAndCharts!$A51+$A$11,IF($C$7,8,0),1,1) -> 68021400 | D51: =OFFSET(InputPriceData!C$15,CalculationsAndCharts!$A51+$A$11,IF($C$7,8,0),1,1) -> 271.200012 | E51: =OFFSET(InputPriceData!D$15,CalculationsAndCharts!$A51+$A$11,IF($C$7,8,0),1,1) -> 271.48999 | F51: =OFFSET(InputPriceData!E$15,CalculationsAndCharts!$A51+$A$11,IF($C$7,8,0),1,1) -> 270.029999 | G51: =OFFSET(InputPriceData!F$15,CalculationsAndCharts!$A51+$A$11,IF($C$7,8,0),1,1) -> 270.619995 | H51: 2.361491881 | J51: -0.6601961038 | K51: 14.82914739 | T51: 2.361491881 | U51: -0.6601961038 | AQ51: 68021400
A52: 20 | B52: =OFFSET(InputPriceData!B$15,CalculationsAndCharts!$A52+$A$11,0,1,1) -> 2019-02-08 | C52: =OFFSET(InputPriceData!G$15,CalculationsAndCharts!$A52+$A$11,IF($C$7,8,0),1,1) -> 75788900 | D52: =OFFSET(InputPriceData!C$15,CalculationsAndCharts!$A52+$A$11,IF($C$7,8,0),1,1) -> 268.75 | E52: =OFFSET(InputPriceData!D$15,CalculationsAndCharts!$A52+$A$11,IF($C$7,8,0),1,1) -> 270.579987 | F52: =OFFSET(InputPriceData!E$15,CalculationsAndCharts!$A52+$A$11,IF($C$7,8,0),1,1) -> 267.829987 | G52: =OFFSET(InputPriceData!F$15,CalculationsAndCharts!$A52+$A$11,IF($C$7,8,0),1,1) -> 270.470001 | H52: 2.943069845 | J52: 0.3823186604 | K52: 17.27610041 | T52: 2.943069845 | U52: 0.3823186604 | AP52: 75788900
A53: 21 | B53: =OFFSET(InputPriceData!B$15,CalculationsAndCharts!$A53+$A$11,0,1,1) -> 2019-02-07 | C53: =OFFSET(InputPriceData!G$15,CalculationsAndCharts!$A53+$A$11,IF($C$7,8,0),1,1) -> 95482000 | D53: =OFFSET(InputPriceData!C$15,CalculationsAndCharts!$A53+$A$11,IF($C$7,8,0),1,1) -> 270.940002 | E53: =OFFSET(InputPriceData!D$15,CalculationsAndCharts!$A53+$A$11,IF($C$7,8,0),1,1) -> 271.549988 | F53: =OFFSET(InputPriceData!E$15,CalculationsAndCharts!$A53+$A$11,IF($C$7,8,0),1,1) -> 268.290009 | G53: =OFFSET(InputPriceData!F$15,CalculationsAndCharts!$A53+$A$11,IF($C$7,8,0),1,1) -> 270.140015 | H53: 3.29197695 | J53: 2.07842599 | K53: 17.67343571 | T53: 3.29197695 | U53: 2.07842599 | AQ53: 95482000
A54: 22 | B54: =OFFSET(InputPriceData!B$15,CalculationsAndCharts!$A54+$A$11,0,1,1) -> 2019-02-06 | C54: =OFFSET(InputPriceData!G$15,CalculationsAndCharts!$A54+$A$11,IF($C$7,8,0),1,1) -> 58347800 | D54: =OFFSET(InputPriceData!C$15,CalculationsAndCharts!$A54+$A$11,IF($C$7,8,0),1,1) -> 272.790009 | E54: =OFFSET(InputPriceData!D$15,CalculationsAndCharts!$A54+$A$11,IF($C$7,8,0),1,1) -> 273.339996 | F54: =OFFSET(InputPriceData!E$15,CalculationsAndCharts!$A54+$A$11,IF($C$7,8,0),1,1) -> 271.920013 | G54: =OFFSET(InputPriceData!F$15,CalculationsAndCharts!$A54+$A$11,IF($C$7,8,0),1,1) -> 272.73999 | H54: 3.241166555 | J54: 3.919072735 | K54: 15.52792659 | T54: 3.241166555 | U54: 3.919072735 | AQ54: 58347800
A55: 23 | B55: =OFFSET(InputPriceData!B$15,CalculationsAndCharts!$A55+$A$11,0,1,1) -> 2019-02-05 | C55: =OFFSET(InputPriceData!G$15,CalculationsAndCharts!$A55+$A$11,IF($C$7,8,0),1,1) -> 79552800 | D55: =OFFSET(InputPriceData!C$15,CalculationsAndCharts!$A55+$A$11,IF($C$7,8,0),1,1) -> 272.440002 | E55: =OFFSET(InputPriceData!D$15,CalculationsAndCharts!$A55+$A$11,IF($C$7,8,0),1,1) -> 273.440002 | F55: =OFFSET(InputPriceData!E$15,CalculationsAndCharts!$A55+$A$11,IF($C$7,8,0),1,1) -> 271.880005 | G55: =OFFSET(InputPriceData!F$15,CalculationsAndCharts!$A55+$A$11,IF($C$7,8,0),1,1) -> 273.100006 | H55: 2.73490231 | J55: 4.796159839 | K55: 11.61325402 | T55: 2.73490231 | U55: 4.796159839 | AP55: 79552800
A56: 24 | B56: =OFFSET(InputPriceData!B$15,CalculationsAndCharts!$A56+$A$11,0,1,1) -> 2019-02-04 | C56: =OFFSET(InputPriceData!G$15,CalculationsAndCharts!$A56+$A$11,IF($C$7,8,0),1,1) -> 60744800 | D56: =OFFSET(InputPriceData!C$15,CalculationsAndCharts!$A56+$A$11,IF($C$7,8,0),1,1) -> 270.109985 | E56: =OFFSET(InputPriceData!D$15,CalculationsAndCharts!$A56+$A$11,IF($C$7,8,0),1,1) -> 272.029999 | F56: =OFFSET(InputPriceData!E$15,CalculationsAndCharts!$A56+$A$11,IF($C$7,8,0),1,1) -> 269.359985 | G56: =OFFSET(InputPriceData!F$15,CalculationsAndCharts!$A56+$A$11,IF($C$7,8,0),1,1) -> 271.959991 | H56: 1.940468448 | J56: 4.804437411 | K56: 6.838373278 | T56: 1.940468448 | U56: 4.804437411 | AP56: 60744800
A57: 25 | B57: =OFFSET(InputPriceData!B$15,CalculationsAndCharts!$A57+$A$11,0,1,1) -> 2019-02-01 | C57: =OFFSET(InputPriceData!G$15,CalculationsAndCharts!$A57+$A$11,IF($C$7,8,0),1,1) -> 85782500 | D57: =OFFSET(InputPriceData!C$15,CalculationsAndCharts!$A57+$A$11,IF($C$7,8,0),1,1) -> 270.149994 | E57: =OFFSET(InputPriceData!D$15,CalculationsAndCharts!$A57+$A$11,IF($C$7,8,0),1,1) -> 271.200012 | F57: =OFFSET(InputPriceData!E$15,CalculationsAndCharts!$A57+$A$11,IF($C$7,8,0),1,1) -> 269.179993 | G57: =OFFSET(InputPriceData!F$15,CalculationsAndCharts!$A57+$A$11,IF($C$7,8,0),1,1) -> 270.059998 | H57: 1.007666994 | J57: 4.527450588 | K57: 1.518551374 | T57: 1.007666994 | U57: 4.527450588 | AQ57: 85782500
A58: 26 | B58: =OFFSET(InputPriceData!B$15,CalculationsAndCharts!$A58+$A$11,0,1,1) -> 2019-01-31 | C58: =OFFSET(InputPriceData!G$15,CalculationsAndCharts!$A58+$A$11,IF($C$7,8,0),1,1) -> 104012100 | D58: =OFFSET(InputPriceData!C$15,CalculationsAndCharts!$A58+$A$11,IF($C$7,8,0),1,1) -> 267.51001 | E58: =OFFSET(InputPriceData!D$15,CalculationsAndCharts!$A58+$A$11,IF($C$7,8,0),1,1) -> 270.470001 | F58: =OFFSET(InputPriceData!E$15,CalculationsAndCharts!$A58+$A$11,IF($C$7,8,0),1,1) -> 267.269989 | G58: =OFFSET(InputPriceData!F$15,CalculationsAndCharts!$A58+$A$11,IF($C$7,8,0),1,1) -> 269.929993 | H58: -0.02108264034 | J58: 3.829320422 | K58: -3.955816264 | T58: -0.02108264034 | U58: 3.829320422 | AP58: 104012100
A59: 27 | B59: =OFFSET(InputPriceData!B$15,CalculationsAndCharts!$A59+$A$11,0,1,1) -> 2019-01-30 | C59: =OFFSET(InputPriceData!G$15,CalculationsAndCharts!$A59+$A$11,IF($C$7,8,0),1,1) -> 92473700 | D59: =OFFSET(InputPriceData!C$15,CalculationsAndCharts!$A59+$A$11,IF($C$7,8,0),1,1) -> 265.100006 | E59: =OFFSET(InputPriceData!D$15,CalculationsAndCharts!$A59+$A$11,IF($C$7,8,0),1,1) -> 268.519989 | F59: =OFFSET(InputPriceData!E$15,CalculationsAndCharts!$A59+$A$11,IF($C$7,8,0),1,1) -> 264.25 | G59: =OFFSET(InputPriceData!F$15,CalculationsAndCharts!$A59+$A$11,IF($C$7,8,0),1,1) -> 267.579987 | H59: -1.030404717 | J59: 1.778619784 | K59: -7.961048084 | T59: -1.030404717 | U59: 1.778619784 | AP59: 92473700
A60: 28 | B60: =OFFSET(InputPriceData!B$15,CalculationsAndCharts!$A60+$A$11,0,1,1) -> 2019-01-29 | C60: =OFFSET(InputPriceData!G$15,CalculationsAndCharts!$A60+$A$11,IF($C$7,8,0),1,1) -> 66136300 | D60: =OFFSET(InputPriceData!C$15,CalculationsAndCharts!$A60+$A$11,IF($C$7,8,0),1,1) -> 263.920013 | E60: =OFFSET(InputPriceData!D$15,CalculationsAndCharts!$A60+$A$11,IF($C$7,8,0),1,1) -> 264.549988 | F60: =OFFSET(InputPriceData!E$15,CalculationsAndCharts!$A60+$A$11,IF($C$7,8,0),1,1) -> 262.480011 | G60: =OFFSET(InputPriceData!F$15,CalculationsAndCharts!$A60+$A$11,IF($C$7,8,0),1,1) -> 263.410004 | H60: -1.750647316 | J60: 0.00639225212 | K60: -10.51027615 | T60: -1.750647316 | U60: 0.00639225212 | AQ60: 66136300
A61: 29 | B61: =OFFSET(InputPriceData!B$15,CalculationsAndCharts!$A61+$A$11,0,1,1) -> 2019-01-28 | C61: =OFFSET(InputPriceData!G$15,CalculationsAndCharts!$A61+$A$11,IF($C$7,8,0),1,1) -> 85613700 | D61: =OFFSET(InputPriceData!C$15,CalculationsAndCharts!$A61+$A$11,IF($C$7,8,0),1,1) -> 263.390015 | E61: =OFFSET(InputPriceData!D$15,CalculationsAndCharts!$A61+$A$11,IF($C$7,8,0),1,1) -> 263.829987 | F61: =OFFSET(InputPriceData!E$15,CalculationsAndCharts!$A61+$A$11,IF($C$7,8,0),1,1) -> 261.790009 | G61: =OFFSET(InputPriceData!F$15,CalculationsAndCharts!$A61+$A$11,IF($C$7,8,0),1,1) -> 263.76001 | H61: -2.195202066 | J61: -0.2764339372 | K61: -12.89477846 | T61: -2.195202066 | U61: -0.2764339372 | AP61: 85613700
A62: 30 | B62: =OFFSET(InputPriceData!B$15,CalculationsAndCharts!$A62+$A$11,0,1,1) -> 2019-01-25 | C62: =OFFSET(InputPriceData!G$15,CalculationsAndCharts!$A62+$A$11,IF($C$7,8,0),1,1) -> 96883400 | D62: =OFFSET(InputPriceData!C$15,CalculationsAndCharts!$A62+$A$11,IF($C$7,8,0),1,1) -> 265.609985 | E62: =OFFSET(InputPriceData!D$15,CalculationsAndCharts!$A62+$A$11,IF($C$7,8,0),1,1) -> 266.700012 | F62: =OFFSET(InputPriceData!E$15,CalculationsAndCharts!$A62+$A$11,IF($C$7,8,0),1,1) -> 263.660004 | G62: =OFFSET(InputPriceData!F$15,CalculationsAndCharts!$A62+$A$11,IF($C$7,8,0),1,1) -> 265.779999 | H62: -2.549374579 | J62: -1.103167493 | K62: -14.19307998 | T62: -2.549374579 | U62: -1.103167493 | AP62: 96883400
A63: 31 | B63: =OFFSET(InputPriceData!B$15,CalculationsAndCharts!$A63+$A$11,0,1,1) -> 2019-01-24 | C63: =OFFSET(InputPriceData!G$15,CalculationsAndCharts!$A63+$A$11,IF($C$7,8,0),1,1) -> 59204100 | D63: =OFFSET(InputPriceData!C$15,CalculationsAndCharts!$A63+$A$11,IF($C$7,8,0),1,1) -> 263.209991 | E63: =OFFSET(InputPriceData!D$15,CalculationsAndCharts!$A63+$A$11,IF($C$7,8,0),1,1) -> 264.200012 | F63: =OFFSET(InputPriceData!E$15,CalculationsAndCharts!$A63+$A$11,IF($C$7,8,0),1,1) -> 262.079987 | G63: =OFFSET(InputPriceData!F$15,CalculationsAndCharts!$A63+$A$11,IF($C$7,8,0),1,1) -> 263.549988 | H63: -2.664170583 | J63: -2.400706269 | K63: -13.58431723 | T63: -2.664170583 | U63: -2.400706269 | AP63: 59204100
A64: 32 | B64: =OFFSET(InputPriceData!B$15,CalculationsAndCharts!$A64+$A$11,0,1,1) -> 2019-01-23 | C64: =OFFSET(InputPriceData!G$15,CalculationsAndCharts!$A64+$A$11,IF($C$7,8,0),1,1) -> 86030300 | D64: =OFFSET(InputPriceData!C$15,CalculationsAndCharts!$A64+$A$11,IF($C$7,8,0),1,1) -> 264.01001 | E64: =OFFSET(InputPriceData!D$15,CalculationsAndCharts!$A64+$A$11,IF($C$7,8,0),1,1) -> 264.790009 | F64: =OFFSET(InputPriceData!E$15,CalculationsAndCharts!$A64+$A$11,IF($C$7,8,0),1,1) -> 260.660004 | G64: =OFFSET(InputPriceData!F$15,CalculationsAndCharts!$A64+$A$11,IF($C$7,8,0),1,1) -> 263.410004 | H64: -2.41997763 | J64: -3.232527375 | K64: -11.28733841 | T64: -2.41997763 | U64: -3.232527375 | AQ64: 86030300
A65: 33 | B65: =OFFSET(InputPriceData!B$15,CalculationsAndCharts!$A65+$A$11,0,1,1) -> 2019-01-22 | C65: =OFFSET(InputPriceData!G$15,CalculationsAndCharts!$A65+$A$11,IF($C$7,8,0),1,1) -> 115531200 | D65: =OFFSET(InputPriceData!C$15,CalculationsAndCharts!$A65+$A$11,IF($C$7,8,0),1,1) -> 264.820007 | E65: =OFFSET(InputPriceData!D$15,CalculationsAndCharts!$A65+$A$11,IF($C$7,8,0),1,1) -> 265.059998 | F65: =OFFSET(InputPriceData!E$15,CalculationsAndCharts!$A65+$A$11,IF($C$7,8,0),1,1) -> 261.059998 | G65: =OFFSET(InputPriceData!F$15,CalculationsAndCharts!$A65+$A$11,IF($C$7,8,0),1,1) -> 262.859985 | H65: -1.881020046 | J65: -2.862937959 | K65: -8.423182316 | T65: -1.881020046 | U65: -2.862937959 | AQ65: 115531200
A66: 34 | B66: =OFFSET(InputPriceData!B$15,CalculationsAndCharts!$A66+$A$11,0,1,1) -> 2019-01-18 | C66: =OFFSET(InputPriceData!G$15,CalculationsAndCharts!$A66+$A$11,IF($C$7,8,0),1,1) -> 127900300 | D66: =OFFSET(InputPriceData!C$15,CalculationsAndCharts!$A66+$A$11,IF($C$7,8,0),1,1) -> 264.980011 | E66: =OFFSET(InputPriceData!D$15,CalculationsAndCharts!$A66+$A$11,IF($C$7,8,0),1,1) -> 266.980011 | F66: =OFFSET(InputPriceData!E$15,CalculationsAndCharts!$A66+$A$11,IF($C$7,8,0),1,1) -> 263 | G66: =OFFSET(InputPriceData!F$15,CalculationsAndCharts!$A66+$A$11,IF($C$7,8,0),1,1) -> 266.459991 | H66: -1.231056595 | J66: -2.869901263 | K66: -4.516438306 | T66: -1.231056595 | U66: -2.869901263 | AP66: 127900300
A67: 35 | B67: =OFFSET(InputPriceData!B$15,CalculationsAndCharts!$A67+$A$11,0,1,1) -> 2019-01-17 | C67: =OFFSET(InputPriceData!G$15,CalculationsAndCharts!$A67+$A$11,IF($C$7,8,0),1,1) -> 96118400 | D67: =OFFSET(InputPriceData!C$15,CalculationsAndCharts!$A67+$A$11,IF($C$7,8,0),1,1) -> 260.01001 | E67: =OFFSET(InputPriceData!D$15,CalculationsAndCharts!$A67+$A$11,IF($C$7,8,0),1,1) -> 263.920013 | F67: =OFFSET(InputPriceData!E$15,CalculationsAndCharts!$A67+$A$11,IF($C$7,8,0),1,1) -> 259.959991 | G67: =OFFSET(InputPriceData!F$15,CalculationsAndCharts!$A67+$A$11,IF($C$7,8,0),1,1) -> 262.959991 | H67: -0.4065873759 | J67: -3.844762687 | K67: 1.405238432 | T67: -0.4065873759 | U67: -3.844762687 | AP67: 96118400
A68: 36 | B68: =OFFSET(InputPriceData!B$15,CalculationsAndCharts!$A68+$A$11,0,1,1) -> 2019-01-16 | C68: =OFFSET(InputPriceData!G$15,CalculationsAndCharts!$A68+$A$11,IF($C$7,8,0),1,1) -> 77636700 | D68: =OFFSET(InputPriceData!C$15,CalculationsAndCharts!$A68+$A$11,IF($C$7,8,0),1,1) -> 260.829987 | E68: =OFFSET(InputPriceData!D$15,CalculationsAndCharts!$A68+$A$11,IF($C$7,8,0),1,1) -> 261.970001 | F68: =OFFSET(InputPriceData!E$15,CalculationsAndCharts!$A68+$A$11,IF($C$7,8,0),1,1) -> 260.600006 | G68: =OFFSET(InputPriceData!F$15,CalculationsAndCharts!$A68+$A$11,IF($C$7,8,0),1,1) -> 260.980011 | H68: 0.7508601705 | J68: -3.455463591 | K68: 7.960624614 | T68: 0.7508601705 | U68: -3.455463591 | AP68: 77636700
A69: 37 | B69: =OFFSET(InputPriceData!B$15,CalculationsAndCharts!$A69+$A$11,0,1,1) -> 2019-01-15 | C69: =OFFSET(InputPriceData!G$15,CalculationsAndCharts!$A69+$A$11,IF($C$7,8,0),1,1) -> 85208300 | D69: =OFFSET(InputPriceData!C$15,CalculationsAndCharts!$A69+$A$11,IF($C$7,8,0),1,1) -> 257.820007 | E69: =OFFSET(InputPriceData!D$15,CalculationsAndCharts!$A69+$A$11,IF($C$7,8,0),1,1) -> 260.700012 | F69: =OFFSET(InputPriceData!E$15,CalculationsAndCharts!$A69+$A$11,IF($C$7,8,0),1,1) -> 257.809998 | G69: =OFFSET(InputPriceData!F$15,CalculationsAndCharts!$A69+$A$11,IF($C$7,8,0),1,1) -> 260.350006 | H69: 2.033214977 | J69: -2.839621721 | K69: 15.03891159 | T69: 2.033214977 | U69: -2.839621721 | AP69: 85208300
A70: 38 | B70: =OFFSET(InputPriceData!B$15,CalculationsAndCharts!$A70+$A$11,0,1,1) -> 2019-01-14 | C70: =OFFSET(InputPriceData!G$15,CalculationsAndCharts!$A70+$A$11,IF($C$7,8,0),1,1) -> 70908200 | D70: =OFFSET(InputPriceData!C$15,CalculationsAndCharts!$A70+$A$11,IF($C$7,8,0),1,1) -> 256.859985 | E70: =OFFSET(InputPriceData!D$15,CalculationsAndCharts!$A70+$A$11,IF($C$7,8,0),1,1) -> 258.299988 | F70: =OFFSET(InputPriceData!E$15,CalculationsAndCharts!$A70+$A$11,IF($C$7,8,0),1,1) -> 256.410004 | G70: =OFFSET(InputPriceData!F$15,CalculationsAndCharts!$A70+$A$11,IF($C$7,8,0),1,1) -> 257.399994 | H70: 3.359705603 | J70: -1.339337858 | K70: 21.49757148 | T70: 3.359705603 | U70: -1.339337858 | AP70: 70908200
A71: 39 | B71: =OFFSET(InputPriceData!B$15,CalculationsAndCharts!$A71+$A$11,0,1,1) -> 2019-01-11 | C71: =OFFSET(InputPriceData!G$15,CalculationsAndCharts!$A71+$A$11,IF($C$7,8,0),1,1) -> 73858100 | D71: =OFFSET(InputPriceData!C$15,CalculationsAndCharts!$A71+$A$11,IF($C$7,8,0),1,1) -> 257.679993 | E71: =OFFSET(InputPriceData!D$15,CalculationsAndCharts!$A71+$A$11,IF($C$7,8,0),1,1) -> 259.01001 | F71: =OFFSET(InputPriceData!E$15,CalculationsAndCharts!$A71+$A$11,IF($C$7,8,0),1,1) -> 257.029999 | G71: =OFFSET(InputPriceData!F$15,CalculationsAndCharts!$A71+$A$11,IF($C$7,8,0),1,1) -> 258.980011 | H71: 4.508402468 | J71: 1.232037561 | K71: 25.81837725 | T71: 4.508402468 | U71: 1.232037561 | AP71: 73858100
A72: 40 | B72: =OFFSET(InputPriceData!B$15,CalculationsAndCharts!$A72+$A$11,0,1,1) -> 2019-01-10 | C72: =OFFSET(InputPriceData!G$15,CalculationsAndCharts!$A72+$A$11,IF($C$7,8,0),1,1) -> 96823900 | D72: =OFFSET(InputPriceData!C$15,CalculationsAndCharts!$A72+$A$11,IF($C$7,8,0),1,1) -> 256.26001 | E72: =OFFSET(InputPriceData!D$15,CalculationsAndCharts!$A72+$A$11,IF($C$7,8,0),1,1) -> 259.160004 | F72: =OFFSET(InputPriceData!E$15,CalculationsAndCharts!$A72+$A$11,IF($C$7,8,0),1,1) -> 255.5 | G72: =OFFSET(InputPriceData!F$15,CalculationsAndCharts!$A72+$A$11,IF($C$7,8,0),1,1) -> 258.880005 | H72: 5.231165558 | J72: 3.08502327 | K72: 28.30197008 | T72: 5.231165558 | U72: 3.08502327 | AP72: 96823900
A73: 41 | B73: =OFFSET(InputPriceData!B$15,CalculationsAndCharts!$A73+$A$11,0,1,1) -> 2019-01-09 | C73: =OFFSET(InputPriceData!G$15,CalculationsAndCharts!$A73+$A$11,IF($C$7,8,0),1,1) -> 95006600 | D73: =OFFSET(InputPriceData!C$15,CalculationsAndCharts!$A73+$A$11,IF($C$7,8,0),1,1) -> 257.559998 | E73: =OFFSET(InputPriceData!D$15,CalculationsAndCharts!$A73+$A$11,IF($C$7,8,0),1,1) -> 258.910004 | F73: =OFFSET(InputPriceData!E$15,CalculationsAndCharts!$A73+$A$11,IF($C$7,8,0),1,1) -> 256.190002 | G73: =OFFSET(InputPriceData!F$15,CalculationsAndCharts!$A73+$A$11,IF($C$7,8,0),1,1) -> 257.970001 | H73: 5.521347849 | J73: 4.475027267 | K73: 28.65305983 | T73: 5.521347849 | U73: 4.475027267 | AP73: 95006600
A74: 42 | B74: =OFFSET(InputPriceData!B$15,CalculationsAndCharts!$A74+$A$11,0,1,1) -> 2019-01-08 | C74: =OFFSET(InputPriceData!G$15,CalculationsAndCharts!$A74+$A$11,IF($C$7,8,0),1,1) -> 102512600 | D74: =OFFSET(InputPriceData!C$15,CalculationsAndCharts!$A74+$A$11,IF($C$7,8,0),1,1) -> 256.820007 | E74: =OFFSET(InputPriceData!D$15,CalculationsAndCharts!$A74+$A$11,IF($C$7,8,0),1,1) -> 257.309998 | F74: =OFFSET(InputPriceData!E$15,CalculationsAndCharts!$A74+$A$11,IF($C$7,8,0),1,1) -> 254 | G74: =OFFSET(InputPriceData!F$15,CalculationsAndCharts!$A74+$A$11,IF($C$7,8,0),1,1) -> 256.769989 | H74: 5.358987017 | J74: 5.567962193 | K74: 26.58595991 | T74: 5.358987017 | U74: 5.567962193 | AQ74: 102512600
A75: 43 | B75: =OFFSET(InputPriceData!B$15,CalculationsAndCharts!$A75+$A$11,0,1,1) -> 2019-01-07 | C75: =OFFSET(InputPriceData!G$15,CalculationsAndCharts!$A75+$A$11,IF($C$7,8,0),1,1) -> 103139100 | D75: =OFFSET(InputPriceData!C$15,CalculationsAndCharts!$A75+$A$11,IF($C$7,8,0),1,1) -> 252.690002 | E75: =OFFSET(InputPriceData!D$15,CalculationsAndCharts!$A75+$A$11,IF($C$7,8,0),1,1) -> 255.949997 | F75: =OFFSET(InputPriceData!E$15,CalculationsAndCharts!$A75+$A$11,IF($C$7,8,0),1,1) -> 251.690002 | G75: =OFFSET(InputPriceData!F$15,CalculationsAndCharts!$A75+$A$11,IF($C$7,8,0),1,1) -> 254.380005 | H75: 4.784137448 | J75: 6.450720294 | K75: 22.2541044 | T75: 4.784137448 | U75: 6.450720294 | AP75: 103139100
A76: 44 | B76: =OFFSET(InputPriceData!B$15,CalculationsAndCharts!$A76+$A$11,0,1,1) -> 2019-01-04 | C76: =OFFSET(InputPriceData!G$15,CalculationsAndCharts!$A76+$A$11,IF($C$7,8,0),1,1) -> 142628800 | D76: =OFFSET(InputPriceData!C$15,CalculationsAndCharts!$A76+$A$11,IF($C$7,8,0),1,1) -> 247.589996 | E76: =OFFSET(InputPriceData!D$15,CalculationsAndCharts!$A76+$A$11,IF($C$7,8,0),1,1) -> 253.110001 | F76: =OFFSET(InputPriceData!E$15,CalculationsAndCharts!$A76+$A$11,IF($C$7,8,0),1,1) -> 247.169998 | G76: =OFFSET(InputPriceData!F$15,CalculationsAndCharts!$A76+$A$11,IF($C$7,8,0),1,1) -> 252.389999 | H76: 3.853939991 | J76: 5.515879036 | K76: 17.60776091 | T76: 3.853939991 | U76: 5.515879036 | AP76: 142628800
A77: 45 | B77: =OFFSET(InputPriceData!B$15,CalculationsAndCharts!$A77+$A$11,0,1,1) -> 2019-01-03 | C77: =OFFSET(InputPriceData!G$15,CalculationsAndCharts!$A77+$A$11,IF($C$7,8,0),1,1) -> 143813100 | D77: =OFFSET(InputPriceData!C$15,CalculationsAndCharts!$A77+$A$11,IF($C$7,8,0),1,1) -> 248.229996 | E77: =OFFSET(InputPriceData!D$15,CalculationsAndCharts!$A77+$A$11,IF($C$7,8,0),1,1) -> 248.570007 | F77: =OFFSET(InputPriceData!E$15,CalculationsAndCharts!$A77+$A$11,IF($C$7,8,0),1,1) -> 243.669998 | G77: =OFFSET(InputPriceData!F$15,CalculationsAndCharts!$A77+$A$11,IF($C$7,8,0),1,1) -> 244.210007 | H77: 2.870901083 | J77: 5.751613278 | K77: 11.47379322 | T77: 2.870901083 | U77: 5.751613278 | AQ77: 143813100
A78: 46 | B78: =OFFSET(InputPriceData!B$15,CalculationsAndCharts!$A78+$A$11,0,1,1) -> 2019-01-02 | C78: =OFFSET(InputPriceData!G$15,CalculationsAndCharts!$A78+$A$11,IF($C$7,8,0),1,1) -> 126925200 | D78: =OFFSET(InputPriceData!C$15,CalculationsAndCharts!$A78+$A$11,IF($C$7,8,0),1,1) -> 245.979996 | E78: =OFFSET(InputPriceData!D$15,CalculationsAndCharts!$A78+$A$11,IF($C$7,8,0),1,1) -> 251.210007 | F78: =OFFSET(InputPriceData!E$15,CalculationsAndCharts!$A78+$A$11,IF($C$7,8,0),1,1) -> 245.949997 | G78: =OFFSET(InputPriceData!F$15,CalculationsAndCharts!$A78+$A$11,IF($C$7,8,0),1,1) -> 250.179993 | H78: 1.605321276 | J78: 7.409062207 | K78: 2.22286545 | T78: 1.605321276 | U78: 7.409062207 | AP78: 126925200
A79: 47 | B79: =OFFSET(InputPriceData!B$15,CalculationsAndCharts!$A79+$A$11,0,1,1) -> 2018-12-31 | C79: =OFFSET(InputPriceData!G$15,CalculationsAndCharts!$A79+$A$11,IF($C$7,8,0),1,1) -> 144299400 | D79: =OFFSET(InputPriceData!C$15,CalculationsAndCharts!$A79+$A$11,IF($C$7,8,0),1,1) -> 249.559998 | E79: =OFFSET(InputPriceData!D$15,CalculationsAndCharts!$A79+$A$11,IF($C$7,8,0),1,1) -> 250.190002 | F79: =OFFSET(InputPriceData!E$15,CalculationsAndCharts!$A79+$A$11,IF($C$7,8,0),1,1) -> 247.470001 | G79: =OFFSET(InputPriceData!F$15,CalculationsAndCharts!$A79+$A$11,IF($C$7,8,0),1,1) -> 249.919998 | H79: -0.1608630566 | J79: 6.586573199 | K79: -7.551751538 | T79: -0.1608630566 | U79: 6.586573199 | AP79: 144299400
A80: 48 | B80: =OFFSET(InputPriceData!B$15,CalculationsAndCharts!$A80+$A$11,0,1,1) -> 2018-12-28 | C80: =OFFSET(InputPriceData!G$15,CalculationsAndCharts!$A80+$A$11,IF($C$7,8,0),1,1) -> 153100200 | D80: =OFFSET(InputPriceData!C$15,CalculationsAndCharts!$A80+$A$11,IF($C$7,8,0),1,1) -> 249.580002 | E80: =OFFSET(InputPriceData!D$15,CalculationsAndCharts!$A80+$A$11,IF($C$7,8,0),1,1) -> 251.399994 | F80: =OFFSET(InputPriceData!E$15,CalculationsAndCharts!$A80+$A$11,IF($C$7,8,0),1,1) -> 246.449997 | G80: =OFFSET(InputPriceData!F$15,CalculationsAndCharts!$A80+$A$11,IF($C$7,8,0),1,1) -> 247.75 | H80: -1.955740818 | J80: 5.133729217 | K80: -16.86817413 | T80: -1.955740818 | U80: 5.133729217 | AQ80: 153100200
A81: 49 | B81: =OFFSET(InputPriceData!B$15,CalculationsAndCharts!$A81+$A$11,0,1,1) -> 2018-12-27 | C81: =OFFSET(InputPriceData!G$15,CalculationsAndCharts!$A81+$A$11,IF($C$7,8,0),1,1) -> 186267300 | D81: =OFFSET(InputPriceData!C$15,CalculationsAndCharts!$A81+$A$11,IF($C$7,8,0),1,1) -> 242.570007 | E81: =OFFSET(InputPriceData!D$15,CalculationsAndCharts!$A81+$A$11,IF($C$7,8,0),1,1) -> 248.289993 | F81: =OFFSET(InputPriceData!E$15,CalculationsAndCharts!$A81+$A$11,IF($C$7,8,0),1,1) -> 238.960007 | G81: =OFFSET(InputPriceData!F$15,CalculationsAndCharts!$A81+$A$11,IF($C$7,8,0),1,1) -> 248.070007 | H81: -3.622498734 | J81: 3.226978241 | K81: -24.96197064 | T81: -3.622498734 | U81: 3.226978241 | AP81: 186267300
A82: 50 | B82: =OFFSET(InputPriceData!B$15,CalculationsAndCharts!$A82+$A$11,0,1,1) -> 2018-12-26 | C82: =OFFSET(InputPriceData!G$15,CalculationsAndCharts!$A82+$A$11,IF($C$7,8,0),1,1) -> 218485400 | D82: =OFFSET(InputPriceData!C$15,CalculationsAndCharts!$A82+$A$11,IF($C$7,8,0),1,1) -> 235.970001 | E82: =OFFSET(InputPriceData!D$15,CalculationsAndCharts!$A82+$A$11,IF($C$7,8,0),1,1) -> 246.179993 | F82: =OFFSET(InputPriceData!E$15,CalculationsAndCharts!$A82+$A$11,IF($C$7,8,0),1,1) -> 233.759995 | G82: =OFFSET(InputPriceData!F$15,CalculationsAndCharts!$A82+$A$11,IF($C$7,8,0),1,1) -> 246.179993 | H82: -4.9922815 | J82: -2.207464506 | K82: -27.74622449 | T82: -4.9922815 | U82: -2.207464506 | AP82: =IF(G82>=D82,C82,NA()) -> 218485400 | AQ82: =IF(G82<D82,C82,NA()) -> 
A83: 51 | B83: =OFFSET(InputPriceData!B$15,CalculationsAndCharts!$A83+$A$11,0,1,1) -> 2018-12-24 | C83: =OFFSET(InputPriceData!G$15,CalculationsAndCharts!$A83+$A$11,IF($C$7,8,0),1,1) -> 147311600 | D83: =OFFSET(InputPriceData!C$15,CalculationsAndCharts!$A83+$A$11,IF($C$7,8,0),1,1) -> 239.039993 | E83: =OFFSET(InputPriceData!D$15,CalculationsAndCharts!$A83+$A$11,IF($C$7,8,0),1,1) -> 240.839996 | F83: =OFFSET(InputPriceData!E$15,CalculationsAndCharts!$A83+$A$11,IF($C$7,8,0),1,1) -> 234.270004 | G83: =OFFSET(InputPriceData!F$15,CalculationsAndCharts!$A83+$A$11,IF($C$7,8,0),1,1) -> 234.339996 | H83: -5.403923747 | J83: -6.359330517 | K83: -26.06421196 | T83: -5.403923747 | U83: -6.359330517 | AQ83: 147311600
A84: 52 | B84: =OFFSET(InputPriceData!B$15,CalculationsAndCharts!$A84+$A$11,0,1,1) -> 2018-12-21 | C84: =OFFSET(InputPriceData!G$15,CalculationsAndCharts!$A84+$A$11,IF($C$7,8,0),1,1) -> 255345600 | D84: =OFFSET(InputPriceData!C$15,CalculationsAndCharts!$A84+$A$11,IF($C$7,8,0),1,1) -> 246.740005 | E84: =OFFSET(InputPriceData!D$15,CalculationsAndCharts!$A84+$A$11,IF($C$7,8,0),1,1) -> 249.710007 | F84: =OFFSET(InputPriceData!E$15,CalculationsAndCharts!$A84+$A$11,IF($C$7,8,0),1,1) -> 239.979996 | G84: =OFFSET(InputPriceData!F$15,CalculationsAndCharts!$A84+$A$11,IF($C$7,8,0),1,1) -> 240.699997 | H84: -5.074513563 | J84: -5.987257111 | K84: -24.45982427 | T84: -5.074513563 | U84: -5.987257111 | AQ84: 255345600
A85: 53 | B85: =OFFSET(InputPriceData!B$15,CalculationsAndCharts!$A85+$A$11,0,1,1) -> 2018-12-20 | C85: =OFFSET(InputPriceData!G$15,CalculationsAndCharts!$A85+$A$11,IF($C$7,8,0),1,1) -> 252053400 | D85: =OFFSET(InputPriceData!C$15,CalculationsAndCharts!$A85+$A$11,IF($C$7,8,0),1,1) -> 249.860001 | E85: =OFFSET(InputPriceData!D$15,CalculationsAndCharts!$A85+$A$11,IF($C$7,8,0),1,1) -> 251.619995 | F85: =OFFSET(InputPriceData!E$15,CalculationsAndCharts!$A85+$A$11,IF($C$7,8,0),1,1) -> 244.649994 | G85: =OFFSET(InputPriceData!F$15,CalculationsAndCharts!$A85+$A$11,IF($C$7,8,0),1,1) -> 247.169998 | H85: -4.725824183 | J85: -5.728084085 | K85: -22.62686101 | T85: -4.725824183 | U85: -5.728084085 | AQ85: 252053400
A86: 54 | B86: =OFFSET(InputPriceData!B$15,CalculationsAndCharts!$A86+$A$11,0,1,1) -> 2018-12-19 | C86: =OFFSET(InputPriceData!G$15,CalculationsAndCharts!$A86+$A$11,IF($C$7,8,0),1,1) -> 214992800 | D86: =OFFSET(InputPriceData!C$15,CalculationsAndCharts!$A86+$A$11,IF($C$7,8,0),1,1) -> 255.169998 | E86: =OFFSET(InputPriceData!D$15,CalculationsAndCharts!$A86+$A$11,IF($C$7,8,0),1,1) -> 259.399994 | F86: =OFFSET(InputPriceData!E$15,CalculationsAndCharts!$A86+$A$11,IF($C$7,8,0),1,1) -> 249.350006 | G86: =OFFSET(InputPriceData!F$15,CalculationsAndCharts!$A86+$A$11,IF($C$7,8,0),1,1) -> 251.259995 | H86: -4.298970486 | J86: -5.515396353 | K86: -20.27842657 | T86: -4.298970486 | U86: -5.515396353 | AQ86: 214992800
A87: 55 | B87: =OFFSET(InputPriceData!B$15,CalculationsAndCharts!$A87+$A$11,0,1,1) -> 2018-12-18 | C87: =OFFSET(InputPriceData!G$15,CalculationsAndCharts!$A87+$A$11,IF($C$7,8,0),1,1) -> 134515100 | D87: =OFFSET(InputPriceData!C$15,CalculationsAndCharts!$A87+$A$11,IF($C$7,8,0),1,1) -> 257.200012 | E87: =OFFSET(InputPriceData!D$15,CalculationsAndCharts!$A87+$A$11,IF($C$7,8,0),1,1) -> 257.950012 | F87: =OFFSET(InputPriceData!E$15,CalculationsAndCharts!$A87+$A$11,IF($C$7,8,0),1,1) -> 253.279999 | G87: =OFFSET(InputPriceData!F$15,CalculationsAndCharts!$A87+$A$11,IF($C$7,8,0),1,1) -> 255.080002 | H87: -3.722674657 | J87: -5.726538133 | K87: -16.60950981 | T87: -3.722674657 | U87: -5.726538133 | AQ87: 134515100
A88: 56 | B88: =OFFSET(InputPriceData!B$15,CalculationsAndCharts!$A88+$A$11,0,1,1) -> 2018-12-17 | C88: =OFFSET(InputPriceData!G$15,CalculationsAndCharts!$A88+$A$11,IF($C$7,8,0),1,1) -> 165492300 | D88: =OFFSET(InputPriceData!C$15,CalculationsAndCharts!$A88+$A$11,IF($C$7,8,0),1,1) -> 259.399994 | E88: =OFFSET(InputPriceData!D$15,CalculationsAndCharts!$A88+$A$11,IF($C$7,8,0),1,1) -> 260.649994 | F88: =OFFSET(InputPriceData!E$15,CalculationsAndCharts!$A88+$A$11,IF($C$7,8,0),1,1) -> 253.529999 | G88: =OFFSET(InputPriceData!F$15,CalculationsAndCharts!$A88+$A$11,IF($C$7,8,0),1,1) -> 255.360001 | H88: -2.887614856 | J88: -5.529030858 | K88: -11.79665828 | T88: -2.887614856 | U88: -5.529030858 | AQ88: 165492300
A89: 57 | B89: =OFFSET(InputPriceData!B$15,CalculationsAndCharts!$A89+$A$11,0,1,1) -> 2018-12-14 | C89: =OFFSET(InputPriceData!G$15,CalculationsAndCharts!$A89+$A$11,IF($C$7,8,0),1,1) -> 116961100 | D89: =OFFSET(InputPriceData!C$15,CalculationsAndCharts!$A89+$A$11,IF($C$7,8,0),1,1) -> 262.959991 | E89: =OFFSET(InputPriceData!D$15,CalculationsAndCharts!$A89+$A$11,IF($C$7,8,0),1,1) -> 264.029999 | F89: =OFFSET(InputPriceData!E$15,CalculationsAndCharts!$A89+$A$11,IF($C$7,8,0),1,1) -> 259.850006 | G89: =OFFSET(InputPriceData!F$15,CalculationsAndCharts!$A89+$A$11,IF($C$7,8,0),1,1) -> 260.470001 | H89: -1.910466997 | J89: -3.818117017 | K89: -7.644684967 | T89: -1.910466997 | U89: -3.818117017 | AQ89: 116961100
A90: 58 | B90: =OFFSET(InputPriceData!B$15,CalculationsAndCharts!$A90+$A$11,0,1,1) -> 2018-12-13 | C90: =OFFSET(InputPriceData!G$15,CalculationsAndCharts!$A90+$A$11,IF($C$7,8,0),1,1) -> 96662700 | D90: =OFFSET(InputPriceData!C$15,CalculationsAndCharts!$A90+$A$11,IF($C$7,8,0),1,1) -> 266.519989 | E90: =OFFSET(InputPriceData!D$15,CalculationsAndCharts!$A90+$A$11,IF($C$7,8,0),1,1) -> 267.48999 | F90: =OFFSET(InputPriceData!E$15,CalculationsAndCharts!$A90+$A$11,IF($C$7,8,0),1,1) -> 264.119995 | G90: =OFFSET(InputPriceData!F$15,CalculationsAndCharts!$A90+$A$11,IF($C$7,8,0),1,1) -> 265.369995 | H90: -1.068114698 | J90: -2.930145922 | K90: -3.478542266 | T90: -1.068114698 | U90: -2.930145922 | AQ90: 96662700
A91: 59 | B91: =OFFSET(InputPriceData!B$15,CalculationsAndCharts!$A91+$A$11,0,1,1) -> 2018-12-12 | C91: =OFFSET(InputPriceData!G$15,CalculationsAndCharts!$A91+$A$11,IF($C$7,8,0),1,1) -> 97976700 | D91: =OFFSET(InputPriceData!C$15,CalculationsAndCharts!$A91+$A$11,IF($C$7,8,0),1,1) -> 267.470001 | E91: =OFFSET(InputPriceData!D$15,CalculationsAndCharts!$A91+$A$11,IF($C$7,8,0),1,1) -> 269 | F91: =OFFSET(InputPriceData!E$15,CalculationsAndCharts!$A91+$A$11,IF($C$7,8,0),1,1) -> 265.369995 | G91: =OFFSET(InputPriceData!F$15,CalculationsAndCharts!$A91+$A$11,IF($C$7,8,0),1,1) -> 265.459991 | H91: -0.2521080298 | J91: -3.331565176 | K91: 1.818916998 | T91: -0.2521080298 | U91: -3.331565176 | AQ91: 97976700
A92: 60 | B92: =OFFSET(InputPriceData!B$15,CalculationsAndCharts!$A92+$A$11,0,1,1) -> 2018-12-11 | C92: =OFFSET(InputPriceData!G$15,CalculationsAndCharts!$A92+$A$11,IF($C$7,8,0),1,1) -> 121504400 | D92: =OFFSET(InputPriceData!C$15,CalculationsAndCharts!$A92+$A$11,IF($C$7,8,0),1,1) -> 267.660004 | E92: =OFFSET(InputPriceData!D$15,CalculationsAndCharts!$A92+$A$11,IF($C$7,8,0),1,1) -> 267.869995 | F92: =OFFSET(InputPriceData!E$15,CalculationsAndCharts!$A92+$A$11,IF($C$7,8,0),1,1) -> 262.480011 | G92: =OFFSET(InputPriceData!F$15,CalculationsAndCharts!$A92+$A$11,IF($C$7,8,0),1,1) -> 264.130005 | H92: 0.7070421721 | J92: -3.529727244 | K92: 7.771980277 | T92: 0.7070421721 | U92: -3.529727244 | AQ92: 121504400
A93: 61 | B93: =OFFSET(InputPriceData!B$15,CalculationsAndCharts!$A93+$A$11,0,1,1) -> 2018-12-10 | C93: =OFFSET(InputPriceData!G$15,CalculationsAndCharts!$A93+$A$11,IF($C$7,8,0),1,1) -> 151445900 | D93: =OFFSET(InputPriceData!C$15,CalculationsAndCharts!$A93+$A$11,IF($C$7,8,0),1,1) -> 263.369995 | E93: =OFFSET(InputPriceData!D$15,CalculationsAndCharts!$A93+$A$11,IF($C$7,8,0),1,1) -> 265.160004 | F93: =OFFSET(InputPriceData!E$15,CalculationsAndCharts!$A93+$A$11,IF($C$7,8,0),1,1) -> 258.619995 | G93: =OFFSET(InputPriceData!F$15,CalculationsAndCharts!$A93+$A$11,IF($C$7,8,0),1,1) -> 264.070007 | H93: 1.729450424 | J93: -3.337219968 | K93: 13.71392251 | T93: 1.729450424 | U93: -3.337219968 | AP93: 151445900
A94: 62 | B94: =OFFSET(InputPriceData!B$15,CalculationsAndCharts!$A94+$A$11,0,1,1) -> 2018-12-07 | C94: =OFFSET(InputPriceData!G$15,CalculationsAndCharts!$A94+$A$11,IF($C$7,8,0),1,1) -> 161018900 | D94: =OFFSET(InputPriceData!C$15,CalculationsAndCharts!$A94+$A$11,IF($C$7,8,0),1,1) -> 269.459991 | E94: =OFFSET(InputPriceData!D$15,CalculationsAndCharts!$A94+$A$11,IF($C$7,8,0),1,1) -> 271.220001 | F94: =OFFSET(InputPriceData!E$15,CalculationsAndCharts!$A94+$A$11,IF($C$7,8,0),1,1) -> 262.630005 | G94: =OFFSET(InputPriceData!F$15,CalculationsAndCharts!$A94+$A$11,IF($C$7,8,0),1,1) -> 263.570007 | H94: 2.682173522 | J94: -1.338346806 | K94: 17.43138794 | T94: 2.682173522 | U94: -1.338346806 | AQ94: 161018900
A95: 63 | B95: =OFFSET(InputPriceData!B$15,CalculationsAndCharts!$A95+$A$11,0,1,1) -> 2018-12-06 | C95: =OFFSET(InputPriceData!G$15,CalculationsAndCharts!$A95+$A$11,IF($C$7,8,0),1,1) -> 204185400 | D95: =OFFSET(InputPriceData!C$15,CalculationsAndCharts!$A95+$A$11,IF($C$7,8,0),1,1) -> 265.920013 | E95: =OFFSET(InputPriceData!D$15,CalculationsAndCharts!$A95+$A$11,IF($C$7,8,0),1,1) -> 269.970001 | F95: =OFFSET(InputPriceData!E$15,CalculationsAndCharts!$A95+$A$11,IF($C$7,8,0),1,1) -> 262.440002 | G95: =OFFSET(InputPriceData!F$15,CalculationsAndCharts!$A95+$A$11,IF($C$7,8,0),1,1) -> 269.839996 | H95: 3.203561275 | J95: 1.038033988 | K95: 18.18333366 | T95: 3.203561275 | U95: 1.038033988 | AP95: 204185400
A96: 64 | B96: =OFFSET(InputPriceData!B$15,CalculationsAndCharts!$A96+$A$11,0,1,1) -> 2018-12-04 | C96: =OFFSET(InputPriceData!G$15,CalculationsAndCharts!$A96+$A$11,IF($C$7,8,0),1,1) -> 177986000 | D96: =OFFSET(InputPriceData!C$15,CalculationsAndCharts!$A96+$A$11,IF($C$7,8,0),1,1) -> 278.369995 | E96: =OFFSET(InputPriceData!D$15,CalculationsAndCharts!$A96+$A$11,IF($C$7,8,0),1,1) -> 278.850006 | F96: =OFFSET(InputPriceData!E$15,CalculationsAndCharts!$A96+$A$11,IF($C$7,8,0),1,1) -> 269.899994 | G96: =OFFSET(InputPriceData!F$15,CalculationsAndCharts!$A96+$A$11,IF($C$7,8,0),1,1) -> 270.25 | H96: 3.167992365 | J96: 4.257526617 | K96: 14.75042757 | T96: 3.167992365 | U96: 4.257526617 | AQ96: 177986000
A97: 65 | B97: =OFFSET(InputPriceData!B$15,CalculationsAndCharts!$A97+$A$11,0,1,1) -> 2018-12-03 | C97: =OFFSET(InputPriceData!G$15,CalculationsAndCharts!$A97+$A$11,IF($C$7,8,0),1,1) -> 103176300 | D97: =OFFSET(InputPriceData!C$15,CalculationsAndCharts!$A97+$A$11,IF($C$7,8,0),1,1) -> 280.279999 | E97: =OFFSET(InputPriceData!D$15,CalculationsAndCharts!$A97+$A$11,IF($C$7,8,0),1,1) -> 280.399994 | F97: =OFFSET(InputPriceData!E$15,CalculationsAndCharts!$A97+$A$11,IF($C$7,8,0),1,1) -> 277.51001 | G97: =OFFSET(InputPriceData!F$15,CalculationsAndCharts!$A97+$A$11,IF($C$7,8,0),1,1) -> 279.299988 | H97: 2.419841768 | J97: 6.543947613 | K97: 7.975102997 | T97: 2.419841768 | U97: 6.543947613 | AQ97: 103176300
A98: 66 | B98: =OFFSET(InputPriceData!B$15,CalculationsAndCharts!$A98+$A$11,0,1,1) -> 2018-11-30 | C98: =OFFSET(InputPriceData!G$15,CalculationsAndCharts!$A98+$A$11,IF($C$7,8,0),1,1) -> 98204200 | D98: =OFFSET(InputPriceData!C$15,CalculationsAndCharts!$A98+$A$11,IF($C$7,8,0),1,1) -> 273.809998 | E98: =OFFSET(InputPriceData!D$15,CalculationsAndCharts!$A98+$A$11,IF($C$7,8,0),1,1) -> 276.279999 | F98: =OFFSET(InputPriceData!E$15,CalculationsAndCharts!$A98+$A$11,IF($C$7,8,0),1,1) -> 273.450012 | G98: =OFFSET(InputPriceData!F$15,CalculationsAndCharts!$A98+$A$11,IF($C$7,8,0),1,1) -> 275.649994 | H98: =0.5*$D$22*(G98-G100)+$D$18*$D$21*H99-$D$20*H100 -> 1.14309544 | J98: =$D$17*H98-K98 -> 5.63220352 | K98: =SUMPRODUCT(OFFSET($L$32,1,0,$D$16,1),OFFSET(J98,1,0,$D$16,1)) -> 1.226369123 | L98: =IF(A98>$D$16,"",($D$16-A98+1)/$D$16) ->  | T98: =IF(OR($R$17=1,$R$17=3),H98,NA()) -> 1.14309544 | U98: =IF(OR($R$17=2,$R$17=3),J98,NA()) -> 5.63220352 | AP98: 98204200
A99: 67 | B99: =OFFSET(InputPriceData!B$15,CalculationsAndCharts!$A99+$A$11,0,1,1) -> 2018-11-29 | C99: =OFFSET(InputPriceData!G$15,CalculationsAndCharts!$A99+$A$11,IF($C$7,8,0),1,1) -> 82346400 | D99: =OFFSET(InputPriceData!C$15,CalculationsAndCharts!$A99+$A$11,IF($C$7,8,0),1,1) -> 273.709991 | E99: =OFFSET(InputPriceData!D$15,CalculationsAndCharts!$A99+$A$11,IF($C$7,8,0),1,1) -> 275.549988 | F99: =OFFSET(InputPriceData!E$15,CalculationsAndCharts!$A99+$A$11,IF($C$7,8,0),1,1) -> 272.429993 | G99: =OFFSET(InputPriceData!F$15,CalculationsAndCharts!$A99+$A$11,IF($C$7,8,0),1,1) -> 273.980011 | H99: -0.136980384 | J99: 5.189118467 | K99: -6.011000771 | T99: -0.136980384 | U99: 5.189118467 | AP99: 82346400
A100: 68 | B100: =OFFSET(InputPriceData!B$15,CalculationsAndCharts!$A100+$A$11,0,1,1) -> 2018-11-28 | C100: =OFFSET(InputPriceData!G$15,CalculationsAndCharts!$A100+$A$11,IF($C$7,8,0),1,1) -> 127629600 | D100: =OFFSET(InputPriceData!C$15,CalculationsAndCharts!$A100+$A$11,IF($C$7,8,0),1,1) -> 269.600006 | E100: =OFFSET(InputPriceData!D$15,CalculationsAndCharts!$A100+$A$11,IF($C$7,8,0),1,1) -> 274.579987 | F100: =OFFSET(InputPriceData!E$15,CalculationsAndCharts!$A100+$A$11,IF($C$7,8,0),1,1) -> 268.329987 | G100: =OFFSET(InputPriceData!F$15,CalculationsAndCharts!$A100+$A$11,IF($C$7,8,0),1,1) -> 274.579987 | H100: -1.464041619 | J100: 3.237510597 | K100: -12.02176031 | T100: -1.464041619 | U100: 3.237510597 | AP100: 127629600
A101: 69 | B101: =OFFSET(InputPriceData!B$15,CalculationsAndCharts!$A101+$A$11,0,1,1) -> 2018-11-27 | C101: =OFFSET(InputPriceData!G$15,CalculationsAndCharts!$A101+$A$11,IF($C$7,8,0),1,1) -> 75502400 | D101: =OFFSET(InputPriceData!C$15,CalculationsAndCharts!$A101+$A$11,IF($C$7,8,0),1,1) -> 266.339996 | E101: =OFFSET(InputPriceData!D$15,CalculationsAndCharts!$A101+$A$11,IF($C$7,8,0),1,1) -> 268.399994 | F101: =OFFSET(InputPriceData!E$15,CalculationsAndCharts!$A101+$A$11,IF($C$7,8,0),1,1) -> 265.660004 | G101: =OFFSET(InputPriceData!F$15,CalculationsAndCharts!$A101+$A$11,IF($C$7,8,0),1,1) -> 268.399994 | H101: -2.522271122 | J101: 0.5872502896 | K101: -15.72087702 | T101: -2.522271122 | U101: 0.5872502896 | AP101: 75502400
A102: 70 | B102: =OFFSET(InputPriceData!B$15,CalculationsAndCharts!$A102+$A$11,0,1,1) -> 2018-11-26 | C102: =OFFSET(InputPriceData!G$15,CalculationsAndCharts!$A102+$A$11,IF($C$7,8,0),1,1) -> 79981400 | D102: =OFFSET(InputPriceData!C$15,CalculationsAndCharts!$A102+$A$11,IF($C$7,8,0),1,1) -> 265.779999 | E102: =OFFSET(InputPriceData!D$15,CalculationsAndCharts!$A102+$A$11,IF($C$7,8,0),1,1) -> 267.75 | F102: =OFFSET(InputPriceData!E$15,CalculationsAndCharts!$A102+$A$11,IF($C$7,8,0),1,1) -> 265.339996 | G102: =OFFSET(InputPriceData!F$15,CalculationsAndCharts!$A102+$A$11,IF($C$7,8,0),1,1) -> 267.5 | H102: -3.120512631 | J102: -1.704743893 | K102: -17.01833189 | T102: -3.120512631 | U102: -1.704743893 | AP102: 79981400
A103: 71 | B103: =OFFSET(InputPriceData!B$15,CalculationsAndCharts!$A103+$A$11,0,1,1) -> 2018-11-23 | C103: =OFFSET(InputPriceData!G$15,CalculationsAndCharts!$A103+$A$11,IF($C$7,8,0),1,1) -> 42807900 | D103: =OFFSET(InputPriceData!C$15,CalculationsAndCharts!$A103+$A$11,IF($C$7,8,0),1,1) -> 263.179993 | E103: =OFFSET(InputPriceData!D$15,CalculationsAndCharts!$A103+$A$11,IF($C$7,8,0),1,1) -> 264.820007 | F103: =OFFSET(InputPriceData!E$15,CalculationsAndCharts!$A103+$A$11,IF($C$7,8,0),1,1) -> 263.070007 | G103: =OFFSET(InputPriceData!F$15,CalculationsAndCharts!$A103+$A$11,IF($C$7,8,0),1,1) -> 263.25 | H103: -3.239117789 | J103: -3.368779634 | K103: -16.0659271 | T103: -3.239117789 | U103: -3.368779634 | AP103: 42807900
A104: 72 | B104: =OFFSET(InputPriceData!B$15,CalculationsAndCharts!$A104+$A$11,0,1,1) -> 2018-11-21 | C104: =OFFSET(InputPriceData!G$15,CalculationsAndCharts!$A104+$A$11,IF($C$7,8,0),1,1) -> 75563700 | D104: =OFFSET(InputPriceData!C$15,CalculationsAndCharts!$A104+$A$11,IF($C$7,8,0),1,1) -> 265.859985 | E104: =OFFSET(InputPriceData!D$15,CalculationsAndCharts!$A104+$A$11,IF($C$7,8,0),1,1) -> 267.149994 | F104: =OFFSET(InputPriceData!E$15,CalculationsAndCharts!$A104+$A$11,IF($C$7,8,0),1,1) -> 265.01001 | G104: =OFFSET(InputPriceData!F$15,CalculationsAndCharts!$A104+$A$11,IF($C$7,8,0),1,1) -> 265.019989 | H104: -2.935964725 | J104: -4.264216143 | K104: -13.3515722 | T104: -2.935964725 | U104: -4.264216143 | AQ104: 75563700
A105: 73 | B105: =OFFSET(InputPriceData!B$15,CalculationsAndCharts!$A105+$A$11,0,1,1) -> 2018-11-20 | C105: =OFFSET(InputPriceData!G$15,CalculationsAndCharts!$A105+$A$11,IF($C$7,8,0),1,1) -> 136021300 | D105: =OFFSET(InputPriceData!C$15,CalculationsAndCharts!$A105+$A$11,IF($C$7,8,0),1,1) -> 265.359985 | E105: =OFFSET(InputPriceData!D$15,CalculationsAndCharts!$A105+$A$11,IF($C$7,8,0),1,1) -> 267 | F105: =OFFSET(InputPriceData!E$15,CalculationsAndCharts!$A105+$A$11,IF($C$7,8,0),1,1) -> 263.149994 | G105: =OFFSET(InputPriceData!F$15,CalculationsAndCharts!$A105+$A$11,IF($C$7,8,0),1,1) -> 264.119995 | H105: -2.344449563 | J105: -4.430706066 | K105: -9.635991314 | T105: -2.344449563 | U105: -4.430706066 | AQ105: 136021300
A106: 74 | B106: =OFFSET(InputPriceData!B$15,CalculationsAndCharts!$A106+$A$11,0,1,1) -> 2018-11-19 | C106: =OFFSET(InputPriceData!G$15,CalculationsAndCharts!$A106+$A$11,IF($C$7,8,0),1,1) -> 103061700 | D106: =OFFSET(InputPriceData!C$15,CalculationsAndCharts!$A106+$A$11,IF($C$7,8,0),1,1) -> 273.049988 | E106: =OFFSET(InputPriceData!D$15,CalculationsAndCharts!$A106+$A$11,IF($C$7,8,0),1,1) -> 273.380005 | F106: =OFFSET(InputPriceData!E$15,CalculationsAndCharts!$A106+$A$11,IF($C$7,8,0),1,1) -> 268.070007 | G106: =OFFSET(InputPriceData!F$15,CalculationsAndCharts!$A106+$A$11,IF($C$7,8,0),1,1) -> 269.100006 | H106: -1.632535786 | J106: -2.960029802 | K106: -6.835184914 | T106: -1.632535786 | U106: -2.960029802 | AQ106: 103061700
A107: 75 | B107: =OFFSET(InputPriceData!B$15,CalculationsAndCharts!$A107+$A$11,0,1,1) -> 2018-11-16 | C107: =OFFSET(InputPriceData!G$15,CalculationsAndCharts!$A107+$A$11,IF($C$7,8,0),1,1) -> 126668000 | D107: =OFFSET(InputPriceData!C$15,CalculationsAndCharts!$A107+$A$11,IF($C$7,8,0),1,1) -> 271.790009 | E107: =OFFSET(InputPriceData!D$15,CalculationsAndCharts!$A107+$A$11,IF($C$7,8,0),1,1) -> 274.75 | F107: =OFFSET(InputPriceData!E$15,CalculationsAndCharts!$A107+$A$11,IF($C$7,8,0),1,1) -> 271.209991 | G107: =OFFSET(InputPriceData!F$15,CalculationsAndCharts!$A107+$A$11,IF($C$7,8,0),1,1) -> 273.730011 | H107: -1.089072697 | J107: -2.334177005 | K107: -4.200259176 | T107: -1.089072697 | U107: -2.334177005 | AP107: 126668000
A108: 76 | B108: =OFFSET(InputPriceData!B$15,CalculationsAndCharts!$A108+$A$11,0,1,1) -> 2018-11-15 | C108: =OFFSET(InputPriceData!G$15,CalculationsAndCharts!$A108+$A$11,IF($C$7,8,0),1,1) -> 135101400 | D108: =OFFSET(InputPriceData!C$15,CalculationsAndCharts!$A108+$A$11,IF($C$7,8,0),1,1) -> 268.779999 | E108: =OFFSET(InputPriceData!D$15,CalculationsAndCharts!$A108+$A$11,IF($C$7,8,0),1,1) -> 273.540009 | F108: =OFFSET(InputPriceData!E$15,CalculationsAndCharts!$A108+$A$11,IF($C$7,8,0),1,1) -> 267.01001 | G108: =OFFSET(InputPriceData!F$15,CalculationsAndCharts!$A108+$A$11,IF($C$7,8,0),1,1) -> 273.019989 | H108: -0.5505071136 | J108: -3.196371186 | K108: -0.1066714962 | T108: -0.5505071136 | U108: -3.196371186 | AP108: 135101400
A109: 77 | B109: =OFFSET(InputPriceData!B$15,CalculationsAndCharts!$A109+$A$11,0,1,1) -> 2018-11-14 | C109: =OFFSET(InputPriceData!G$15,CalculationsAndCharts!$A109+$A$11,IF($C$7,8,0),1,1) -> 125335900 | D109: =OFFSET(InputPriceData!C$15,CalculationsAndCharts!$A109+$A$11,IF($C$7,8,0),1,1) -> 274.160004 | E109: =OFFSET(InputPriceData!D$15,CalculationsAndCharts!$A109+$A$11,IF($C$7,8,0),1,1) -> 274.609985 | F109: =OFFSET(InputPriceData!E$15,CalculationsAndCharts!$A109+$A$11,IF($C$7,8,0),1,1) -> 268.450012 | G109: =OFFSET(InputPriceData!F$15,CalculationsAndCharts!$A109+$A$11,IF($C$7,8,0),1,1) -> 270.200012 | H109: 0.2325673593 | J109: -3.287467021 | K109: 4.682871177 | T109: 0.2325673593 | U109: -3.287467021 | AQ109: 125335900
A110: 78 | B110: =OFFSET(InputPriceData!B$15,CalculationsAndCharts!$A110+$A$11,0,1,1) -> 2018-11-13 | C110: =OFFSET(InputPriceData!G$15,CalculationsAndCharts!$A110+$A$11,IF($C$7,8,0),1,1) -> 98176600 | D110: =OFFSET(InputPriceData!C$15,CalculationsAndCharts!$A110+$A$11,IF($C$7,8,0),1,1) -> 273.089996 | E110: =OFFSET(InputPriceData!D$15,CalculationsAndCharts!$A110+$A$11,IF($C$7,8,0),1,1) -> 275.329987 | F110: =OFFSET(InputPriceData!E$15,CalculationsAndCharts!$A110+$A$11,IF($C$7,8,0),1,1) -> 271.25 | G110: =OFFSET(InputPriceData!F$15,CalculationsAndCharts!$A110+$A$11,IF($C$7,8,0),1,1) -> 272.059998 | H110: 1.095256912 | J110: -2.460307076 | K110: 9.031848551 | T110: 1.095256912 | U110: -2.460307076 | AQ110: 98176600
A111: 79 | B111: =OFFSET(InputPriceData!B$15,CalculationsAndCharts!$A111+$A$11,0,1,1) -> 2018-11-12 | C111: =OFFSET(InputPriceData!G$15,CalculationsAndCharts!$A111+$A$11,IF($C$7,8,0),1,1) -> 99673600 | D111: =OFFSET(InputPriceData!C$15,CalculationsAndCharts!$A111+$A$11,IF($C$7,8,0),1,1) -> 277.190002 | E111: =OFFSET(InputPriceData!D$15,CalculationsAndCharts!$A111+$A$11,IF($C$7,8,0),1,1) -> 277.459991 | F111: =OFFSET(InputPriceData!E$15,CalculationsAndCharts!$A111+$A$11,IF($C$7,8,0),1,1) -> 271.98999 | G111: =OFFSET(InputPriceData!F$15,CalculationsAndCharts!$A111+$A$11,IF($C$7,8,0),1,1) -> 272.570007 | H111: 1.819987644 | J111: -0.7177349478 | K111: 11.63766081 | T111: 1.819987644 | U111: -0.7177349478 | AQ111: 99673600
A112: 80 | B112: =OFFSET(InputPriceData!B$15,CalculationsAndCharts!$A112+$A$11,0,1,1) -> 2018-11-09 | C112: =OFFSET(InputPriceData!G$15,CalculationsAndCharts!$A112+$A$11,IF($C$7,8,0),1,1) -> 98812600 | D112: =OFFSET(InputPriceData!C$15,CalculationsAndCharts!$A112+$A$11,IF($C$7,8,0),1,1) -> 279.029999 | E112: =OFFSET(InputPriceData!D$15,CalculationsAndCharts!$A112+$A$11,IF($C$7,8,0),1,1) -> 279.23999 | F112: =OFFSET(InputPriceData!E$15,CalculationsAndCharts!$A112+$A$11,IF($C$7,8,0),1,1) -> 276.179993 | G112: =OFFSET(InputPriceData!F$15,CalculationsAndCharts!$A112+$A$11,IF($C$7,8,0),1,1) -> 277.76001 | H112: 2.185444822 | J112: 1.903635698 | K112: 11.20903323 | T112: 2.185444822 | U112: 1.903635698 | AQ112: 98812600
A113: 81 | B113: =OFFSET(InputPriceData!B$15,CalculationsAndCharts!$A113+$A$11,0,1,1) -> 2018-11-08 | C113: =OFFSET(InputPriceData!G$15,CalculationsAndCharts!$A113+$A$11,IF($C$7,8,0),1,1) -> 65584900 | D113: =OFFSET(InputPriceData!C$15,CalculationsAndCharts!$A113+$A$11,IF($C$7,8,0),1,1) -> 280.109985 | E113: =OFFSET(InputPriceData!D$15,CalculationsAndCharts!$A113+$A$11,IF($C$7,8,0),1,1) -> 281.220001 | F113: =OFFSET(InputPriceData!E$15,CalculationsAndCharts!$A113+$A$11,IF($C$7,8,0),1,1) -> 279.220001 | G113: =OFFSET(InputPriceData!F$15,CalculationsAndCharts!$A113+$A$11,IF($C$7,8,0),1,1) -> 280.5 | H113: 2.033806111 | J113: 3.534406177 | K113: 8.668430489 | T113: 2.033806111 | U113: 3.534406177 | AP113: 65584900
A114: 82 | B114: =OFFSET(InputPriceData!B$15,CalculationsAndCharts!$A114+$A$11,0,1,1) -> 2018-11-07 | C114: =OFFSET(InputPriceData!G$15,CalculationsAndCharts!$A114+$A$11,IF($C$7,8,0),1,1) -> 102752100 | D114: =OFFSET(InputPriceData!C$15,CalculationsAndCharts!$A114+$A$11,IF($C$7,8,0),1,1) -> 277.559998 | E114: =OFFSET(InputPriceData!D$15,CalculationsAndCharts!$A114+$A$11,IF($C$7,8,0),1,1) -> 281.100006 | F114: =OFFSET(InputPriceData!E$15,CalculationsAndCharts!$A114+$A$11,IF($C$7,8,0),1,1) -> 277.079987 | G114: =OFFSET(InputPriceData!F$15,CalculationsAndCharts!$A114+$A$11,IF($C$7,8,0),1,1) -> 281.01001 | H114: 1.529624176 | J114: 3.081918585 | K114: 6.095826473 | T114: 1.529624176 | U114: 3.081918585 | AP114: 102752100
A115: 83 | B115: =OFFSET(InputPriceData!B$15,CalculationsAndCharts!$A115+$A$11,0,1,1) -> 2018-11-06 | C115: =OFFSET(InputPriceData!G$15,CalculationsAndCharts!$A115+$A$11,IF($C$7,8,0),1,1) -> 60085900 | D115: =OFFSET(InputPriceData!C$15,CalculationsAndCharts!$A115+$A$11,IF($C$7,8,0),1,1) -> 273.320007 | E115: =OFFSET(InputPriceData!D$15,CalculationsAndCharts!$A115+$A$11,IF($C$7,8,0),1,1) -> 275.299988 | F115: =OFFSET(InputPriceData!E$15,CalculationsAndCharts!$A115+$A$11,IF($C$7,8,0),1,1) -> 273.25 | G115: =OFFSET(InputPriceData!F$15,CalculationsAndCharts!$A115+$A$11,IF($C$7,8,0),1,1) -> 275.119995 | H115: 1.048375259 | J115: 2.043086158 | K115: 4.247165393 | T115: 1.048375259 | U115: 2.043086158 | AP115: 60085900
A116: 84 | B116: =OFFSET(InputPriceData!B$15,CalculationsAndCharts!$A116+$A$11,0,1,1) -> 2018-11-05 | C116: =OFFSET(InputPriceData!G$15,CalculationsAndCharts!$A116+$A$11,IF($C$7,8,0),1,1) -> 65622500 | D116: =OFFSET(InputPriceData!C$15,CalculationsAndCharts!$A116+$A$11,IF($C$7,8,0),1,1) -> 272.440002 | E116: =OFFSET(InputPriceData!D$15,CalculationsAndCharts!$A116+$A$11,IF($C$7,8,0),1,1) -> 274.01001 | F116: =OFFSET(InputPriceData!E$15,CalculationsAndCharts!$A116+$A$11,IF($C$7,8,0),1,1) -> 271.350006 | G116: =OFFSET(InputPriceData!F$15,CalculationsAndCharts!$A116+$A$11,IF($C$7,8,0),1,1) -> 273.390015 | H116: 0.7325784738 | J116: 1.8055722 | K116: 2.589898643 | T116: 0.7325784738 | U116: 1.8055722 | AP116: 65622500
A117: 85 | B117: =OFFSET(InputPriceData!B$15,CalculationsAndCharts!$A117+$A$11,0,1,1) -> 2018-11-02 | C117: =OFFSET(InputPriceData!G$15,CalculationsAndCharts!$A117+$A$11,IF($C$7,8,0),1,1) -> 122634100 | D117: =OFFSET(InputPriceData!C$15,CalculationsAndCharts!$A117+$A$11,IF($C$7,8,0),1,1) -> 274.75 | E117: =OFFSET(InputPriceData!D$15,CalculationsAndCharts!$A117+$A$11,IF($C$7,8,0),1,1) -> 275.230011 | F117: =OFFSET(InputPriceData!E$15,CalculationsAndCharts!$A117+$A$11,IF($C$7,8,0),1,1) -> 269.589996 | G117: =OFFSET(InputPriceData!F$15,CalculationsAndCharts!$A117+$A$11,IF($C$7,8,0),1,1) -> 271.890015 | H117: 0.448405175 | J117: 2.171838677 | K117: 0.5185923726 | T117: 0.448405175 | U117: 2.171838677 | AQ117: 122634100
A118: 86 | B118: =OFFSET(InputPriceData!B$15,CalculationsAndCharts!$A118+$A$11,0,1,1) -> 2018-11-01 | C118: =OFFSET(InputPriceData!G$15,CalculationsAndCharts!$A118+$A$11,IF($C$7,8,0),1,1) -> 99495000 | D118: =OFFSET(InputPriceData!C$15,CalculationsAndCharts!$A118+$A$11,IF($C$7,8,0),1,1) -> 271.600006 | E118: =OFFSET(InputPriceData!D$15,CalculationsAndCharts!$A118+$A$11,IF($C$7,8,0),1,1) -> 273.730011 | F118: =OFFSET(InputPriceData!E$15,CalculationsAndCharts!$A118+$A$11,IF($C$7,8,0),1,1) -> 270.380005 | G118: =OFFSET(InputPriceData!F$15,CalculationsAndCharts!$A118+$A$11,IF($C$7,8,0),1,1) -> 273.51001 | H118: 0.09039268878 | J118: 2.156265396 | K118: -1.613909263 | T118: 0.09039268878 | U118: 2.156265396 | AP118: 99495000
A119: 87 | B119: =OFFSET(InputPriceData!B$15,CalculationsAndCharts!$A119+$A$11,0,1,1) -> 2018-10-31 | C119: =OFFSET(InputPriceData!G$15,CalculationsAndCharts!$A119+$A$11,IF($C$7,8,0),1,1) -> 128296300 | D119: =OFFSET(InputPriceData!C$15,CalculationsAndCharts!$A119+$A$11,IF($C$7,8,0),1,1) -> 270.649994 | E119: =OFFSET(InputPriceData!D$15,CalculationsAndCharts!$A119+$A$11,IF($C$7,8,0),1,1) -> 273.230011 | F119: =OFFSET(InputPriceData!E$15,CalculationsAndCharts!$A119+$A$11,IF($C$7,8,0),1,1) -> 270.119995 | G119: =OFFSET(InputPriceData!F$15,CalculationsAndCharts!$A119+$A$11,IF($C$7,8,0),1,1) -> 270.630005 | H119: -0.2545826008 | J119: 1.01904474 | K119: -2.546540345 | T119: -0.2545826008 | U119: 1.01904474 | AQ119: 128296300
A120: 88 | B120: =OFFSET(InputPriceData!B$15,CalculationsAndCharts!$A120+$A$11,0,1,1) -> 2018-10-30 | C120: =OFFSET(InputPriceData!G$15,CalculationsAndCharts!$A120+$A$11,IF($C$7,8,0),1,1) -> 157116000 | D120: =OFFSET(InputPriceData!C$15,CalculationsAndCharts!$A120+$A$11,IF($C$7,8,0),1,1) -> 263.670013 | E120: =OFFSET(InputPriceData!D$15,CalculationsAndCharts!$A120+$A$11,IF($C$7,8,0),1,1) -> 268.119995 | F120: =OFFSET(InputPriceData!E$15,CalculationsAndCharts!$A120+$A$11,IF($C$7,8,0),1,1) -> 263.119995 | G120: =OFFSET(InputPriceData!F$15,CalculationsAndCharts!$A120+$A$11,IF($C$7,8,0),1,1) -> 267.769989 | H120: -0.3670859156 | J120: -0.7230718305 | K120: -1.479443663 | T120: -0.3670859156 | U120: -0.7230718305 | AP120: 157116000
A121: 89 | B121: =OFFSET(InputPriceData!B$15,CalculationsAndCharts!$A121+$A$11,0,1,1) -> 2018-10-29 | C121: =OFFSET(InputPriceData!G$15,CalculationsAndCharts!$A121+$A$11,IF($C$7,8,0),1,1) -> 160749100 | D121: =OFFSET(InputPriceData!C$15,CalculationsAndCharts!$A121+$A$11,IF($C$7,8,0),1,1) -> 268.799988 | E121: =OFFSET(InputPriceData!D$15,CalculationsAndCharts!$A121+$A$11,IF($C$7,8,0),1,1) -> 270.25 | F121: =OFFSET(InputPriceData!E$15,CalculationsAndCharts!$A121+$A$11,IF($C$7,8,0),1,1) -> 259.850006 | G121: =OFFSET(InputPriceData!F$15,CalculationsAndCharts!$A121+$A$11,IF($C$7,8,0),1,1) -> 263.859985 | H121: -0.1745156543 | J121: -1.813987009 | K121: 0.7668930837 | T121: -0.1745156543 | U121: -1.813987009 | AQ121: 160749100
A122: 90 | B122: =OFFSET(InputPriceData!B$15,CalculationsAndCharts!$A122+$A$11,0,1,1) -> 2018-10-26 | C122: =OFFSET(InputPriceData!G$15,CalculationsAndCharts!$A122+$A$11,IF($C$7,8,0),1,1) -> 201574600 | D122: =OFFSET(InputPriceData!C$15,CalculationsAndCharts!$A122+$A$11,IF($C$7,8,0),1,1) -> 265.920013 | E122: =OFFSET(InputPriceData!D$15,CalculationsAndCharts!$A122+$A$11,IF($C$7,8,0),1,1) -> 271 | F122: =OFFSET(InputPriceData!E$15,CalculationsAndCharts!$A122+$A$11,IF($C$7,8,0),1,1) -> 262.290009 | G122: =OFFSET(InputPriceData!F$15,CalculationsAndCharts!$A122+$A$11,IF($C$7,8,0),1,1) -> 265.329987 | H122: 0.1513757701 | J122: -0.7964360238 | K122: 1.704690644 | T122: 0.1513757701 | U122: -0.7964360238 | AQ122: 201574600
A123: 91 | B123: =OFFSET(InputPriceData!B$15,CalculationsAndCharts!$A123+$A$11,0,1,1) -> 2018-10-25 | C123: =OFFSET(InputPriceData!G$15,CalculationsAndCharts!$A123+$A$11,IF($C$7,8,0),1,1) -> 138061500 | D123: =OFFSET(InputPriceData!C$15,CalculationsAndCharts!$A123+$A$11,IF($C$7,8,0),1,1) -> 267.380005 | E123: =OFFSET(InputPriceData!D$15,CalculationsAndCharts!$A123+$A$11,IF($C$7,8,0),1,1) -> 271.809998 | F123: =OFFSET(InputPriceData!E$15,CalculationsAndCharts!$A123+$A$11,IF($C$7,8,0),1,1) -> 266.230011 | G123: =OFFSET(InputPriceData!F$15,CalculationsAndCharts!$A123+$A$11,IF($C$7,8,0),1,1) -> 270.079987 | H123: 0.2341202849 | J123: -1.278481183 | K123: 2.683202893 | T123: 0.2341202849 | U123: -1.278481183 | AP123: 138061500
A124: 92 | B124: =OFFSET(InputPriceData!B$15,CalculationsAndCharts!$A124+$A$11,0,1,1) -> 2018-10-24 | C124: =OFFSET(InputPriceData!G$15,CalculationsAndCharts!$A124+$A$11,IF($C$7,8,0),1,1) -> 177806700 | D124: =OFFSET(InputPriceData!C$15,CalculationsAndCharts!$A124+$A$11,IF($C$7,8,0),1,1) -> 273.329987 | E124: =OFFSET(InputPriceData!D$15,CalculationsAndCharts!$A124+$A$11,IF($C$7,8,0),1,1) -> 273.76001 | F124: =OFFSET(InputPriceData!E$15,CalculationsAndCharts!$A124+$A$11,IF($C$7,8,0),1,1) -> 264.700012 | G124: =OFFSET(InputPriceData!F$15,CalculationsAndCharts!$A124+$A$11,IF($C$7,8,0),1,1) -> 265.320007 | H124: 0.3001863749 | J124: -0.7909192669 | K124: 2.592037516 | T124: 0.3001863749 | U124: -0.7909192669 | AQ124: 177806700
A125: 93 | B125: =OFFSET(InputPriceData!B$15,CalculationsAndCharts!$A125+$A$11,0,1,1) -> 2018-10-23 | C125: =OFFSET(InputPriceData!G$15,CalculationsAndCharts!$A125+$A$11,IF($C$7,8,0),1,1) -> 146352700 | D125: =OFFSET(InputPriceData!C$15,CalculationsAndCharts!$A125+$A$11,IF($C$7,8,0),1,1) -> 270.950012 | E125: =OFFSET(InputPriceData!D$15,CalculationsAndCharts!$A125+$A$11,IF($C$7,8,0),1,1) -> 274.869995 | F125: =OFFSET(InputPriceData!E$15,CalculationsAndCharts!$A125+$A$11,IF($C$7,8,0),1,1) -> 268.609985 | G125: =OFFSET(InputPriceData!F$15,CalculationsAndCharts!$A125+$A$11,IF($C$7,8,0),1,1) -> 273.609985 | H125: 0.1967040438 | J125: 1.390495549 | K125: -0.2102712863 | T125: 0.1967040438 | U125: 1.390495549 | AP125: 146352700
A126: 94 | B126: =OFFSET(InputPriceData!B$15,CalculationsAndCharts!$A126+$A$11,0,1,1) -> 2018-10-22 | C126: =OFFSET(InputPriceData!G$15,CalculationsAndCharts!$A126+$A$11,IF($C$7,8,0),1,1) -> 82415800 | D126: =OFFSET(InputPriceData!C$15,CalculationsAndCharts!$A126+$A$11,IF($C$7,8,0),1,1) -> 277 | E126: =OFFSET(InputPriceData!D$15,CalculationsAndCharts!$A126+$A$11,IF($C$7,8,0),1,1) -> 277.359985 | F126: =OFFSET(InputPriceData!E$15,CalculationsAndCharts!$A126+$A$11,IF($C$7,8,0),1,1) -> 274.410004 | G126: =OFFSET(InputPriceData!F$15,CalculationsAndCharts!$A126+$A$11,IF($C$7,8,0),1,1) -> 275.01001 | H126: -0.3315763287 | J126: 1.741881292 | K126: -3.731339265 | T126: -0.3315763287 | U126: 1.741881292 | AQ126: 82415800
A127: 95 | B127: =OFFSET(InputPriceData!B$15,CalculationsAndCharts!$A127+$A$11,0,1,1) -> 2018-10-19 | C127: =OFFSET(InputPriceData!G$15,CalculationsAndCharts!$A127+$A$11,IF($C$7,8,0),1,1) -> 139901600 | D127: =OFFSET(InputPriceData!C$15,CalculationsAndCharts!$A127+$A$11,IF($C$7,8,0),1,1) -> 277.130005 | E127: =OFFSET(InputPriceData!D$15,CalculationsAndCharts!$A127+$A$11,IF($C$7,8,0),1,1) -> 279.299988 | F127: =OFFSET(InputPriceData!E$15,CalculationsAndCharts!$A127+$A$11,IF($C$7,8,0),1,1) -> 275.470001 | G127: =OFFSET(InputPriceData!F$15,CalculationsAndCharts!$A127+$A$11,IF($C$7,8,0),1,1) -> 276.25 | H127: -0.9772509907 | J127: 1.465347573 | K127: -7.328853517 | T127: -0.9772509907 | U127: 1.465347573 | AQ127: 139901600
A128: 96 | B128: =OFFSET(InputPriceData!B$15,CalculationsAndCharts!$A128+$A$11,0,1,1) -> 2018-10-18 | C128: =OFFSET(InputPriceData!G$15,CalculationsAndCharts!$A128+$A$11,IF($C$7,8,0),1,1) -> 134557500 | D128: =OFFSET(InputPriceData!C$15,CalculationsAndCharts!$A128+$A$11,IF($C$7,8,0),1,1) -> 279.399994 | E128: =OFFSET(InputPriceData!D$15,CalculationsAndCharts!$A128+$A$11,IF($C$7,8,0),1,1) -> 280.070007 | F128: =OFFSET(InputPriceData!E$15,CalculationsAndCharts!$A128+$A$11,IF($C$7,8,0),1,1) -> 274.970001 | G128: =OFFSET(InputPriceData!F$15,CalculationsAndCharts!$A128+$A$11,IF($C$7,8,0),1,1) -> 276.399994 | H128: -1.633011671 | J128: 1.582893823 | K128: -11.38096385 | T128: -1.633011671 | U128: 1.582893823 | AQ128: 134557500
A129: 97 | B129: =OFFSET(InputPriceData!B$15,CalculationsAndCharts!$A129+$A$11,0,1,1) -> 2018-10-17 | C129: =OFFSET(InputPriceData!G$15,CalculationsAndCharts!$A129+$A$11,IF($C$7,8,0),1,1) -> 110626000 | D129: =OFFSET(InputPriceData!C$15,CalculationsAndCharts!$A129+$A$11,IF($C$7,8,0),1,1) -> 280.440002 | E129: =OFFSET(InputPriceData!D$15,CalculationsAndCharts!$A129+$A$11,IF($C$7,8,0),1,1) -> 281.149994 | F129: =OFFSET(InputPriceData!E$15,CalculationsAndCharts!$A129+$A$11,IF($C$7,8,0),1,1) -> 277.559998 | G129: =OFFSET(InputPriceData!F$15,CalculationsAndCharts!$A129+$A$11,IF($C$7,8,0),1,1) -> 280.450012 | H129: -2.347789309 | J129: 1.595428908 | K129: -15.68216476 | T129: -2.347789309 | U129: 1.595428908 | AP129: 110626000
A130: 98 | B130: =OFFSET(InputPriceData!B$15,CalculationsAndCharts!$A130+$A$11,0,1,1) -> 2018-10-16 | C130: =OFFSET(InputPriceData!G$15,CalculationsAndCharts!$A130+$A$11,IF($C$7,8,0),1,1) -> 118255800 | D130: =OFFSET(InputPriceData!C$15,CalculationsAndCharts!$A130+$A$11,IF($C$7,8,0),1,1) -> 276.600006 | E130: =OFFSET(InputPriceData!D$15,CalculationsAndCharts!$A130+$A$11,IF($C$7,8,0),1,1) -> 280.820007 | F130: =OFFSET(InputPriceData!E$15,CalculationsAndCharts!$A130+$A$11,IF($C$7,8,0),1,1) -> 276.070007 | G130: =OFFSET(InputPriceData!F$15,CalculationsAndCharts!$A130+$A$11,IF($C$7,8,0),1,1) -> 280.399994 | H130: -3.045402381 | J130: -1.019063032 | K130: -17.25335126 | T130: -3.045402381 | U130: -1.019063032 | AP130: 118255800
A131: 99 | B131: =OFFSET(InputPriceData!B$15,CalculationsAndCharts!$A131+$A$11,0,1,1) -> 2018-10-15 | C131: =OFFSET(InputPriceData!G$15,CalculationsAndCharts!$A131+$A$11,IF($C$7,8,0),1,1) -> 102263700 | D131: =OFFSET(InputPriceData!C$15,CalculationsAndCharts!$A131+$A$11,IF($C$7,8,0),1,1) -> 275.549988 | E131: =OFFSET(InputPriceData!D$15,CalculationsAndCharts!$A131+$A$11,IF($C$7,8,0),1,1) -> 277.040009 | F131: =OFFSET(InputPriceData!E$15,CalculationsAndCharts!$A131+$A$11,IF($C$7,8,0),1,1) -> 274.299988 | G131: =OFFSET(InputPriceData!F$15,CalculationsAndCharts!$A131+$A$11,IF($C$7,8,0),1,1) -> 274.399994 | H131: -3.242351854 | J131: -3.415329833 | K131: -16.03878129 | T131: -3.242351854 | U131: -3.415329833 | AQ131: 102263700
A132: 100 | B132: =OFFSET(InputPriceData!B$15,CalculationsAndCharts!$A132+$A$11,0,1,1) -> 2018-10-12 | C132: =OFFSET(InputPriceData!G$15,CalculationsAndCharts!$A132+$A$11,IF($C$7,8,0),1,1) -> 183186500 | D132: =OFFSET(InputPriceData!C$15,CalculationsAndCharts!$A132+$A$11,IF($C$7,8,0),1,1) -> 276.769989 | E132: =OFFSET(InputPriceData!D$15,CalculationsAndCharts!$A132+$A$11,IF($C$7,8,0),1,1) -> 277.089996 | F132: =OFFSET(InputPriceData!E$15,CalculationsAndCharts!$A132+$A$11,IF($C$7,8,0),1,1) -> 272.369995 | G132: =OFFSET(InputPriceData!F$15,CalculationsAndCharts!$A132+$A$11,IF($C$7,8,0),1,1) -> 275.950012 | H132: -2.943055861 | J132: -5.250455425 | K132: -12.40787974 | T132: -2.943055861 | U132: -5.250455425 | AQ132: 183186500
A133: 101 | B133: =OFFSET(InputPriceData!B$15,CalculationsAndCharts!$A133+$A$11,0,1,1) -> 2018-10-11 | C133: =OFFSET(InputPriceData!G$15,CalculationsAndCharts!$A133+$A$11,IF($C$7,8,0),1,1) -> 274840500 | D133: =OFFSET(InputPriceData!C$15,CalculationsAndCharts!$A133+$A$11,IF($C$7,8,0),1,1) -> 277.079987 | E133: =OFFSET(InputPriceData!D$15,CalculationsAndCharts!$A133+$A$11,IF($C$7,8,0),1,1) -> 278.899994 | F133: =OFFSET(InputPriceData!E$15,CalculationsAndCharts!$A133+$A$11,IF($C$7,8,0),1,1) -> 270.359985 | G133: =OFFSET(InputPriceData!F$15,CalculationsAndCharts!$A133+$A$11,IF($C$7,8,0),1,1) -> 272.170013 | H133: -2.228211167 | J133: -6.029960643 | K133: -7.339306361 | T133: -2.228211167 | U133: -6.029960643 | AQ133: 274840500
A134: 102 | B134: =OFFSET(InputPriceData!B$15,CalculationsAndCharts!$A134+$A$11,0,1,1) -> 2018-10-10 | C134: =OFFSET(InputPriceData!G$15,CalculationsAndCharts!$A134+$A$11,IF($C$7,8,0),1,1) -> 214731000 | D134: =OFFSET(InputPriceData!C$15,CalculationsAndCharts!$A134+$A$11,IF($C$7,8,0),1,1) -> 286.829987 | E134: =OFFSET(InputPriceData!D$15,CalculationsAndCharts!$A134+$A$11,IF($C$7,8,0),1,1) -> 286.910004 | F134: =OFFSET(InputPriceData!E$15,CalculationsAndCharts!$A134+$A$11,IF($C$7,8,0),1,1) -> 277.880005 | G134: =OFFSET(InputPriceData!F$15,CalculationsAndCharts!$A134+$A$11,IF($C$7,8,0),1,1) -> 278.299988 | H134: -1.323970407 | J134: -3.377061948 | K134: -4.566760497 | T134: -1.323970407 | U134: -3.377061948 | AQ134: 214731000
A135: 103 | B135: =OFFSET(InputPriceData!B$15,CalculationsAndCharts!$A135+$A$11,0,1,1) -> 2018-10-09 | C135: =OFFSET(InputPriceData!G$15,CalculationsAndCharts!$A135+$A$11,IF($C$7,8,0),1,1) -> 74339000 | D135: =OFFSET(InputPriceData!C$15,CalculationsAndCharts!$A135+$A$11,IF($C$7,8,0),1,1) -> 287.390015 | E135: =OFFSET(InputPriceData!D$15,CalculationsAndCharts!$A135+$A$11,IF($C$7,8,0),1,1) -> 288.859985 | F135: =OFFSET(InputPriceData!E$15,CalculationsAndCharts!$A135+$A$11,IF($C$7,8,0),1,1) -> 286.769989 | G135: =OFFSET(InputPriceData!F$15,CalculationsAndCharts!$A135+$A$11,IF($C$7,8,0),1,1) -> 287.399994 | H135: -0.8337284055 | J135: -1.564479597 | K135: -3.437890836 | T135: -0.8337284055 | U135: -1.564479597 | AP135: 74339000
A136: 104 | B136: =OFFSET(InputPriceData!B$15,CalculationsAndCharts!$A136+$A$11,0,1,1) -> 2018-10-08 | C136: =OFFSET(InputPriceData!G$15,CalculationsAndCharts!$A136+$A$11,IF($C$7,8,0),1,1) -> 87742200 | D136: =OFFSET(InputPriceData!C$15,CalculationsAndCharts!$A136+$A$11,IF($C$7,8,0),1,1) -> 287.049988 | E136: =OFFSET(InputPriceData!D$15,CalculationsAndCharts!$A136+$A$11,IF($C$7,8,0),1,1) -> 288.220001 | F136: =OFFSET(InputPriceData!E$15,CalculationsAndCharts!$A136+$A$11,IF($C$7,8,0),1,1) -> 285.5 | G136: =OFFSET(InputPriceData!F$15,CalculationsAndCharts!$A136+$A$11,IF($C$7,8,0),1,1) -> 287.820007 | H136: -0.6077785697 | J136: -1.711472369 | K136: -1.93519905 | T136: -0.6077785697 | U136: -1.711472369 | AP136: 87742200
A137: 105 | B137: =OFFSET(InputPriceData!B$15,CalculationsAndCharts!$A137+$A$11,0,1,1) -> 2018-10-05 | C137: =OFFSET(InputPriceData!G$15,CalculationsAndCharts!$A137+$A$11,IF($C$7,8,0),1,1) -> 105951700 | D137: =OFFSET(InputPriceData!C$15,CalculationsAndCharts!$A137+$A$11,IF($C$7,8,0),1,1) -> 289.690002 | E137: =OFFSET(InputPriceData!D$15,CalculationsAndCharts!$A137+$A$11,IF($C$7,8,0),1,1) -> 290.269989 | F137: =OFFSET(InputPriceData!E$15,CalculationsAndCharts!$A137+$A$11,IF($C$7,8,0),1,1) -> 286.220001 | G137: =OFFSET(InputPriceData!F$15,CalculationsAndCharts!$A137+$A$11,IF($C$7,8,0),1,1) -> 287.820007 | H137: -0.3185979581 | J137: -1.450554629 | K137: -0.4610331195 | T137: -0.3185979581 | U137: -1.450554629 | AQ137: 105951700
A138: 106 | B138: =OFFSET(InputPriceData!B$15,CalculationsAndCharts!$A138+$A$11,0,1,1) -> 2018-10-04 | C138: =OFFSET(InputPriceData!G$15,CalculationsAndCharts!$A138+$A$11,IF($C$7,8,0),1,1) -> 111545900 | D138: =OFFSET(InputPriceData!C$15,CalculationsAndCharts!$A138+$A$11,IF($C$7,8,0),1,1) -> 291.179993 | E138: =OFFSET(InputPriceData!D$15,CalculationsAndCharts!$A138+$A$11,IF($C$7,8,0),1,1) -> 291.23999 | F138: =OFFSET(InputPriceData!E$15,CalculationsAndCharts!$A138+$A$11,IF($C$7,8,0),1,1) -> 287.660004 | G138: =OFFSET(InputPriceData!F$15,CalculationsAndCharts!$A138+$A$11,IF($C$7,8,0),1,1) -> 289.440002 | H138: -0.03955496947 | J138: -0.5335705636 | K138: 0.2962407468 | T138: -0.03955496947 | U138: -0.5335705636 | AQ138: 111545900
A139: 107 | B139: =OFFSET(InputPriceData!B$15,CalculationsAndCharts!$A139+$A$11,0,1,1) -> 2018-10-03 | C139: =OFFSET(InputPriceData!G$15,CalculationsAndCharts!$A139+$A$11,IF($C$7,8,0),1,1) -> 64694600 | D139: =OFFSET(InputPriceData!C$15,CalculationsAndCharts!$A139+$A$11,IF($C$7,8,0),1,1) -> 292.73999 | E139: =OFFSET(InputPriceData!D$15,CalculationsAndCharts!$A139+$A$11,IF($C$7,8,0),1,1) -> 293.209991 | F139: =OFFSET(InputPriceData!E$15,CalculationsAndCharts!$A139+$A$11,IF($C$7,8,0),1,1) -> 291.320007 | G139: =OFFSET(InputPriceData!F$15,CalculationsAndCharts!$A139+$A$11,IF($C$7,8,0),1,1) -> 291.720001 | H139: 0.1068444306 | J139: 0.02063925897 | K139: 0.6204273245 | T139: 0.1068444306 | U139: 0.02063925897 | AQ139: 64694600
A140: 108 | B140: =OFFSET(InputPriceData!B$15,CalculationsAndCharts!$A140+$A$11,0,1,1) -> 2018-10-02 | C140: =OFFSET(InputPriceData!G$15,CalculationsAndCharts!$A140+$A$11,IF($C$7,8,0),1,1) -> 47258200 | D140: =OFFSET(InputPriceData!C$15,CalculationsAndCharts!$A140+$A$11,IF($C$7,8,0),1,1) -> 291.559998 | E140: =OFFSET(InputPriceData!D$15,CalculationsAndCharts!$A140+$A$11,IF($C$7,8,0),1,1) -> 292.359985 | F140: =OFFSET(InputPriceData!E$15,CalculationsAndCharts!$A140+$A$11,IF($C$7,8,0),1,1) -> 291.140015 | G140: =OFFSET(InputPriceData!F$15,CalculationsAndCharts!$A140+$A$11,IF($C$7,8,0),1,1) -> 291.559998 | H140: 0.1676306279 | J140: 0.09007711819 | K140: 0.9157066494 | T140: 0.1676306279 | U140: 0.09007711819 | AP140: 47258200
A141: 109 | B141: =OFFSET(InputPriceData!B$15,CalculationsAndCharts!$A141+$A$11,0,1,1) -> 2018-10-01 | C141: =OFFSET(InputPriceData!G$15,CalculationsAndCharts!$A141+$A$11,IF($C$7,8,0),1,1) -> 62078900 | D141: =OFFSET(InputPriceData!C$15,CalculationsAndCharts!$A141+$A$11,IF($C$7,8,0),1,1) -> 292.109985 | E141: =OFFSET(InputPriceData!D$15,CalculationsAndCharts!$A141+$A$11,IF($C$7,8,0),1,1) -> 292.929993 | F141: =OFFSET(InputPriceData!E$15,CalculationsAndCharts!$A141+$A$11,IF($C$7,8,0),1,1) -> 290.980011 | G141: =OFFSET(InputPriceData!F$15,CalculationsAndCharts!$A141+$A$11,IF($C$7,8,0),1,1) -> 291.730011 | H141: 0.2158994613 | J141: -0.01960153273 | K141: 1.314998301 | T141: 0.2158994613 | U141: -0.01960153273 | AQ141: 62078900
A142: 110 | B142: =OFFSET(InputPriceData!B$15,CalculationsAndCharts!$A142+$A$11,0,1,1) -> 2018-09-28 | C142: =OFFSET(InputPriceData!G$15,CalculationsAndCharts!$A142+$A$11,IF($C$7,8,0),1,1) -> 70091400 | D142: =OFFSET(InputPriceData!C$15,CalculationsAndCharts!$A142+$A$11,IF($C$7,8,0),1,1) -> 289.98999 | E142: =OFFSET(InputPriceData!D$15,CalculationsAndCharts!$A142+$A$11,IF($C$7,8,0),1,1) -> 291.279999 | F142: =OFFSET(InputPriceData!E$15,CalculationsAndCharts!$A142+$A$11,IF($C$7,8,0),1,1) -> 289.950012 | G142: =OFFSET(InputPriceData!F$15,CalculationsAndCharts!$A142+$A$11,IF($C$7,8,0),1,1) -> 290.720001 | H142: 0.2804716594 | J142: -0.1064610951 | K142: 1.789291052 | T142: 0.2804716594 | U142: -0.1064610951 | AP142: 70091400
A143: 111 | B143: =OFFSET(InputPriceData!B$15,CalculationsAndCharts!$A143+$A$11,0,1,1) -> 2018-09-27 | C143: =OFFSET(InputPriceData!G$15,CalculationsAndCharts!$A143+$A$11,IF($C$7,8,0),1,1) -> 59249500 | D143: =OFFSET(InputPriceData!C$15,CalculationsAndCharts!$A143+$A$11,IF($C$7,8,0),1,1) -> 290.410004 | E143: =OFFSET(InputPriceData!D$15,CalculationsAndCharts!$A143+$A$11,IF($C$7,8,0),1,1) -> 291.910004 | F143: =OFFSET(InputPriceData!E$15,CalculationsAndCharts!$A143+$A$11,IF($C$7,8,0),1,1) -> 290.100006 | G143: =OFFSET(InputPriceData!F$15,CalculationsAndCharts!$A143+$A$11,IF($C$7,8,0),1,1) -> 290.690002 | H143: 0.3642813422 | J143: -0.1652213386 | K143: 2.350909392 | T143: 0.3642813422 | U143: -0.1652213386 | AP143: 59249500
A144: 112 | B144: =OFFSET(InputPriceData!B$15,CalculationsAndCharts!$A144+$A$11,0,1,1) -> 2018-09-26 | C144: =OFFSET(InputPriceData!G$15,CalculationsAndCharts!$A144+$A$11,IF($C$7,8,0),1,1) -> 79739700 | D144: =OFFSET(InputPriceData!C$15,CalculationsAndCharts!$A144+$A$11,IF($C$7,8,0),1,1) -> 290.910004 | E144: =OFFSET(InputPriceData!D$15,CalculationsAndCharts!$A144+$A$11,IF($C$7,8,0),1,1) -> 292.23999 | F144: =OFFSET(InputPriceData!E$15,CalculationsAndCharts!$A144+$A$11,IF($C$7,8,0),1,1) -> 289.410004 | G144: =OFFSET(InputPriceData!F$15,CalculationsAndCharts!$A144+$A$11,IF($C$7,8,0),1,1) -> 289.880005 | H144: 0.4521827073 | J144: -0.0443242768 | K144: 2.75742052 | T144: 0.4521827073 | U144: -0.0443242768 | AQ144: 79739700
A145: 113 | B145: =OFFSET(InputPriceData!B$15,CalculationsAndCharts!$A145+$A$11,0,1,1) -> 2018-09-25 | C145: =OFFSET(InputPriceData!G$15,CalculationsAndCharts!$A145+$A$11,IF($C$7,8,0),1,1) -> 44370000 | D145: =OFFSET(InputPriceData!C$15,CalculationsAndCharts!$A145+$A$11,IF($C$7,8,0),1,1) -> 291.529999 | E145: =OFFSET(InputPriceData!D$15,CalculationsAndCharts!$A145+$A$11,IF($C$7,8,0),1,1) -> 291.649994 | F145: =OFFSET(InputPriceData!E$15,CalculationsAndCharts!$A145+$A$11,IF($C$7,8,0),1,1) -> 290.480011 | G145: =OFFSET(InputPriceData!F$15,CalculationsAndCharts!$A145+$A$11,IF($C$7,8,0),1,1) -> 290.75 | H145: 0.4987471256 | J145: 0.3299918174 | K145: 2.662490936 | T145: 0.4987471256 | U145: 0.3299918174 | AQ145: 44370000
A146: 114 | B146: =OFFSET(InputPriceData!B$15,CalculationsAndCharts!$A146+$A$11,0,1,1) -> 2018-09-24 | C146: =OFFSET(InputPriceData!G$15,CalculationsAndCharts!$A146+$A$11,IF($C$7,8,0),1,1) -> 53409600 | D146: =OFFSET(InputPriceData!C$15,CalculationsAndCharts!$A146+$A$11,IF($C$7,8,0),1,1) -> 291.339996 | E146: =OFFSET(InputPriceData!D$15,CalculationsAndCharts!$A146+$A$11,IF($C$7,8,0),1,1) -> 291.5 | F146: =OFFSET(InputPriceData!E$15,CalculationsAndCharts!$A146+$A$11,IF($C$7,8,0),1,1) -> 290.369995 | G146: =OFFSET(InputPriceData!F$15,CalculationsAndCharts!$A146+$A$11,IF($C$7,8,0),1,1) -> 291.019989 | H146: 0.4516808905 | J146: 0.6409723198 | K146: 2.069113023 | T146: 0.4516808905 | U146: 0.6409723198 | AP146: =IF(G146>=D146,C146,NA()) ->  | AQ146: =IF(G146<D146,C146,NA()) -> 53409600
A147: 115 | B147: =OFFSET(InputPriceData!B$15,CalculationsAndCharts!$A147+$A$11,0,1,1) -> 2018-09-21 | C147: =OFFSET(InputPriceData!G$15,CalculationsAndCharts!$A147+$A$11,IF($C$7,8,0),1,1) -> 105479700 | D147: =OFFSET(InputPriceData!C$15,CalculationsAndCharts!$A147+$A$11,IF($C$7,8,0),1,1) -> 293.089996 | E147: =OFFSET(InputPriceData!D$15,CalculationsAndCharts!$A147+$A$11,IF($C$7,8,0),1,1) -> 293.220001 | F147: =OFFSET(InputPriceData!E$15,CalculationsAndCharts!$A147+$A$11,IF($C$7,8,0),1,1) -> 291.809998 | G147: =OFFSET(InputPriceData!F$15,CalculationsAndCharts!$A147+$A$11,IF($C$7,8,0),1,1) -> 291.98999 | H147: 0.3040312348 | J147: 1.267257453 | K147: 0.5569299556 | T147: 0.3040312348 | U147: 1.267257453 | AQ147: 105479700
A148: 116 | B148: =OFFSET(InputPriceData!B$15,CalculationsAndCharts!$A148+$A$11,0,1,1) -> 2018-09-20 | C148: =OFFSET(InputPriceData!G$15,CalculationsAndCharts!$A148+$A$11,IF($C$7,8,0),1,1) -> 100360600 | D148: =OFFSET(InputPriceData!C$15,CalculationsAndCharts!$A148+$A$11,IF($C$7,8,0),1,1) -> 292.640015 | E148: =OFFSET(InputPriceData!D$15,CalculationsAndCharts!$A148+$A$11,IF($C$7,8,0),1,1) -> 293.940002 | F148: =OFFSET(InputPriceData!E$15,CalculationsAndCharts!$A148+$A$11,IF($C$7,8,0),1,1) -> 291.23999 | G148: =OFFSET(InputPriceData!F$15,CalculationsAndCharts!$A148+$A$11,IF($C$7,8,0),1,1) -> 293.579987 | H148: 0.008630802866 | J148: 1.110742065 | K148: -1.058957247 | T148: 0.008630802866 | U148: 1.110742065 | AP148: 100360600
A149: 117 | B149: =OFFSET(InputPriceData!B$15,CalculationsAndCharts!$A149+$A$11,0,1,1) -> 2018-09-19 | C149: =OFFSET(InputPriceData!G$15,CalculationsAndCharts!$A149+$A$11,IF($C$7,8,0),1,1) -> 49080600 | D149: =OFFSET(InputPriceData!C$15,CalculationsAndCharts!$A149+$A$11,IF($C$7,8,0),1,1) -> 290.970001 | E149: =OFFSET(InputPriceData!D$15,CalculationsAndCharts!$A149+$A$11,IF($C$7,8,0),1,1) -> 291.690002 | F149: =OFFSET(InputPriceData!E$15,CalculationsAndCharts!$A149+$A$11,IF($C$7,8,0),1,1) -> 290.829987 | G149: =OFFSET(InputPriceData!F$15,CalculationsAndCharts!$A149+$A$11,IF($C$7,8,0),1,1) -> 291.220001 | H149: -0.280320775 | J149: 0.454852576 | K149: -2.136777226 | T149: -0.280320775 | U149: 0.454852576 | AP149: 49080600
A150: 118 | B150: =OFFSET(InputPriceData!B$15,CalculationsAndCharts!$A150+$A$11,0,1,1) -> 2018-09-18 | C150: =OFFSET(InputPriceData!G$15,CalculationsAndCharts!$A150+$A$11,IF($C$7,8,0),1,1) -> 61930400 | D150: =OFFSET(InputPriceData!C$15,CalculationsAndCharts!$A150+$A$11,IF($C$7,8,0),1,1) -> 289.579987 | E150: =OFFSET(InputPriceData!D$15,CalculationsAndCharts!$A150+$A$11,IF($C$7,8,0),1,1) -> 291.579987 | F150: =OFFSET(InputPriceData!E$15,CalculationsAndCharts!$A150+$A$11,IF($C$7,8,0),1,1) -> 289.549988 | G150: =OFFSET(InputPriceData!F$15,CalculationsAndCharts!$A150+$A$11,IF($C$7,8,0),1,1) -> 290.910004 | H150: -0.4551507098 | J150: -0.07059845338 | K150: -2.660305805 | T150: -0.4551507098 | U150: -0.07059845338 | AP150: 61930400
A151: 119 | B151: =OFFSET(InputPriceData!B$15,CalculationsAndCharts!$A151+$A$11,0,1,1) -> 2018-09-17 | C151: =OFFSET(InputPriceData!G$15,CalculationsAndCharts!$A151+$A$11,IF($C$7,8,0),1,1) -> 68244000 | D151: =OFFSET(InputPriceData!C$15,CalculationsAndCharts!$A151+$A$11,IF($C$7,8,0),1,1) -> 290.820007 | E151: =OFFSET(InputPriceData!D$15,CalculationsAndCharts!$A151+$A$11,IF($C$7,8,0),1,1) -> 290.859985 | F151: =OFFSET(InputPriceData!E$15,CalculationsAndCharts!$A151+$A$11,IF($C$7,8,0),1,1) -> 289.029999 | G151: =OFFSET(InputPriceData!F$15,CalculationsAndCharts!$A151+$A$11,IF($C$7,8,0),1,1) -> 289.339996 | H151: -0.5210187744 | J151: -0.2131872606 | K151: -2.912925386 | T151: -0.5210187744 | U151: -0.2131872606 | AQ151: 68244000
A152: 120 | B152: =OFFSET(InputPriceData!B$15,CalculationsAndCharts!$A152+$A$11,0,1,1) -> 2018-09-14 | C152: =OFFSET(InputPriceData!G$15,CalculationsAndCharts!$A152+$A$11,IF($C$7,8,0),1,1) -> 55079900 | D152: =OFFSET(InputPriceData!C$15,CalculationsAndCharts!$A152+$A$11,IF($C$7,8,0),1,1) -> 291.059998 | E152: =OFFSET(InputPriceData!D$15,CalculationsAndCharts!$A152+$A$11,IF($C$7,8,0),1,1) -> 291.269989 | F152: =OFFSET(InputPriceData!E$15,CalculationsAndCharts!$A152+$A$11,IF($C$7,8,0),1,1) -> 290 | G152: =OFFSET(InputPriceData!F$15,CalculationsAndCharts!$A152+$A$11,IF($C$7,8,0),1,1) -> 290.880005 | H152: -0.5379608464 | J152: 0.09186677325 | K152: -3.319631852 | T152: -0.5379608464 | U152: 0.09186677325 | AQ152: 55079900
A153: 121 | B153: =OFFSET(InputPriceData!B$15,CalculationsAndCharts!$A153+$A$11,0,1,1) -> 2018-09-13 | C153: =OFFSET(InputPriceData!G$15,CalculationsAndCharts!$A153+$A$11,IF($C$7,8,0),1,1) -> 51034200 | D153: =OFFSET(InputPriceData!C$15,CalculationsAndCharts!$A153+$A$11,IF($C$7,8,0),1,1) -> 290.320007 | E153: =OFFSET(InputPriceData!D$15,CalculationsAndCharts!$A153+$A$11,IF($C$7,8,0),1,1) -> 291.040009 | F153: =OFFSET(InputPriceData!E$15,CalculationsAndCharts!$A153+$A$11,IF($C$7,8,0),1,1) -> 290 | G153: =OFFSET(InputPriceData!F$15,CalculationsAndCharts!$A153+$A$11,IF($C$7,8,0),1,1) -> 290.829987 | H153: -0.5624118051 | J153: -0.3522156239 | K153: -3.022255206 | T153: -0.5624118051 | U153: -0.3522156239 | AP153: 51034200
A154: 122 | B154: =OFFSET(InputPriceData!B$15,CalculationsAndCharts!$A154+$A$11,0,1,1) -> 2018-09-12 | C154: =OFFSET(InputPriceData!G$15,CalculationsAndCharts!$A154+$A$11,IF($C$7,8,0),1,1) -> 59810800 | D154: =OFFSET(InputPriceData!C$15,CalculationsAndCharts!$A154+$A$11,IF($C$7,8,0),1,1) -> 289.059998 | E154: =OFFSET(InputPriceData!D$15,CalculationsAndCharts!$A154+$A$11,IF($C$7,8,0),1,1) -> 289.799988 | F154: =OFFSET(InputPriceData!E$15,CalculationsAndCharts!$A154+$A$11,IF($C$7,8,0),1,1) -> 288.230011 | G154: =OFFSET(InputPriceData!F$15,CalculationsAndCharts!$A154+$A$11,IF($C$7,8,0),1,1) -> 289.119995 | H154: -0.4595793802 | J154: -0.8141297511 | K154: -1.94334653 | T154: -0.4595793802 | U154: -0.8141297511 | AP154: 59810800
A155: 123 | B155: =OFFSET(InputPriceData!B$15,CalculationsAndCharts!$A155+$A$11,0,1,1) -> 2018-09-11 | C155: =OFFSET(InputPriceData!G$15,CalculationsAndCharts!$A155+$A$11,IF($C$7,8,0),1,1) -> 50530500 | D155: =OFFSET(InputPriceData!C$15,CalculationsAndCharts!$A155+$A$11,IF($C$7,8,0),1,1) -> 287.369995 | E155: =OFFSET(InputPriceData!D$15,CalculationsAndCharts!$A155+$A$11,IF($C$7,8,0),1,1) -> 289.549988 | F155: =OFFSET(InputPriceData!E$15,CalculationsAndCharts!$A155+$A$11,IF($C$7,8,0),1,1) -> 286.980011 | G155: =OFFSET(InputPriceData!F$15,CalculationsAndCharts!$A155+$A$11,IF($C$7,8,0),1,1) -> 289.049988 | H155: -0.2287126988 | J155: -1.046238117 | K155: -0.3260380761 | T155: -0.2287126988 | U155: -1.046238117 | AP155: 50530500
A156: 124 | B156: =OFFSET(InputPriceData!B$15,CalculationsAndCharts!$A156+$A$11,0,1,1) -> 2018-09-10 | C156: =OFFSET(InputPriceData!G$15,CalculationsAndCharts!$A156+$A$11,IF($C$7,8,0),1,1) -> 50210900 | D156: =OFFSET(InputPriceData!C$15,CalculationsAndCharts!$A156+$A$11,IF($C$7,8,0),1,1) -> 288.73999 | E156: =OFFSET(InputPriceData!D$15,CalculationsAndCharts!$A156+$A$11,IF($C$7,8,0),1,1) -> 289.040009 | F156: =OFFSET(InputPriceData!E$15,CalculationsAndCharts!$A156+$A$11,IF($C$7,8,0),1,1) -> 287.880005 | G156: =OFFSET(InputPriceData!F$15,CalculationsAndCharts!$A156+$A$11,IF($C$7,8,0),1,1) -> 288.100006 | H156: 0.08605550511 | J156: -1.365422736 | K156: 1.881755767 | T156: 0.08605550511 | U156: -1.365422736 | AQ156: 50210900
A157: 125 | B157: =OFFSET(InputPriceData!B$15,CalculationsAndCharts!$A157+$A$11,0,1,1) -> 2018-09-07 | C157: =OFFSET(InputPriceData!G$15,CalculationsAndCharts!$A157+$A$11,IF($C$7,8,0),1,1) -> 73524800 | D157: =OFFSET(InputPriceData!C$15,CalculationsAndCharts!$A157+$A$11,IF($C$7,8,0),1,1) -> 286.980011 | E157: =OFFSET(InputPriceData!D$15,CalculationsAndCharts!$A157+$A$11,IF($C$7,8,0),1,1) -> 288.700012 | F157: =OFFSET(InputPriceData!E$15,CalculationsAndCharts!$A157+$A$11,IF($C$7,8,0),1,1) -> 286.709991 | G157: =OFFSET(InputPriceData!F$15,CalculationsAndCharts!$A157+$A$11,IF($C$7,8,0),1,1) -> 287.600006 | H157: 0.4771014583 | J157: -1.231233653 | K157: 4.093842403 | T157: 0.4771014583 | U157: -1.231233653 | AP157: 73524800
A158: 126 | B158: =OFFSET(InputPriceData!B$15,CalculationsAndCharts!$A158+$A$11,0,1,1) -> 2018-09-06 | C158: =OFFSET(InputPriceData!G$15,CalculationsAndCharts!$A158+$A$11,IF($C$7,8,0),1,1) -> 65909900 | D158: =OFFSET(InputPriceData!C$15,CalculationsAndCharts!$A158+$A$11,IF($C$7,8,0),1,1) -> 289.149994 | E158: =OFFSET(InputPriceData!D$15,CalculationsAndCharts!$A158+$A$11,IF($C$7,8,0),1,1) -> 289.48999 | F158: =OFFSET(InputPriceData!E$15,CalculationsAndCharts!$A158+$A$11,IF($C$7,8,0),1,1) -> 287 | G158: =OFFSET(InputPriceData!F$15,CalculationsAndCharts!$A158+$A$11,IF($C$7,8,0),1,1) -> 288.160004 | H158: 0.8490668668 | J158: -0.6055478015 | K158: 5.699949002 | T158: 0.8490668668 | U158: -0.6055478015 | AQ158: 65909900
A159: 127 | B159: =OFFSET(InputPriceData!B$15,CalculationsAndCharts!$A159+$A$11,0,1,1) -> 2018-09-05 | C159: =OFFSET(InputPriceData!G$15,CalculationsAndCharts!$A159+$A$11,IF($C$7,8,0),1,1) -> 72452400 | D159: =OFFSET(InputPriceData!C$15,CalculationsAndCharts!$A159+$A$11,IF($C$7,8,0),1,1) -> 289.410004 | E159: =OFFSET(InputPriceData!D$15,CalculationsAndCharts!$A159+$A$11,IF($C$7,8,0),1,1) -> 289.640015 | F159: =OFFSET(InputPriceData!E$15,CalculationsAndCharts!$A159+$A$11,IF($C$7,8,0),1,1) -> 287.890015 | G159: =OFFSET(InputPriceData!F$15,CalculationsAndCharts!$A159+$A$11,IF($C$7,8,0),1,1) -> 289.029999 | H159: 1.106462791 | J159: 0.1889648761 | K159: 6.449811868 | T159: 1.106462791 | U159: 0.1889648761 | AQ159: 72452400
A160: 128 | B160: =OFFSET(InputPriceData!B$15,CalculationsAndCharts!$A160+$A$11,0,1,1) -> 2018-09-04 | C160: =OFFSET(InputPriceData!G$15,CalculationsAndCharts!$A160+$A$11,IF($C$7,8,0),1,1) -> 57594400 | D160: =OFFSET(InputPriceData!C$15,CalculationsAndCharts!$A160+$A$11,IF($C$7,8,0),1,1) -> 289.839996 | E160: =OFFSET(InputPriceData!D$15,CalculationsAndCharts!$A160+$A$11,IF($C$7,8,0),1,1) -> 290.209991 | F160: =OFFSET(InputPriceData!E$15,CalculationsAndCharts!$A160+$A$11,IF($C$7,8,0),1,1) -> 288.679993 | G160: =OFFSET(InputPriceData!F$15,CalculationsAndCharts!$A160+$A$11,IF($C$7,8,0),1,1) -> 289.809998 | H160: 1.20469464 | J160: 0.9416944637 | K160: 6.286473375 | T160: 1.20469464 | U160: 0.9416944637 | AQ160: 57594400
A161: 129 | B161: =OFFSET(InputPriceData!B$15,CalculationsAndCharts!$A161+$A$11,0,1,1) -> 2018-08-31 | C161: =OFFSET(InputPriceData!G$15,CalculationsAndCharts!$A161+$A$11,IF($C$7,8,0),1,1) -> 66140800 | D161: =OFFSET(InputPriceData!C$15,CalculationsAndCharts!$A161+$A$11,IF($C$7,8,0),1,1) -> 289.839996 | E161: =OFFSET(InputPriceData!D$15,CalculationsAndCharts!$A161+$A$11,IF($C$7,8,0),1,1) -> 290.809998 | F161: =OFFSET(InputPriceData!E$15,CalculationsAndCharts!$A161+$A$11,IF($C$7,8,0),1,1) -> 289.290009 | G161: =OFFSET(InputPriceData!F$15,CalculationsAndCharts!$A161+$A$11,IF($C$7,8,0),1,1) -> 290.309998 | H161: 1.135866564 | J161: 1.450571108 | K161: 5.364628275 | T161: 1.135866564 | U161: 1.450571108 | AP161: 66140800
A162: 130 | B162: =OFFSET(InputPriceData!B$15,CalculationsAndCharts!$A162+$A$11,0,1,1) -> 2018-08-30 | C162: =OFFSET(InputPriceData!G$15,CalculationsAndCharts!$A162+$A$11,IF($C$7,8,0),1,1) -> 61229500 | D162: =OFFSET(InputPriceData!C$15,CalculationsAndCharts!$A162+$A$11,IF($C$7,8,0),1,1) -> 290.940002 | E162: =OFFSET(InputPriceData!D$15,CalculationsAndCharts!$A162+$A$11,IF($C$7,8,0),1,1) -> 291.359985 | F162: =OFFSET(InputPriceData!E$15,CalculationsAndCharts!$A162+$A$11,IF($C$7,8,0),1,1) -> 289.630005 | G162: =OFFSET(InputPriceData!F$15,CalculationsAndCharts!$A162+$A$11,IF($C$7,8,0),1,1) -> 290.299988 | H162: =0.5*$D$22*(G162-G164)+$D$18*$D$21*H163-$D$20*H164 -> 0.9256359491 | J162: =$D$17*H162-K162 -> 1.987790804 | K162: =SUMPRODUCT(OFFSET($L$32,1,0,$D$16,1),OFFSET(J162,1,0,$D$16,1)) -> 3.56602489 | L162: =IF(A162>$D$16,"",($D$16-A162+1)/$D$16) ->  | T162: =IF(OR($R$17=1,$R$17=3),H162,NA()) -> 0.9256359491 | U162: =IF(OR($R$17=2,$R$17=3),J162,NA()) -> 1.987790804 | AQ162: 61229500
A163: 131 | B163: =OFFSET(InputPriceData!B$15,CalculationsAndCharts!$A163+$A$11,0,1,1) -> 2018-08-29 | C163: =OFFSET(InputPriceData!G$15,CalculationsAndCharts!$A163+$A$11,IF($C$7,8,0),1,1) -> 61485500 | D163: =OFFSET(InputPriceData!C$15,CalculationsAndCharts!$A163+$A$11,IF($C$7,8,0),1,1) -> 290.160004 | E163: =OFFSET(InputPriceData!D$15,CalculationsAndCharts!$A163+$A$11,IF($C$7,8,0),1,1) -> 291.73999 | F163: =OFFSET(InputPriceData!E$15,CalculationsAndCharts!$A163+$A$11,IF($C$7,8,0),1,1) -> 289.890015 | G163: =OFFSET(InputPriceData!F$15,CalculationsAndCharts!$A163+$A$11,IF($C$7,8,0),1,1) -> 291.480011 | H163: 0.5560465105 | J163: 2.062431382 | K163: 1.273847681 | T163: 0.5560465105 | U163: 2.062431382 | AP163: 61485500
A164: 132 | B164: =OFFSET(InputPriceData!B$15,CalculationsAndCharts!$A164+$A$11,0,1,1) -> 2018-08-28 | C164: =OFFSET(InputPriceData!G$15,CalculationsAndCharts!$A164+$A$11,IF($C$7,8,0),1,1) -> 46943500 | D164: =OFFSET(InputPriceData!C$15,CalculationsAndCharts!$A164+$A$11,IF($C$7,8,0),1,1) -> 290.299988 | E164: =OFFSET(InputPriceData!D$15,CalculationsAndCharts!$A164+$A$11,IF($C$7,8,0),1,1) -> 290.420013 | F164: =OFFSET(InputPriceData!E$15,CalculationsAndCharts!$A164+$A$11,IF($C$7,8,0),1,1) -> 289.399994 | G164: =OFFSET(InputPriceData!F$15,CalculationsAndCharts!$A164+$A$11,IF($C$7,8,0),1,1) -> 289.920013 | H164: 0.1151110121 | J164: 1.710384595 | K164: -1.019718522 | T164: 0.1151110121 | U164: 1.710384595 | AQ164: 46943500
A165: 133 | B165: =OFFSET(InputPriceData!B$15,CalculationsAndCharts!$A165+$A$11,0,1,1) -> 2018-08-27 | C165: =OFFSET(InputPriceData!G$15,CalculationsAndCharts!$A165+$A$11,IF($C$7,8,0),1,1) -> 57072400 | D165: =OFFSET(InputPriceData!C$15,CalculationsAndCharts!$A165+$A$11,IF($C$7,8,0),1,1) -> 288.859985 | E165: =OFFSET(InputPriceData!D$15,CalculationsAndCharts!$A165+$A$11,IF($C$7,8,0),1,1) -> 289.899994 | F165: =OFFSET(InputPriceData!E$15,CalculationsAndCharts!$A165+$A$11,IF($C$7,8,0),1,1) -> 288.679993 | G165: =OFFSET(InputPriceData!F$15,CalculationsAndCharts!$A165+$A$11,IF($C$7,8,0),1,1) -> 289.779999 | H165: -0.3040937017 | J165: 1.076284188 | K165: -2.900846398 | T165: -0.3040937017 | U165: 1.076284188 | AP165: 57072400
A166: 134 | B166: =OFFSET(InputPriceData!B$15,CalculationsAndCharts!$A166+$A$11,0,1,1) -> 2018-08-24 | C166: =OFFSET(InputPriceData!G$15,CalculationsAndCharts!$A166+$A$11,IF($C$7,8,0),1,1) -> 57487400 | D166: =OFFSET(InputPriceData!C$15,CalculationsAndCharts!$A166+$A$11,IF($C$7,8,0),1,1) -> 286.440002 | E166: =OFFSET(InputPriceData!D$15,CalculationsAndCharts!$A166+$A$11,IF($C$7,8,0),1,1) -> 287.670013 | F166: =OFFSET(InputPriceData!E$15,CalculationsAndCharts!$A166+$A$11,IF($C$7,8,0),1,1) -> 286.380005 | G166: =OFFSET(InputPriceData!F$15,CalculationsAndCharts!$A166+$A$11,IF($C$7,8,0),1,1) -> 287.51001 | H166: -0.6280408455 | J166: 0.01510323021 | K166: -3.783348303 | T166: -0.6280408455 | U166: 0.01510323021 | AP166: 57487400
A167: 135 | B167: =OFFSET(InputPriceData!B$15,CalculationsAndCharts!$A167+$A$11,0,1,1) -> 2018-08-23 | C167: =OFFSET(InputPriceData!G$15,CalculationsAndCharts!$A167+$A$11,IF($C$7,8,0),1,1) -> 49204900 | D167: =OFFSET(InputPriceData!C$15,CalculationsAndCharts!$A167+$A$11,IF($C$7,8,0),1,1) -> 285.970001 | E167: =OFFSET(InputPriceData!D$15,CalculationsAndCharts!$A167+$A$11,IF($C$7,8,0),1,1) -> 286.940002 | F167: =OFFSET(InputPriceData!E$15,CalculationsAndCharts!$A167+$A$11,IF($C$7,8,0),1,1) -> 285.429993 | G167: =OFFSET(InputPriceData!F$15,CalculationsAndCharts!$A167+$A$11,IF($C$7,8,0),1,1) -> 285.790009 | H167: -0.7513152229 | J167: -0.4281954658 | K167: -4.079695872 | T167: -0.7513152229 | U167: -0.4281954658 | AQ167: 49204900
A168: 136 | B168: =OFFSET(InputPriceData!B$15,CalculationsAndCharts!$A168+$A$11,0,1,1) -> 2018-08-22 | C168: =OFFSET(InputPriceData!G$15,CalculationsAndCharts!$A168+$A$11,IF($C$7,8,0),1,1) -> 44993300 | D168: =OFFSET(InputPriceData!C$15,CalculationsAndCharts!$A168+$A$11,IF($C$7,8,0),1,1) -> 285.880005 | E168: =OFFSET(InputPriceData!D$15,CalculationsAndCharts!$A168+$A$11,IF($C$7,8,0),1,1) -> 286.76001 | F168: =OFFSET(InputPriceData!E$15,CalculationsAndCharts!$A168+$A$11,IF($C$7,8,0),1,1) -> 285.579987 | G168: =OFFSET(InputPriceData!F$15,CalculationsAndCharts!$A168+$A$11,IF($C$7,8,0),1,1) -> 286.170013 | H168: -0.7533192063 | J168: -0.3666146279 | K168: -4.15330061 | T168: -0.7533192063 | U168: -0.3666146279 | AP168: 44993300
A169: 137 | B169: =OFFSET(InputPriceData!B$15,CalculationsAndCharts!$A169+$A$11,0,1,1) -> 2018-08-21 | C169: =OFFSET(InputPriceData!G$15,CalculationsAndCharts!$A169+$A$11,IF($C$7,8,0),1,1) -> 67272000 | D169: =OFFSET(InputPriceData!C$15,CalculationsAndCharts!$A169+$A$11,IF($C$7,8,0),1,1) -> 286.25 | E169: =OFFSET(InputPriceData!D$15,CalculationsAndCharts!$A169+$A$11,IF($C$7,8,0),1,1) -> 287.309998 | F169: =OFFSET(InputPriceData!E$15,CalculationsAndCharts!$A169+$A$11,IF($C$7,8,0),1,1) -> 285.709991 | G169: =OFFSET(InputPriceData!F$15,CalculationsAndCharts!$A169+$A$11,IF($C$7,8,0),1,1) -> 286.339996 | H169: -0.7012240162 | J169: -0.5025514712 | K169: -3.704792626 | T169: -0.7012240162 | U169: -0.5025514712 | AP169: 67272000
A170: 138 | B170: =OFFSET(InputPriceData!B$15,CalculationsAndCharts!$A170+$A$11,0,1,1) -> 2018-08-20 | C170: =OFFSET(InputPriceData!G$15,CalculationsAndCharts!$A170+$A$11,IF($C$7,8,0),1,1) -> 39807500 | D170: =OFFSET(InputPriceData!C$15,CalculationsAndCharts!$A170+$A$11,IF($C$7,8,0),1,1) -> 285.570007 | E170: =OFFSET(InputPriceData!D$15,CalculationsAndCharts!$A170+$A$11,IF($C$7,8,0),1,1) -> 285.970001 | F170: =OFFSET(InputPriceData!E$15,CalculationsAndCharts!$A170+$A$11,IF($C$7,8,0),1,1) -> 285.059998 | G170: =OFFSET(InputPriceData!F$15,CalculationsAndCharts!$A170+$A$11,IF($C$7,8,0),1,1) -> 285.670013 | H170: -0.5529713932 | J170: -0.7960985668 | K170: -2.521729793 | T170: -0.5529713932 | U170: -0.7960985668 | AP170: 39807500
A171: 139 | B171: =OFFSET(InputPriceData!B$15,CalculationsAndCharts!$A171+$A$11,0,1,1) -> 2018-08-17 | C171: =OFFSET(InputPriceData!G$15,CalculationsAndCharts!$A171+$A$11,IF($C$7,8,0),1,1) -> 65618500 | D171: =OFFSET(InputPriceData!C$15,CalculationsAndCharts!$A171+$A$11,IF($C$7,8,0),1,1) -> 283.829987 | E171: =OFFSET(InputPriceData!D$15,CalculationsAndCharts!$A171+$A$11,IF($C$7,8,0),1,1) -> 285.559998 | F171: =OFFSET(InputPriceData!E$15,CalculationsAndCharts!$A171+$A$11,IF($C$7,8,0),1,1) -> 283.369995 | G171: =OFFSET(InputPriceData!F$15,CalculationsAndCharts!$A171+$A$11,IF($C$7,8,0),1,1) -> 285.059998 | H171: -0.2839022003 | J171: -1.068056486 | K171: -0.6353567153 | T171: -0.2839022003 | U171: -1.068056486 | AP171: 65618500
A172: 140 | B172: =OFFSET(InputPriceData!B$15,CalculationsAndCharts!$A172+$A$11,0,1,1) -> 2018-08-16 | C172: =OFFSET(InputPriceData!G$15,CalculationsAndCharts!$A172+$A$11,IF($C$7,8,0),1,1) -> 69967900 | D172: =OFFSET(InputPriceData!C$15,CalculationsAndCharts!$A172+$A$11,IF($C$7,8,0),1,1) -> 283.399994 | E172: =OFFSET(InputPriceData!D$15,CalculationsAndCharts!$A172+$A$11,IF($C$7,8,0),1,1) -> 285.040009 | F172: =OFFSET(InputPriceData!E$15,CalculationsAndCharts!$A172+$A$11,IF($C$7,8,0),1,1) -> 283.359985 | G172: =OFFSET(InputPriceData!F$15,CalculationsAndCharts!$A172+$A$11,IF($C$7,8,0),1,1) -> 284.059998 | H172: 0.101946785 | J172: -1.707967839 | K172: 2.319648549 | T172: 0.101946785 | U172: -1.707967839 | AP172: 69967900
A173: 141 | B173: =OFFSET(InputPriceData!B$15,CalculationsAndCharts!$A173+$A$11,0,1,1) -> 2018-08-15 | C173: =OFFSET(InputPriceData!G$15,CalculationsAndCharts!$A173+$A$11,IF($C$7,8,0),1,1) -> 102925400 | D173: =OFFSET(InputPriceData!C$15,CalculationsAndCharts!$A173+$A$11,IF($C$7,8,0),1,1) -> 282.380005 | E173: =OFFSET(InputPriceData!D$15,CalculationsAndCharts!$A173+$A$11,IF($C$7,8,0),1,1) -> 282.540009 | F173: =OFFSET(InputPriceData!E$15,CalculationsAndCharts!$A173+$A$11,IF($C$7,8,0),1,1) -> 280.160004 | G173: =OFFSET(InputPriceData!F$15,CalculationsAndCharts!$A173+$A$11,IF($C$7,8,0),1,1) -> 281.779999 | H173: 0.6431104464 | J173: -1.470537438 | K173: 5.329200117 | T173: 0.6431104464 | U173: -1.470537438 | AQ173: 102925400
A174: 142 | B174: =OFFSET(InputPriceData!B$15,CalculationsAndCharts!$A174+$A$11,0,1,1) -> 2018-08-14 | C174: =OFFSET(InputPriceData!G$15,CalculationsAndCharts!$A174+$A$11,IF($C$7,8,0),1,1) -> 43842000 | D174: =OFFSET(InputPriceData!C$15,CalculationsAndCharts!$A174+$A$11,IF($C$7,8,0),1,1) -> 282.920013 | E174: =OFFSET(InputPriceData!D$15,CalculationsAndCharts!$A174+$A$11,IF($C$7,8,0),1,1) -> 284.170013 | F174: =OFFSET(InputPriceData!E$15,CalculationsAndCharts!$A174+$A$11,IF($C$7,8,0),1,1) -> 282.480011 | G174: =OFFSET(InputPriceData!F$15,CalculationsAndCharts!$A174+$A$11,IF($C$7,8,0),1,1) -> 283.899994 | H174: 1.169554992 | J174: -0.9186745308 | K174: 7.93600448 | T174: 1.169554992 | U174: -0.9186745308 | AP174: 43842000
A175: 143 | B175: =OFFSET(InputPriceData!B$15,CalculationsAndCharts!$A175+$A$11,0,1,1) -> 2018-08-13 | C175: =OFFSET(InputPriceData!G$15,CalculationsAndCharts!$A175+$A$11,IF($C$7,8,0),1,1) -> 65686900 | D175: =OFFSET(InputPriceData!C$15,CalculationsAndCharts!$A175+$A$11,IF($C$7,8,0),1,1) -> 283.470001 | E175: =OFFSET(InputPriceData!D$15,CalculationsAndCharts!$A175+$A$11,IF($C$7,8,0),1,1) -> 284.160004 | F175: =OFFSET(InputPriceData!E$15,CalculationsAndCharts!$A175+$A$11,IF($C$7,8,0),1,1) -> 281.769989 | G175: =OFFSET(InputPriceData!F$15,CalculationsAndCharts!$A175+$A$11,IF($C$7,8,0),1,1) -> 282.100006 | H175: 1.606805935 | J175: -0.547891651 | K175: 10.18872726 | T175: 1.606805935 | U175: -0.547891651 | AQ175: 65686900
A176: 144 | B176: =OFFSET(InputPriceData!B$15,CalculationsAndCharts!$A176+$A$11,0,1,1) -> 2018-08-10 | C176: =OFFSET(InputPriceData!G$15,CalculationsAndCharts!$A176+$A$11,IF($C$7,8,0),1,1) -> 77076000 | D176: =OFFSET(InputPriceData!C$15,CalculationsAndCharts!$A176+$A$11,IF($C$7,8,0),1,1) -> 283.450012 | E176: =OFFSET(InputPriceData!D$15,CalculationsAndCharts!$A176+$A$11,IF($C$7,8,0),1,1) -> 284.059998 | F176: =OFFSET(InputPriceData!E$15,CalculationsAndCharts!$A176+$A$11,IF($C$7,8,0),1,1) -> 282.359985 | G176: =OFFSET(InputPriceData!F$15,CalculationsAndCharts!$A176+$A$11,IF($C$7,8,0),1,1) -> 283.160004 | H176: 1.946366824 | J176: 0.8575053038 | K176: 10.82069564 | T176: 1.946366824 | U176: 0.8575053038 | AQ176: 77076000
A177: 145 | B177: =OFFSET(InputPriceData!B$15,CalculationsAndCharts!$A177+$A$11,0,1,1) -> 2018-08-09 | C177: =OFFSET(InputPriceData!G$15,CalculationsAndCharts!$A177+$A$11,IF($C$7,8,0),1,1) -> 35652400 | D177: =OFFSET(InputPriceData!C$15,CalculationsAndCharts!$A177+$A$11,IF($C$7,8,0),1,1) -> 285.529999 | E177: =OFFSET(InputPriceData!D$15,CalculationsAndCharts!$A177+$A$11,IF($C$7,8,0),1,1) -> 285.970001 | F177: =OFFSET(InputPriceData!E$15,CalculationsAndCharts!$A177+$A$11,IF($C$7,8,0),1,1) -> 284.920013 | G177: =OFFSET(InputPriceData!F$15,CalculationsAndCharts!$A177+$A$11,IF($C$7,8,0),1,1) -> 285.070007 | H177: 1.99392194 | J177: 2.192298387 | K177: 9.771233253 | T177: 1.99392194 | U177: 2.192298387 | AQ177: 35652400
A178: 146 | B178: =OFFSET(InputPriceData!B$15,CalculationsAndCharts!$A178+$A$11,0,1,1) -> 2018-08-08 | C178: =OFFSET(InputPriceData!G$15,CalculationsAndCharts!$A178+$A$11,IF($C$7,8,0),1,1) -> 42114600 | D178: =OFFSET(InputPriceData!C$15,CalculationsAndCharts!$A178+$A$11,IF($C$7,8,0),1,1) -> 285.390015 | E178: =OFFSET(InputPriceData!D$15,CalculationsAndCharts!$A178+$A$11,IF($C$7,8,0),1,1) -> 285.910004 | F178: =OFFSET(InputPriceData!E$15,CalculationsAndCharts!$A178+$A$11,IF($C$7,8,0),1,1) -> 284.940002 | G178: =OFFSET(InputPriceData!F$15,CalculationsAndCharts!$A178+$A$11,IF($C$7,8,0),1,1) -> 285.459991 | H178: 1.748143118 | J178: 2.973031432 | K178: 7.515827276 | T178: 1.748143118 | U178: 2.973031432 | AP178: 42114600
A179: 147 | B179: =OFFSET(InputPriceData!B$15,CalculationsAndCharts!$A179+$A$11,0,1,1) -> 2018-08-07 | C179: =OFFSET(InputPriceData!G$15,CalculationsAndCharts!$A179+$A$11,IF($C$7,8,0),1,1) -> 43196600 | D179: =OFFSET(InputPriceData!C$15,CalculationsAndCharts!$A179+$A$11,IF($C$7,8,0),1,1) -> 285.390015 | E179: =OFFSET(InputPriceData!D$15,CalculationsAndCharts!$A179+$A$11,IF($C$7,8,0),1,1) -> 286.01001 | F179: =OFFSET(InputPriceData!E$15,CalculationsAndCharts!$A179+$A$11,IF($C$7,8,0),1,1) -> 285.23999 | G179: =OFFSET(InputPriceData!F$15,CalculationsAndCharts!$A179+$A$11,IF($C$7,8,0),1,1) -> 285.579987 | H179: 1.283285726 | J179: 3.172971222 | K179: 4.526743132 | T179: 1.283285726 | U179: 3.172971222 | AP179: 43196600
A180: 148 | B180: =OFFSET(InputPriceData!B$15,CalculationsAndCharts!$A180+$A$11,0,1,1) -> 2018-08-06 | C180: =OFFSET(InputPriceData!G$15,CalculationsAndCharts!$A180+$A$11,IF($C$7,8,0),1,1) -> 39400900 | D180: =OFFSET(InputPriceData!C$15,CalculationsAndCharts!$A180+$A$11,IF($C$7,8,0),1,1) -> 283.640015 | E180: =OFFSET(InputPriceData!D$15,CalculationsAndCharts!$A180+$A$11,IF($C$7,8,0),1,1) -> 284.98999 | F180: =OFFSET(InputPriceData!E$15,CalculationsAndCharts!$A180+$A$11,IF($C$7,8,0),1,1) -> 283.200012 | G180: =OFFSET(InputPriceData!F$15,CalculationsAndCharts!$A180+$A$11,IF($C$7,8,0),1,1) -> 284.640015 | H180: 0.6831860531 | J180: 2.81411443 | K180: 1.285001888 | T180: 0.6831860531 | U180: 2.81411443 | AP180: 39400900
A181: 149 | B181: =OFFSET(InputPriceData!B$15,CalculationsAndCharts!$A181+$A$11,0,1,1) -> 2018-08-03 | C181: =OFFSET(InputPriceData!G$15,CalculationsAndCharts!$A181+$A$11,IF($C$7,8,0),1,1) -> 53935400 | D181: =OFFSET(InputPriceData!C$15,CalculationsAndCharts!$A181+$A$11,IF($C$7,8,0),1,1) -> 282.529999 | E181: =OFFSET(InputPriceData!D$15,CalculationsAndCharts!$A181+$A$11,IF($C$7,8,0),1,1) -> 283.660004 | F181: =OFFSET(InputPriceData!E$15,CalculationsAndCharts!$A181+$A$11,IF($C$7,8,0),1,1) -> 282.329987 | G181: =OFFSET(InputPriceData!F$15,CalculationsAndCharts!$A181+$A$11,IF($C$7,8,0),1,1) -> 283.600006 | H181: 0.04536707887 | J181: 2.150519672 | K181: -1.878317199 | T181: 0.04536707887 | U181: 2.150519672 | AP181: 53935400
A182: 150 | B182: =OFFSET(InputPriceData!B$15,CalculationsAndCharts!$A182+$A$11,0,1,1) -> 2018-08-02 | C182: =OFFSET(InputPriceData!G$15,CalculationsAndCharts!$A182+$A$11,IF($C$7,8,0),1,1) -> 63426400 | D182: =OFFSET(InputPriceData!C$15,CalculationsAndCharts!$A182+$A$11,IF($C$7,8,0),1,1) -> 279.390015 | E182: =OFFSET(InputPriceData!D$15,CalculationsAndCharts!$A182+$A$11,IF($C$7,8,0),1,1) -> 282.579987 | F182: =OFFSET(InputPriceData!E$15,CalculationsAndCharts!$A182+$A$11,IF($C$7,8,0),1,1) -> 279.160004 | G182: =OFFSET(InputPriceData!F$15,CalculationsAndCharts!$A182+$A$11,IF($C$7,8,0),1,1) -> 282.390015 | H182: -0.5572259195 | J182: 1.157252902 | K182: -4.500608419 | T182: -0.5572259195 | U182: 1.157252902 | AP182: 63426400
A183: 151 | B183: =OFFSET(InputPriceData!B$15,CalculationsAndCharts!$A183+$A$11,0,1,1) -> 2018-08-01 | C183: =OFFSET(InputPriceData!G$15,CalculationsAndCharts!$A183+$A$11,IF($C$7,8,0),1,1) -> 53853300 | D183: =OFFSET(InputPriceData!C$15,CalculationsAndCharts!$A183+$A$11,IF($C$7,8,0),1,1) -> 281.559998 | E183: =OFFSET(InputPriceData!D$15,CalculationsAndCharts!$A183+$A$11,IF($C$7,8,0),1,1) -> 282.130005 | F183: =OFFSET(InputPriceData!E$15,CalculationsAndCharts!$A183+$A$11,IF($C$7,8,0),1,1) -> 280.130005 | G183: =OFFSET(InputPriceData!F$15,CalculationsAndCharts!$A183+$A$11,IF($C$7,8,0),1,1) -> 280.859985 | H183: -1.040272957 | J183: 0.4233667938 | K183: -6.665004537 | T183: -1.040272957 | U183: 0.4233667938 | AQ183: 53853300
A184: 152 | B184: =OFFSET(InputPriceData!B$15,CalculationsAndCharts!$A184+$A$11,0,1,1) -> 2018-07-31 | C184: =OFFSET(InputPriceData!G$15,CalculationsAndCharts!$A184+$A$11,IF($C$7,8,0),1,1) -> 68570500 | D184: =OFFSET(InputPriceData!C$15,CalculationsAndCharts!$A184+$A$11,IF($C$7,8,0),1,1) -> 280.809998 | E184: =OFFSET(InputPriceData!D$15,CalculationsAndCharts!$A184+$A$11,IF($C$7,8,0),1,1) -> 282.019989 | F184: =OFFSET(InputPriceData!E$15,CalculationsAndCharts!$A184+$A$11,IF($C$7,8,0),1,1) -> 280.380005 | G184: =OFFSET(InputPriceData!F$15,CalculationsAndCharts!$A184+$A$11,IF($C$7,8,0),1,1) -> 281.329987 | H184: -1.413484716 | J184: -0.3975799803 | K184: -8.083328317 | T184: -1.413484716 | U184: -0.3975799803 | AP184: 68570500
A185: 153 | B185: =OFFSET(InputPriceData!B$15,CalculationsAndCharts!$A185+$A$11,0,1,1) -> 2018-07-30 | C185: =OFFSET(InputPriceData!G$15,CalculationsAndCharts!$A185+$A$11,IF($C$7,8,0),1,1) -> 63742500 | D185: =OFFSET(InputPriceData!C$15,CalculationsAndCharts!$A185+$A$11,IF($C$7,8,0),1,1) -> 281.51001 | E185: =OFFSET(InputPriceData!D$15,CalculationsAndCharts!$A185+$A$11,IF($C$7,8,0),1,1) -> 281.690002 | F185: =OFFSET(InputPriceData!E$15,CalculationsAndCharts!$A185+$A$11,IF($C$7,8,0),1,1) -> 279.359985 | G185: =OFFSET(InputPriceData!F$15,CalculationsAndCharts!$A185+$A$11,IF($C$7,8,0),1,1) -> 279.950012 | H185: -1.635987494 | J185: -1.080711686 | K185: -8.735213279 | T185: -1.635987494 | U185: -1.080711686 | AQ185: 63742500
A186: 154 | B186: =OFFSET(InputPriceData!B$15,CalculationsAndCharts!$A186+$A$11,0,1,1) -> 2018-07-27 | C186: =OFFSET(InputPriceData!G$15,CalculationsAndCharts!$A186+$A$11,IF($C$7,8,0),1,1) -> 76768700 | D186: =OFFSET(InputPriceData!C$15,CalculationsAndCharts!$A186+$A$11,IF($C$7,8,0),1,1) -> 283.709991 | E186: =OFFSET(InputPriceData!D$15,CalculationsAndCharts!$A186+$A$11,IF($C$7,8,0),1,1) -> 283.820007 | F186: =OFFSET(InputPriceData!E$15,CalculationsAndCharts!$A186+$A$11,IF($C$7,8,0),1,1) -> 280.380005 | G186: =OFFSET(InputPriceData!F$15,CalculationsAndCharts!$A186+$A$11,IF($C$7,8,0),1,1) -> 281.420013 | H186: -1.713680264 | J186: -0.9274408016 | K186: -9.354640782 | T186: -1.713680264 | U186: -0.9274408016 | AQ186: 76768700
A187: 155 | B187: =OFFSET(InputPriceData!B$15,CalculationsAndCharts!$A187+$A$11,0,1,1) -> 2018-07-26 | C187: =OFFSET(InputPriceData!G$15,CalculationsAndCharts!$A187+$A$11,IF($C$7,8,0),1,1) -> 57919500 | D187: =OFFSET(InputPriceData!C$15,CalculationsAndCharts!$A187+$A$11,IF($C$7,8,0),1,1) -> 283.200012 | E187: =OFFSET(InputPriceData!D$15,CalculationsAndCharts!$A187+$A$11,IF($C$7,8,0),1,1) -> 284.109985 | F187: =OFFSET(InputPriceData!E$15,CalculationsAndCharts!$A187+$A$11,IF($C$7,8,0),1,1) -> 283.089996 | G187: =OFFSET(InputPriceData!F$15,CalculationsAndCharts!$A187+$A$11,IF($C$7,8,0),1,1) -> 283.339996 | H187: -1.76176054 | J187: -0.853863465 | K187: -9.716699776 | T187: -1.76176054 | U187: -0.853863465 | AP187: 57919500
A188: 156 | B188: =OFFSET(InputPriceData!B$15,CalculationsAndCharts!$A188+$A$11,0,1,1) -> 2018-07-25 | C188: =OFFSET(InputPriceData!G$15,CalculationsAndCharts!$A188+$A$11,IF($C$7,8,0),1,1) -> 78882900 | D188: =OFFSET(InputPriceData!C$15,CalculationsAndCharts!$A188+$A$11,IF($C$7,8,0),1,1) -> 281.329987 | E188: =OFFSET(InputPriceData!D$15,CalculationsAndCharts!$A188+$A$11,IF($C$7,8,0),1,1) -> 284.369995 | F188: =OFFSET(InputPriceData!E$15,CalculationsAndCharts!$A188+$A$11,IF($C$7,8,0),1,1) -> 281.279999 | G188: =OFFSET(InputPriceData!F$15,CalculationsAndCharts!$A188+$A$11,IF($C$7,8,0),1,1) -> 284.01001 | H188: -1.74019026 | J188: -1.630674162 | K188: -8.810467396 | T188: -1.74019026 | U188: -1.630674162 | AP188: 78882900
A189: 157 | B189: =OFFSET(InputPriceData!B$15,CalculationsAndCharts!$A189+$A$11,0,1,1) -> 2018-07-24 | C189: =OFFSET(InputPriceData!G$15,CalculationsAndCharts!$A189+$A$11,IF($C$7,8,0),1,1) -> 68026900 | D189: =OFFSET(InputPriceData!C$15,CalculationsAndCharts!$A189+$A$11,IF($C$7,8,0),1,1) -> 281.790009 | E189: =OFFSET(InputPriceData!D$15,CalculationsAndCharts!$A189+$A$11,IF($C$7,8,0),1,1) -> 282.559998 | F189: =OFFSET(InputPriceData!E$15,CalculationsAndCharts!$A189+$A$11,IF($C$7,8,0),1,1) -> 280.630005 | G189: =OFFSET(InputPriceData!F$15,CalculationsAndCharts!$A189+$A$11,IF($C$7,8,0),1,1) -> 281.609985 | H189: -1.46879507 | J189: -2.689510593 | K189: -6.123259827 | T189: -1.46879507 | U189: -2.689510593 | AQ189: 68026900
A190: 158 | B190: =OFFSET(InputPriceData!B$15,CalculationsAndCharts!$A190+$A$11,0,1,1) -> 2018-07-23 | C190: =OFFSET(InputPriceData!G$15,CalculationsAndCharts!$A190+$A$11,IF($C$7,8,0),1,1) -> 47047600 | D190: =OFFSET(InputPriceData!C$15,CalculationsAndCharts!$A190+$A$11,IF($C$7,8,0),1,1) -> 279.450012 | E190: =OFFSET(InputPriceData!D$15,CalculationsAndCharts!$A190+$A$11,IF($C$7,8,0),1,1) -> 280.429993 | F190: =OFFSET(InputPriceData!E$15,CalculationsAndCharts!$A190+$A$11,IF($C$7,8,0),1,1) -> 279.059998 | G190: =OFFSET(InputPriceData!F$15,CalculationsAndCharts!$A190+$A$11,IF($C$7,8,0),1,1) -> 280.200012 | H190: -0.8697282087 | J190: -3.116033744 | K190: -2.102335508 | T190: -0.8697282087 | U190: -3.116033744 | AP190: 47047600
A191: 159 | B191: =OFFSET(InputPriceData!B$15,CalculationsAndCharts!$A191+$A$11,0,1,1) -> 2018-07-20 | C191: =OFFSET(InputPriceData!G$15,CalculationsAndCharts!$A191+$A$11,IF($C$7,8,0),1,1) -> 82337700 | D191: =OFFSET(InputPriceData!C$15,CalculationsAndCharts!$A191+$A$11,IF($C$7,8,0),1,1) -> 279.769989 | E191: =OFFSET(InputPriceData!D$15,CalculationsAndCharts!$A191+$A$11,IF($C$7,8,0),1,1) -> 280.480011 | F191: =OFFSET(InputPriceData!E$15,CalculationsAndCharts!$A191+$A$11,IF($C$7,8,0),1,1) -> 279.5 | G191: =OFFSET(InputPriceData!F$15,CalculationsAndCharts!$A191+$A$11,IF($C$7,8,0),1,1) -> 279.679993 | H191: -0.05411371682 | J191: -2.912897223 | K191: 2.588214922 | T191: -0.05411371682 | U191: -2.912897223 | AQ191: 82337700
A192: 160 | B192: =OFFSET(InputPriceData!B$15,CalculationsAndCharts!$A192+$A$11,0,1,1) -> 2018-07-19 | C192: =OFFSET(InputPriceData!G$15,CalculationsAndCharts!$A192+$A$11,IF($C$7,8,0),1,1) -> 61412100 | D192: =OFFSET(InputPriceData!C$15,CalculationsAndCharts!$A192+$A$11,IF($C$7,8,0),1,1) -> 280.309998 | E192: =OFFSET(InputPriceData!D$15,CalculationsAndCharts!$A192+$A$11,IF($C$7,8,0),1,1) -> 280.73999 | F192: =OFFSET(InputPriceData!E$15,CalculationsAndCharts!$A192+$A$11,IF($C$7,8,0),1,1) -> 279.459991 | G192: =OFFSET(InputPriceData!F$15,CalculationsAndCharts!$A192+$A$11,IF($C$7,8,0),1,1) -> 280 | H192: 0.8419066108 | J192: -2.060552265 | K192: 7.11199193 | T192: 0.8419066108 | U192: -2.060552265 | AQ192: 61412100
A193: 161 | B193: =OFFSET(InputPriceData!B$15,CalculationsAndCharts!$A193+$A$11,0,1,1) -> 2018-07-18 | C193: =OFFSET(InputPriceData!G$15,CalculationsAndCharts!$A193+$A$11,IF($C$7,8,0),1,1) -> 44593500 | D193: =OFFSET(InputPriceData!C$15,CalculationsAndCharts!$A193+$A$11,IF($C$7,8,0),1,1) -> 280.559998 | E193: =OFFSET(InputPriceData!D$15,CalculationsAndCharts!$A193+$A$11,IF($C$7,8,0),1,1) -> 281.179993 | F193: =OFFSET(InputPriceData!E$15,CalculationsAndCharts!$A193+$A$11,IF($C$7,8,0),1,1) -> 280.059998 | G193: =OFFSET(InputPriceData!F$15,CalculationsAndCharts!$A193+$A$11,IF($C$7,8,0),1,1) -> 281.059998 | H193: 1.668995869 | J193: -1.0714499 | K193: 11.08542512 | T193: 1.668995869 | U193: -1.0714499 | AP193: 44593500
A194: 162 | B194: =OFFSET(InputPriceData!B$15,CalculationsAndCharts!$A194+$A$11,0,1,1) -> 2018-07-17 | C194: =OFFSET(InputPriceData!G$15,CalculationsAndCharts!$A194+$A$11,IF($C$7,8,0),1,1) -> 52315500 | D194: =OFFSET(InputPriceData!C$15,CalculationsAndCharts!$A194+$A$11,IF($C$7,8,0),1,1) -> 278.470001 | E194: =OFFSET(InputPriceData!D$15,CalculationsAndCharts!$A194+$A$11,IF($C$7,8,0),1,1) -> 280.910004 | F194: =OFFSET(InputPriceData!E$15,CalculationsAndCharts!$A194+$A$11,IF($C$7,8,0),1,1) -> 278.410004 | G194: =OFFSET(InputPriceData!F$15,CalculationsAndCharts!$A194+$A$11,IF($C$7,8,0),1,1) -> 280.470001 | H194: 2.37445998 | J194: -0.3309476793 | K194: 14.57770756 | T194: 2.37445998 | U194: -0.3309476793 | AP194: 52315500
A195: 163 | B195: =OFFSET(InputPriceData!B$15,CalculationsAndCharts!$A195+$A$11,0,1,1) -> 2018-07-16 | C195: =OFFSET(InputPriceData!G$15,CalculationsAndCharts!$A195+$A$11,IF($C$7,8,0),1,1) -> 48201000 | D195: =OFFSET(InputPriceData!C$15,CalculationsAndCharts!$A195+$A$11,IF($C$7,8,0),1,1) -> 279.640015 | E195: =OFFSET(InputPriceData!D$15,CalculationsAndCharts!$A195+$A$11,IF($C$7,8,0),1,1) -> 279.799988 | F195: =OFFSET(InputPriceData!E$15,CalculationsAndCharts!$A195+$A$11,IF($C$7,8,0),1,1) -> 278.839996 | G195: =OFFSET(InputPriceData!F$15,CalculationsAndCharts!$A195+$A$11,IF($C$7,8,0),1,1) -> 279.339996 | H195: 2.966035284 | J195: 0.7441142862 | K195: 17.05209742 | T195: 2.966035284 | U195: 0.7441142862 | AQ195: 48201000
A196: 164 | B196: =OFFSET(InputPriceData!B$15,CalculationsAndCharts!$A196+$A$11,0,1,1) -> 2018-07-13 | C196: =OFFSET(InputPriceData!G$15,CalculationsAndCharts!$A196+$A$11,IF($C$7,8,0),1,1) -> 48216000 | D196: =OFFSET(InputPriceData!C$15,CalculationsAndCharts!$A196+$A$11,IF($C$7,8,0),1,1) -> 279.170013 | E196: =OFFSET(InputPriceData!D$15,CalculationsAndCharts!$A196+$A$11,IF($C$7,8,0),1,1) -> 279.929993 | F196: =OFFSET(InputPriceData!E$15,CalculationsAndCharts!$A196+$A$11,IF($C$7,8,0),1,1) -> 278.660004 | G196: =OFFSET(InputPriceData!F$15,CalculationsAndCharts!$A196+$A$11,IF($C$7,8,0),1,1) -> 279.589996 | H196: 3.3397773 | J196: 2.124649151 | K196: 17.91401465 | T196: 3.3397773 | U196: 2.124649151 | AP196: 48216000
A197: 165 | B197: =OFFSET(InputPriceData!B$15,CalculationsAndCharts!$A197+$A$11,0,1,1) -> 2018-07-12 | C197: =OFFSET(InputPriceData!G$15,CalculationsAndCharts!$A197+$A$11,IF($C$7,8,0),1,1) -> 60124700 | D197: =OFFSET(InputPriceData!C$15,CalculationsAndCharts!$A197+$A$11,IF($C$7,8,0),1,1) -> 278.279999 | E197: =OFFSET(InputPriceData!D$15,CalculationsAndCharts!$A197+$A$11,IF($C$7,8,0),1,1) -> 279.429993 | F197: =OFFSET(InputPriceData!E$15,CalculationsAndCharts!$A197+$A$11,IF($C$7,8,0),1,1) -> 277.600006 | G197: =OFFSET(InputPriceData!F$15,CalculationsAndCharts!$A197+$A$11,IF($C$7,8,0),1,1) -> 279.369995 | H197: 3.402571537 | J197: 2.792651931 | K197: 17.62277729 | T197: 3.402571537 | U197: 2.792651931 | AP197: 60124700
A198: 166 | B198: =OFFSET(InputPriceData!B$15,CalculationsAndCharts!$A198+$A$11,0,1,1) -> 2018-07-11 | C198: =OFFSET(InputPriceData!G$15,CalculationsAndCharts!$A198+$A$11,IF($C$7,8,0),1,1) -> 77054700 | D198: =OFFSET(InputPriceData!C$15,CalculationsAndCharts!$A198+$A$11,IF($C$7,8,0),1,1) -> 277.149994 | E198: =OFFSET(InputPriceData!D$15,CalculationsAndCharts!$A198+$A$11,IF($C$7,8,0),1,1) -> 278.040009 | F198: =OFFSET(InputPriceData!E$15,CalculationsAndCharts!$A198+$A$11,IF($C$7,8,0),1,1) -> 276.519989 | G198: =OFFSET(InputPriceData!F$15,CalculationsAndCharts!$A198+$A$11,IF($C$7,8,0),1,1) -> 276.859985 | H198: 3.235462239 | J198: 3.809738234 | K198: 15.6030352 | T198: 3.235462239 | U198: 3.809738234 | AQ198: 77054700
A199: 167 | B199: =OFFSET(InputPriceData!B$15,CalculationsAndCharts!$A199+$A$11,0,1,1) -> 2018-07-10 | C199: =OFFSET(InputPriceData!G$15,CalculationsAndCharts!$A199+$A$11,IF($C$7,8,0),1,1) -> 51966800 | D199: =OFFSET(InputPriceData!C$15,CalculationsAndCharts!$A199+$A$11,IF($C$7,8,0),1,1) -> 278.410004 | E199: =OFFSET(InputPriceData!D$15,CalculationsAndCharts!$A199+$A$11,IF($C$7,8,0),1,1) -> 279.01001 | F199: =OFFSET(InputPriceData!E$15,CalculationsAndCharts!$A199+$A$11,IF($C$7,8,0),1,1) -> 278.079987 | G199: =OFFSET(InputPriceData!F$15,CalculationsAndCharts!$A199+$A$11,IF($C$7,8,0),1,1) -> 278.899994 | H199: 2.744243983 | J199: 5.048708631 | K199: 11.41675527 | T199: 2.744243983 | U199: 5.048708631 | AP199: 51966800
A200: 168 | B200: =OFFSET(InputPriceData!B$15,CalculationsAndCharts!$A200+$A$11,0,1,1) -> 2018-07-09 | C200: =OFFSET(InputPriceData!G$15,CalculationsAndCharts!$A200+$A$11,IF($C$7,8,0),1,1) -> 50550400 | D200: =OFFSET(InputPriceData!C$15,CalculationsAndCharts!$A200+$A$11,IF($C$7,8,0),1,1) -> 276.549988 | E200: =OFFSET(InputPriceData!D$15,CalculationsAndCharts!$A200+$A$11,IF($C$7,8,0),1,1) -> 277.959991 | F200: =OFFSET(InputPriceData!E$15,CalculationsAndCharts!$A200+$A$11,IF($C$7,8,0),1,1) -> 276.5 | G200: =OFFSET(InputPriceData!F$15,CalculationsAndCharts!$A200+$A$11,IF($C$7,8,0),1,1) -> 277.899994 | H200: 1.890702175 | J200: 4.941966475 | K200: 6.402246575 | T200: 1.890702175 | U200: 4.941966475 | AP200: 50550400
A201: 169 | B201: =OFFSET(InputPriceData!B$15,CalculationsAndCharts!$A201+$A$11,0,1,1) -> 2018-07-06 | C201: =OFFSET(InputPriceData!G$15,CalculationsAndCharts!$A201+$A$11,IF($C$7,8,0),1,1) -> 66493700 | D201: =OFFSET(InputPriceData!C$15,CalculationsAndCharts!$A201+$A$11,IF($C$7,8,0),1,1) -> 273.140015 | E201: =OFFSET(InputPriceData!D$15,CalculationsAndCharts!$A201+$A$11,IF($C$7,8,0),1,1) -> 275.839996 | F201: =OFFSET(InputPriceData!E$15,CalculationsAndCharts!$A201+$A$11,IF($C$7,8,0),1,1) -> 272.709991 | G201: =OFFSET(InputPriceData!F$15,CalculationsAndCharts!$A201+$A$11,IF($C$7,8,0),1,1) -> 275.420013 | H201: 0.9170223572 | J201: 4.109591559 | K201: 1.392542584 | T201: 0.9170223572 | U201: 4.109591559 | AP201: 66493700
A202: 170 | B202: =OFFSET(InputPriceData!B$15,CalculationsAndCharts!$A202+$A$11,0,1,1) -> 2018-07-05 | C202: =OFFSET(InputPriceData!G$15,CalculationsAndCharts!$A202+$A$11,IF($C$7,8,0),1,1) -> 56925900 | D202: =OFFSET(InputPriceData!C$15,CalculationsAndCharts!$A202+$A$11,IF($C$7,8,0),1,1) -> 272.170013 | E202: =OFFSET(InputPriceData!D$15,CalculationsAndCharts!$A202+$A$11,IF($C$7,8,0),1,1) -> 273.179993 | F202: =OFFSET(InputPriceData!E$15,CalculationsAndCharts!$A202+$A$11,IF($C$7,8,0),1,1) -> 270.959991 | G202: =OFFSET(InputPriceData!F$15,CalculationsAndCharts!$A202+$A$11,IF($C$7,8,0),1,1) -> 273.109985 | H202: -0.03383739785 | J202: 2.877376985 | K202: -3.080401372 | T202: -0.03383739785 | U202: 2.877376985 | AP202: 56925900
A203: 171 | B203: =OFFSET(InputPriceData!B$15,CalculationsAndCharts!$A203+$A$11,0,1,1) -> 2018-07-03 | C203: =OFFSET(InputPriceData!G$15,CalculationsAndCharts!$A203+$A$11,IF($C$7,8,0),1,1) -> 42187100 | D203: =OFFSET(InputPriceData!C$15,CalculationsAndCharts!$A203+$A$11,IF($C$7,8,0),1,1) -> 272.869995 | E203: =OFFSET(InputPriceData!D$15,CalculationsAndCharts!$A203+$A$11,IF($C$7,8,0),1,1) -> 272.980011 | F203: =OFFSET(InputPriceData!E$15,CalculationsAndCharts!$A203+$A$11,IF($C$7,8,0),1,1) -> 270.420013 | G203: =OFFSET(InputPriceData!F$15,CalculationsAndCharts!$A203+$A$11,IF($C$7,8,0),1,1) -> 270.899994 | H203: -0.8741689818 | J203: 2.003215619 | K203: -7.24822951 | T203: -0.8741689818 | U203: 2.003215619 | AQ203: 42187100
A204: 172 | B204: =OFFSET(InputPriceData!B$15,CalculationsAndCharts!$A204+$A$11,0,1,1) -> 2018-07-02 | C204: =OFFSET(InputPriceData!G$15,CalculationsAndCharts!$A204+$A$11,IF($C$7,8,0),1,1) -> 63554800 | D204: =OFFSET(InputPriceData!C$15,CalculationsAndCharts!$A204+$A$11,IF($C$7,8,0),1,1) -> 269.51001 | E204: =OFFSET(InputPriceData!D$15,CalculationsAndCharts!$A204+$A$11,IF($C$7,8,0),1,1) -> 272.040009 | F204: =OFFSET(InputPriceData!E$15,CalculationsAndCharts!$A204+$A$11,IF($C$7,8,0),1,1) -> 269.23999 | G204: =OFFSET(InputPriceData!F$15,CalculationsAndCharts!$A204+$A$11,IF($C$7,8,0),1,1) -> 271.859985 | H204: -1.643044084 | J204: 1.258638712 | K204: -11.11690322 | T204: -1.643044084 | U204: 1.258638712 | AP204: 63554800
A205: 173 | B205: =OFFSET(InputPriceData!B$15,CalculationsAndCharts!$A205+$A$11,0,1,1) -> 2018-06-29 | C205: =OFFSET(InputPriceData!G$15,CalculationsAndCharts!$A205+$A$11,IF($C$7,8,0),1,1) -> 97592500 | D205: =OFFSET(InputPriceData!C$15,CalculationsAndCharts!$A205+$A$11,IF($C$7,8,0),1,1) -> 272.119995 | E205: =OFFSET(InputPriceData!D$15,CalculationsAndCharts!$A205+$A$11,IF($C$7,8,0),1,1) -> 273.660004 | F205: =OFFSET(InputPriceData!E$15,CalculationsAndCharts!$A205+$A$11,IF($C$7,8,0),1,1) -> 271.149994 | G205: =OFFSET(InputPriceData!F$15,CalculationsAndCharts!$A205+$A$11,IF($C$7,8,0),1,1) -> 271.279999 | H205: -2.322939365 | J205: 0.03720930176 | K205: -13.97484549 | T205: -2.322939365 | U205: 0.03720930176 | AQ205: 97592500
A206: 174 | B206: =OFFSET(InputPriceData!B$15,CalculationsAndCharts!$A206+$A$11,0,1,1) -> 2018-06-28 | C206: =OFFSET(InputPriceData!G$15,CalculationsAndCharts!$A206+$A$11,IF($C$7,8,0),1,1) -> 76650500 | D206: =OFFSET(InputPriceData!C$15,CalculationsAndCharts!$A206+$A$11,IF($C$7,8,0),1,1) -> 269.290009 | E206: =OFFSET(InputPriceData!D$15,CalculationsAndCharts!$A206+$A$11,IF($C$7,8,0),1,1) -> 271.75 | F206: =OFFSET(InputPriceData!E$15,CalculationsAndCharts!$A206+$A$11,IF($C$7,8,0),1,1) -> 268.48999 | G206: =OFFSET(InputPriceData!F$15,CalculationsAndCharts!$A206+$A$11,IF($C$7,8,0),1,1) -> 270.890015 | H206: -2.782092254 | J206: -1.573714379 | K206: -15.11883915 | T206: -2.782092254 | U206: -1.573714379 | AP206: 76650500
... 826 more rows

Sheet Follow
A1: Stocks and Indexes I wish to follow
A3: To ease following a stock, enter a Yahoo Finance acceptable symbol in column "A" anywhere below cell "A9".
A4: Thereafter you may doubleclick the cell containing a symbol of interest to initiate data retrieval and charting for that symbol.
A7: Symbol
A8: To | B8: Description | C8: Last Trade as of most recent check
A9: Follow | C9: Date | D9: Time | E9: Open | F9: High | G9: Low | H9: Close | I9: Volume | J9: Change
A10: A | B10: Agilent Technolog (A) -NYSE (Daily) | C10: 2015-02-02 | D10: 16:03:00 | E10: 37.9 | F10: 38.76 | G10: 37.71 | H10: 38.69 | I10: 2508493 | J10: 0.92
A11: AA | B11: Alcoa Corporation (AA) -NYSE (Weekly) | C11: 2018-06-19 | D11: 16:04:00 | E11: 44.630001 | F11: 44.630001 | G11: 43.349998 | H11: 44.470001 | I11: 3190085 | J11: -1.309998
A12: AAL | B12: American Airlines Group Inc. (AAL) -NasdaqGS (Daily) | C12: 2017-12-07 | D12: 16:00:00 | E12: 49.529999 | F12: 50.920502 | G12: 49.299999 | H12: 50.880001 | I12: 3046954 | J12: 1.27
A13: ADM | B13: Archer-Daniels-Midland Company (ADM) -NYSE (Weekly) | C13: 2018-07-13 | D13: 16:00:00 | E13: 47.5 | F13: 47.84 | G13: 47.169998 | H13: 47.57 | I13: 2402809 | J13: 0
A14: AMC | B14: AMC Entertainment Holdings, Inc. (AMC) -NYSE (Weekly) | C14: 2018-07-13 | D14: 16:02:00 | E14: 17.049999 | F14: 17.15 | G14: 16.525 | H14: 17.049999 | I14: 1442776 | J14: 0
A15: BSX | B15: Boston Scientific Corporation C (BSX) -NYQ (Daily) | C15: 2015-03-13 | D15: 16:01:00 | E15: 16.84 | F15: 16.91 | G15: 16.44 | H15: 16.61 | I15: 7262460 | J15: -0.28
A16: CASY | B16: Casey's General Stores, Inc. (CASY) -NasdaqGS (Daily) | C16: 2019-04-10 | D16: 16:00:00 | E16: 128.979996 | F16: 130.330002 | G16: 128.779999 | H16: 130.179993 | I16: 351300 | J16: 1.489991
A17: CAT | B17: Caterpillar Inc. (CAT) -NYSE (Daily) | C17: 2019-06-17 | D17: 15:28:00 | E17: 127.209999 | F17: 128.220001 | G17: 126.68 | H17: 127.649902 | I17: 1497653 | J17: 0.419899
A18: CSCO | B18: Cisco Systems, In (CSCO) -NasdaqNM (Daily) | C18: 2015-02-19 | D18: 16:00:00 | E18: 29.32 | F18: 29.39 | G18: 29.13 | H18: 29.31 | I18: 21469012 | J18: -0.18
A19: CVS | B19: CVS Health Corpor (CVS) -NYSE (Daily) | C19: 2015-02-02 | D19: 16:01:00 | E19: 98.34 | F19: 99.22 | G19: 97.06 | H19: 99.11 | I19: 4416094 | J19: 0.95
A20: DIS | B20: Walt Disney Compa (DIS) -NYSE (Daily) | C20: 2015-02-26 | D20: 16:00:00 | E20: 105.5 | F20: 105.71 | G20: 104.14 | H20: 104.56 | I20: 5044969 | J20: -1.01
A21: F | B21: Ford Motor Company (F) -NYSE (Daily) | C21: 2018-04-16 | D21: 13:20:00 | E21: 11.36 | F21: 11.4375 | G21: 11.27 | H21: 11.425 | I21: 13144677 | J21: 0.145
A22: FAS | B22: Direxion Daily Financial Bull 3X ETF (FAS) -NYSEArca (Daily) | C22: 2017-10-13 | D22: 16:00:00 | E22: 58.099998 | F22: 58.939999 | G22: 57.43 | H22: 58.450001 | I22: 1709300 | J22: 0.07
A23: FB | B23: Facebook, Inc. (FB) -NasdaqGS (Daily) | C23: 2018-07-13 | D23: 16:00:00 | E23: 207.809998 | F23: 208.429993 | G23: 206.449997 | H23: 207.320007 | I23: 11486800 | J23: 0.400009
A24: GSK | B24: GlaxoSmithKline P (GSK) -NYSE (Daily) | C24: 2015-02-02 | D24: 16:01:00 | E24: 44.11 | F24: 44.12 | G24: 43.71 | H24: 43.96 | I24: 3654466 | J24: -0.04
A25: GDX | B25: VanEck Vectors Gold Miners ETF (GDX) -PCX (Daily) | C25: 2017-02-10 | D25: 20:00:00 | E25: 24.67 | F25: 25.36 | G25: 24.6 | H25: 25.29 | I25: 65396107 | J25: 0.38
A26: HD | B26: The Home Depot, Inc. (HD) -NYSE (Daily) | C26: 2019-06-17 | D26: 15:30:00 | E26: 207 | F26: 208.789993 | G26: 206 | H26: 207.610001 | I26: 3491229 | J26: 1.839997
A27: HSY | B27: The Hershey Company (HSY) -NYSE (Daily) | C27: 2019-04-10 | D27: 16:02:00 | E27: 116.099998 | F27: 116.43 | G27: 115.75 | H27: 116.309998 | I27: 574600 | J27: 0.290001
A28: HTLD | B28: Heartland Express, Inc. (HTLD) -NasdaqGS (Daily) | C28: 2018-04-16 | D28: 13:57:00 | E28: 18.17 | F28: 18.620001 | G28: 18.129999 | H28: 18.540001 | I28: 202134 | J28: 0.540001
A29: IBM | B29: International Business Machines Corporation (IBM) -NYSE (Weekly) | C29: 2018-07-13 | D29: 16:01:00 | E29: 146.449997 | F29: 146.979904 | G29: 145.800003 | H29: 145.899994 | I29: 3067638 | J29: 0
A30: INTC | B30: Intel Corporation (INTC) -NasdaqGS (Daily) | C30: 2019-06-17 | D30: 15:32:00 | E30: 46.139999 | F30: 46.529999 | G30: 45.799999 | H30: 46.102501 | I30: 7977641 | J30: -0.087498
A31: JAH | B31: Jarden Corporation Common Stock (JAH) -NYQ (Daily) | C31: 2016-01-08 | D31: 16:02:00 | E31: 53.82 | F31: 53.88 | G31: 52.65 | H31: 52.73 | I31: 4519480 | J31: -0.81
A32: JNJ | B32: Johnson & Johnson (JNJ) -NYSE (Daily) | C32: 2019-06-17 | D32: 15:31:00 | E32: 140 | F32: 140.240005 | G32: 139.259995 | H32: 139.479996 | I32: 3682553 | J32: -0.61
A33: KO | B33: The Coca-Cola Company (KO) -NYSE (Daily) | C33: 2019-04-10 | D33: 16:02:00 | E33: 46.84 | F33: 47 | G33: 46.560001 | H33: 46.639999 | I33: 8059900 | J33: -0.029999
A34: LOW | B34: Lowe's Companies, Inc. (LOW) -NYSE (Daily) | C34: 2019-06-17 | D34: 15:29:00 | E34: 99.769997 | F34: 100.735001 | G34: 99.334999 | H34: 100.360001 | I34: 2967215 | J34: 0.730004
A35: LHO | B35: LaSalle Hotel Properties (LHO) -NYSE (Daily) | C35: 2018-07-13 | E35: 35.009998 | F35: 35.07 | G35: 34.82 | H35: 34.880001 | I35: 168400 | J35: -0.09
A36: LINE | B36: Linn Energy, LLC (LINE) -NasdaqNM (Daily) | C36: 2015-02-02 | D36: 16:00:00 | E36: 10.4 | F36: 10.78 | G36: 10.25 | H36: 10.77 | I36: 3766537 | J36: 0.51
A37: LO | B37: Lorillard, Inc Co (LO) -NYSE (Daily) | C37: 2015-02-02 | D37: 16:03:00 | E37: 65.71 | F37: 66.29 | G37: 65.43 | H37: 66.29 | I37: 1563618 | J37: 0.68
A38: MCD | B38: McDonald's Corporation (MCD) -NYSE (Daily) | C38: 2019-06-17 | D38: 15:26:00 | E38: 205.75 | F38: 205.75 | G38: 203.089996 | H38: 203.574997 | I38: 1838336 | J38: -1.714996
A39: MDT | B39: Medtronic plc. Or (MDT) -NYSE (Daily) | C39: 2015-02-19 | D39: 16:01:00 | E39: 78.59 | F39: 78.59 | G39: 77.85 | H39: 78.13 | I39: 6900528 | J39: -0.37
A40: MGM | B40: MGM Resorts Inter (MGM) -NYSE (Daily) | C40: 2015-02-02 | D40: 16:00:00 | E40: 19.44 | F40: 19.75 | G40: 19.12 | H40: 19.74 | I40: 7570281 | J40: 0.26
A41: MO | B41: Altria Group, Inc (MO) -NYSE (Daily) | C41: 2015-02-02 | D41: 16:01:00 | E41: 53.25 | F41: 53.84 | G41: 52.98 | H41: 53.8 | I41: 9183582 | J41: 0.7
A42: MSFT | B42: Microsoft Corporation (MSFT) -NasdaqGS (Daily) | C42: 2019-04-10 | D42: 16:00:00 | E42: 119.760002 | F42: 120.349998 | G42: 119.540001 | H42: 120.190002 | I42: 16123400 | J42: 0.910003
A43: NFLX | B43: Netflix, Inc. (NFLX) -NasdaqGS (Weekly) | C43: 2018-06-19 | D43: 14:59:00 | E43: 389.5 | F43: 404.390015 | G43: 388.5 | H43: 404.100006 | I43: 13053145 | J43: 13.700012
A44: NUGT | B44: Direxion Daily Gold Miners Inde (NUGT) -PCX (Daily) | C44: 2016-04-13 | D44: 14:18:00 | E44: 81.48 | F44: 84.97 | G44: 79.59 | H44: 80.5352 | I44: 4380827 | J44: -5.6148
A45: NVS | B45: Novartis AG (NVS) -NYSE (Daily) | C45: 2018-04-13 | D45: 16:02:00 | E45: 81.150002 | F45: 81.269997 | G45: 80.699997 | H45: 81.040001 | I45: 1037000 | J45: -0.400001
A46: NVDA | B46: NVIDIA Corporation (NVDA) -NasdaqGS (Daily) | C46: 2019-06-17 | D46: 15:27:00 | E46: 144.570007 | F46: 146.520599 | G46: 143.649994 | H46: 145.836105 | I46: 5490908 | J46: 1.196106
A47: PRU | B47: Prudential Financ (PRU) -NYSE (Daily) | C47: 2015-02-23 | D47: 12:22:00 | E47: 80.25 | F47: 80.4499 | G47: 79.8 | H47: 80.12 | I47: 1604052 | J47: -0.69
A48: PSEC | B48: Prospect Capital Corporation (PSEC) -NasdaqGS (Daily) | C48: 2019-04-10 | D48: 16:00:00 | E48: 6.57 | F48: 6.59 | G48: 6.55 | H48: 6.58 | I48: 887400 | J48: 0.01
A49: RAI | B49: Reynolds American (RAI) -NYSE (Daily) | C49: 2015-02-02 | D49: 16:03:00 | E49: 68.12 | F49: 69.06 | G49: 67.4346 | H49: 69.05 | I49: 1822013 | J49: 1.1
A50: RPM | B50: RPM International Inc. (RPM) -NYSE (Daily) | C50: 2018-04-13 | D50: 16:02:00 | E50: 49.52 | F50: 49.52 | G50: 48.970001 | H50: 49.240002 | I50: 908200 | J50: 0.010002 | K50: Owns the Rust-Oleum brand
A51: RSP | B51: Guggenheim S&P 500 Equal Weight (RSP) -PCX (Daily) | C51: 2016-01-08 | D51: 11:33:00 | E51: 73.24 | F51: 73.47 | G51: 72.41 | H51: 72.41 | I51: 754279 | J51: -0.48
A52: SPR | B52: Spirit Aerosystems Holdings, In (SPR) -NYQ (Daily) | C52: 2017-02-08 | D52: 16:02:00 | E52: 56.31 | F52: 56.53 | G52: 55.13 | H52: 56.41 | I52: 849196 | J52: 0.06
A53: SWKS | B53: Skyworks Solution (SWKS) -NasdaqNM (Daily) | C53: 2015-02-02 | D53: 16:00:00 | E53: 83.07 | F53: 83.73 | G53: 80.15 | H53: 82.02 | I53: 4119001 | J53: -1.03
A54: TOL | B54: Toll Brothers, Inc. (TOL) -NYSE (Daily) | C54: 2019-04-10 | D54: 16:01:00 | E54: 37.25 | F54: 37.619999 | G54: 37.029999 | H54: 37.450001 | I54: 1023200 | J54: 0.200001
A55: TSLA | B55: Tesla, Inc. (TSLA) -NasdaqGS (Daily) | C55: 2019-06-14 | D55: 09:56:00 | E55: 211.25 | F55: 214.160004 | G55: 210.399994 | H55: 212.816193 | I55: 1053711 | J55: -1.093811
A56: UNP | B56: Union Pacific Cor (UNP) -NYSE (Daily) | C56: 2015-02-02 | D56: 16:10:00 | E56: 118.13 | F56: 119.06 | G56: 116.7 | H56: 119.01 | I56: 3259594 | J56: 1.8
A57: VZ | B57: Verizon Communications Inc. (VZ) -NYSE (Daily) | C57: 2019-04-10 | D57: 16:00:00 | E57: 58.400002 | F57: 58.700001 | G57: 58.360001 | H57: 58.610001 | I57: 8022000 | J57: 0.209999
A58: WBA | B58: (WBA) -NasdaqNM (Daily) | C58: 2015-02-02 | D58: 16:00:00 | E58: 73.06 | F58: 74.98 | G58: 73 | H58: 74.89 | I58: 4247395 | J58: 1.14
A59: WMT | B59: Walmart Inc. (WMT) -NYSE (Daily) | C59: 2018-07-13 | D59: 16:00:00 | E59: 86.519997 | F59: 87.989998 | G59: 86.5 | H59: 87.699997 | I59: 6388600 | J59: 1.18
A61: ^NDX | B61: NASDAQ-100 (^NDX) -NIM (Daily) | C61: 2015-08-10 | D61: 17:15:00 | E61: 4558.68 | F61: 4583.63 | G61: 4554.63 | H61: 4573.11 | I61: 0 | J61: 53.03
A62: ^FTSE | B62: FTSE 100 (^FTSE) -FTSE (Daily) | C62: 2018-02-14 | D62: 15:51:00 | E62: 7168.009766 | F62: 7243.149902 | G62: 7145.72998 | H62: 7222.319824 | I62: 0 | J62: 54.319824
A63: ^DJI | B63: Dow Jones Industrial Average (^DJI) -DJI (Daily) | C63: 2018-02-14 | D63: 13:58:00 | E63: 24535.82031 | F63: 24835.44922 | G63: 24490.35938 | H63: 24816.16016 | I63: 254641020 | J63: 175.710937
A64: SPY | B64: SPDR S&P 500 ETF (SPY) -NYSEArca (Daily) | C64: 2019-06-17 | D64: 16:00:00 | E64: 289.519989 | F64: 290.220001 | G64: 289.179993 | H64: 289.369995 | I64: 39059600 | J64: 0.109985
A65: ^GSPC | B65: S&P 500 (^GSPC) -SNP (Daily) | C65: 2019-06-04 | D65: 14:27:00 | E65: 2762.639893 | F65: 2796.100098 | G65: 2762.639893 | H65: 2792.830078 | I65: 1396814023 | J65: 48.380127
A66: IWM | B66: iShares Russell 2000 ETF (IWM) -NYSEArca (Daily) | C66: 2018-04-13 | D66: 16:00:00 | E66: 155.289993 | F66: 155.330002 | G66: 153.509995 | H66: 153.949997 | I66: 19710100 | J66: -0.809998
A67: QQQ | B67: Invesco QQQ Trust (QQQ) -NasdaqGM (Daily) | C67: 2019-06-04 | D67: 14:19:00 | E67: 171.979996 | F67: 174.559998 | G67: 171.380005 | H67: 174.130005 | I67: 33794292 | J67: 4.01001
A68: ^RUT | B68: Russell 2000 (^RUT) -Chicago Options (Daily) | C68: 2019-02-14 | D68: 16:30:00 | E68: 1540.987793 | F68: 1551.385864 | G68: 1534.590088 | H68: 1545.105225 | I68: 0 | J68: 2.165284
A69: ^VIX | B69: VOLATILITY S&P 500 (^VIX) -WCB (Daily) | C69: 2015-12-04 | D69: 16:14:00 | E69: 17.43 | F69: 17.65 | G69: 14.69 | H69: 14.81 | I69: 0 | J69: -3.3
A70: ^NYA | B70: NYSE COMPOSITE (DJ) (^NYA) -NYSE (Daily) | C70: 2018-07-13 | D70: 16:15:00 | E70: 12744.79981 | F70: 12783.24023 | G70: 12727.75977 | H70: 12769.5 | I70: 2614000000 | J70: 8.040039
A72: ACAD | B72: ACADIA Pharmaceut (ACAD) -NasdaqNM (Daily) | C72: 2014-07-21 | D72: 16:00:00 | E72: 20.13 | F72: 20.55 | G72: 19.8101 | H72: 20.31 | I72: 691016
A73: CLDX | B73: Celldex Therapeut (CLDX) -NasdaqNM (Daily) | C73: 2015-02-02 | D73: 16:00:00 | E73: 21.47 | F73: 21.69 | G73: 20.11 | H73: 21.02 | I73: 1570418 | J73: -0.4
A74: ICPT | B74: Intercept Pharmac (ICPT) -NasdaqNM (Daily) | C74: 2014-07-21 | D74: 16:00:00 | E74: 215.97 | F74: 218.43 | G74: 213.05 | H74: 218.14 | I74: 191276
A75: INO | B75: Inovio Pharmaceut (INO) -AMEX (Daily) | C75: 2014-07-21 | D75: 16:00:00 | E75: 10.3 | F75: 11.08 | G75: 10.1 | H75: 11.01 | I75: 1800796
A76: JCP | B76: J. C. Penney Company, Inc. (JCP) -NYSE (Daily) | C76: 2017-12-07 | D76: 16:01:00 | E76: 3.34 | F76: 3.4 | G76: 3.25 | H76: 3.27 | I76: 14485464 | J76: -0.07
A77: LCI | B77: Lannett Co Inc Co (LCI) -NYSE (Daily) | C77: 2014-07-21 | D77: 16:02:00 | E77: 38.09 | F77: 38.803 | G77: 36.5101 | H77: 37.76 | I77: 611367
A78: NPSP | B78: NPS Pharmaceutica (NPSP) -NasdaqNM (Daily) | C78: 2014-07-21 | D78: 15:59:00 | E78: 28.75 | F78: 29.43 | G78: 28.31 | H78: 29.29 | I78: 1126758
A79: PBYI | B79: Puma Biotechnolog (PBYI) -NYSE (Daily) | C79: 2014-07-21 | D79: 16:02:00 | E79: 58.27 | F79: 59.46 | G79: 57.39 | H79: 58.98 | I79: 348030
